{"text_format":"1","workbook":"xlsx","n_sheets":4,"sheets":["COVER SHEET","1 - FI List","2 - Complex Products","Dropdowns"],"not_rendered":{"charts":0,"images":1,"macros":1,"external_links":17,"defined_names":251,"comments":0,"pivot_tables":0},"unopened":[],"bounds":{"document_bytes":16777216,"sheet_cells":100000,"rows_first":2000,"rows_last":500,"rows_between":2000,"halvings":0,"cell_chars":16384,"cell_head_chars":4096},"cells_cut":0,"cells_raw":0,"read":"whole","date_system":"1900"}

{"sheet":"COVER SHEET","index":0,"n_rows":21,"n_cols":3,"rows_kept":21,"cut":false,"hidden":false,"merged":[[5,0,5,3],[14,1,14,2]]}
[]
[]
[]
[]
[]
["LIST OF FINANCIAL INSTRUMENTS"]
[]
[]
[null,"Name of Licence Holder"]
[]
[null,"Licence Holder Code"]
[]
[null,"Reporting Period "]
[]
[null,"I confirm that the information submitted in this survey is correct and accurate to the best of my knowledge."]
[]
[null,"Person confirming accuracy of information"]
[]
[null,"Designation of Person confirming accuracy of information"]
[]
[null,null,"Version: December 2022"]

{"sheet":"1 - FI List","index":1,"n_rows":30000,"n_cols":8,"rows_kept":4500,"cut":true,"hidden":false,"merged":[[0,0,1,7],[2,1,2,2],[2,3,2,4],[2,6,2,7]],"bounds":{"rows_first":2000,"rows_last":500,"rows_between":2000,"halvings":0}}
["List of Financial Instruments"]
[]
["Financial instrument name","Financial instrument type",null,"ISIN (if not applicable, mark as N/A)",null,"Basis on which the investment service was provided to clients (Advisory, Reception and transmission of orders, Execution of orders, Portfolio Management)","Complex or Non-complex Instrument"]
[null,null,{"$f":"IF(OR(B4=\"Transferable securities\",B4=\"Money-market instruments\",B4=\"Units in collective investment undertakings\",B4=\"Options\",B4=\"Futures\",B4=\"Swaps\",B4=\"Forward rate agreements\",B4=\"Financial Contracts for Differences\"),1,0)","v":0},null,{"$f":"IF(LEN(D4)=3, 1, IF(LEN(D4)=12, 1, 0))","v":0},null,null,{"$f":"IF(OR(G4=\"Complex\",G4=\"Non-Complex\", G4=\"Non Complex\"),1,0)","v":0}]
[null,null,{"$f":"IF(OR(B5=\"Transferable securities\",B5=\"Money-market instruments\",B5=\"Units in collective investment undertakings\",B5=\"Options\",B5=\"Futures\",B5=\"Swaps\",B5=\"Forward rate agreements\",B5=\"Financial Contracts for Differences\"),1,0)","v":0},null,{"$f":"IF(LEN(D5)=3, 1, IF(LEN(D5)=12, 1, 0))","v":0},null,null,{"$f":"IF(OR(G5=\"Complex\",G5=\"Non-Complex\", G5=\"Non Complex\"),1,0)","v":0}]
[null,null,0,null,0,null,null,0]
[null,null,0,null,0,null,null,0]
[null,null,0,null,0,null,null,0]
[null,null,0,null,0,null,null,0]
[null,null,0,null,0,null,null,0]
[null,null,0,null,0,null,null,0]
[null,null,0,null,0,null,null,0]
[null,null,0,null,0,null,null,0]
[null,null,0,null,0,null,null,0]
[null,null,0,null,0,null,null,0]
[null,null,0,null,0,null,null,0]
[null,null,0,null,0,null,null,0]
[null,null,0,null,0,null,null,0]
[null,null,0,null,0,null,null,0]
[null,null,0,null,0,null,null,0]
[null,null,0,null,0,null,null,0]
[null,null,0,null,0,null,null,0]
[null,null,0,null,0,null,null,0]
[null,null,0,null,0,null,null,0]
[null,null,0,null,0,null,null,0]
[null,null,0,null,0,null,null,0]
[null,null,0,null,0,null,null,0]
[null,null,0,null,0,null,null,0]
[null,null,0,null,0,null,null,0]
[null,null,0,null,0,null,null,0]
[null,null,0,null,0,null,null,0]
[null,null,0,null,0,null,null,0]
[null,null,0,null,0,null,null,0]
[null,null,0,null,0,null,null,0]
[null,null,0,null,0,null,null,0]
[null,null,0,null,0,null,null,0]
[null,null,0,null,0,null,null,0]
[null,null,0,null,0,null,null,0]
[null,null,0,null,0,null,null,0]
[null,null,0,null,0,null,null,0]
[null,null,0,null,0,null,null,0]
[null,null,0,null,0,null,null,0]
[null,null,0,null,0,null,null,0]
[null,null,0,null,0,null,null,0]
[null,null,0,null,0,null,null,0]
[null,null,0,null,0,null,null,0]
[null,null,0,null,0,null,null,0]
[null,null,0,null,0,null,null,0]
[null,null,0,null,0,null,null,0]
[null,null,0,null,0,null,null,0]
[null,null,0,null,0,null,null,0]
[null,null,0,null,0,null,null,0]
[null,null,0,null,0,null,null,0]
[null,null,0,null,0,null,null,0]
[null,null,0,null,0,null,null,0]
[null,null,0,null,0,null,null,0]
[null,null,0,null,0,null,null,0]
[null,null,0,null,0,null,null,0]
[null,null,0,null,0,null,null,0]
[null,null,0,null,0,null,null,0]
[null,null,0,null,0,null,null,0]
[null,null,0,null,0,null,null,0]
[null,null,0,null,0,null,null,0]
[null,null,0,null,0,null,null,0]
[null,null,0,null,0,null,null,0]
[null,null,0,null,0,null,null,0]
[null,null,0,null,0,null,null,0]
[null,null,0,null,0,null,null,0]
[null,null,{"$f":"IF(OR(B69=\"Transferable securities\",B69=\"Money-market instruments\",B69=\"Units in collective investment undertakings\",B69=\"Options\",B69=\"Futures\",B69=\"Swaps\",B69=\"Forward rate agreements\",B69=\"Financial Contracts for Differences\"),1,0)","v":0},null,{"$f":"IF(LEN(D69)=3, 1, IF(LEN(D69)=12, 1, 0))","v":0},null,null,{"$f":"IF(OR(G69=\"Complex\",G69=\"Non-Complex\", G69=\"Non Complex\"),1,0)","v":0}]
[null,null,0,null,0,null,null,0]
[null,null,0,null,0,null,null,0]
[null,null,0,null,0,null,null,0]
[null,null,0,null,0,null,null,0]
[null,null,0,null,0,null,null,0]
[null,null,0,null,0,null,null,0]
[null,null,0,null,0,null,null,0]
[null,null,0,null,0,null,null,0]
[null,null,0,null,0,null,null,0]
[null,null,0,null,0,null,null,0]
[null,null,0,null,0,null,null,0]
[null,null,0,null,0,null,null,0]
[null,null,0,null,0,null,null,0]
[null,null,0,null,0,null,null,0]
[null,null,0,null,0,null,null,0]
[null,null,0,null,0,null,null,0]
[null,null,0,null,0,null,null,0]
[null,null,0,null,0,null,null,0]
[null,null,0,null,0,null,null,0]
[null,null,0,null,0,null,null,0]
[null,null,0,null,0,null,null,0]
[null,null,0,null,0,null,null,0]
[null,null,0,null,0,null,null,0]
[null,null,0,null,0,null,null,0]
[null,null,0,null,0,null,null,0]
[null,null,0,null,0,null,null,0]
[null,null,0,null,0,null,null,0]
[null,null,0,null,0,null,null,0]
[null,null,0,null,0,null,null,0]
[null,null,0,null,0,null,null,0]
[null,null,0,null,0,null,null,0]
[null,null,0,null,0,null,null,0]
[null,null,0,null,0,null,null,0]
[null,null,0,null,0,null,null,0]
[null,null,0,null,0,null,null,0]
[null,null,0,null,0,null,null,0]
[null,null,0,null,0,null,null,0]
[null,null,0,null,0,null,null,0]
[null,null,0,null,0,null,null,0]
[null,null,0,null,0,null,null,0]
[null,null,0,null,0,null,null,0]
[null,null,0,null,0,null,null,0]
[null,null,0,null,0,null,null,0]
[null,null,0,null,0,null,null,0]
[null,null,0,null,0,null,null,0]
[null,null,0,null,0,null,null,0]
[null,null,0,null,0,null,null,0]
[null,null,0,null,0,null,null,0]
[null,null,0,null,0,null,null,0]
[null,null,0,null,0,null,null,0]
[null,null,0,null,0,null,null,0]
[null,null,0,null,0,null,null,0]
[null,null,0,null,0,null,null,0]
[null,null,0,null,0,null,null,0]
[null,null,0,null,0,null,null,0]
[null,null,0,null,0,null,null,0]
[null,null,0,null,0,null,null,0]
[null,null,0,null,0,null,null,0]
[null,null,0,null,0,null,null,0]
[null,null,0,null,0,null,null,0]
[null,null,0,null,0,null,null,0]
[null,null,0,null,0,null,null,0]
[null,null,0,null,0,null,null,0]
[null,null,{"$f":"IF(OR(B133=\"Transferable securities\",B133=\"Money-market instruments\",B133=\"Units in collective investment undertakings\",B133=\"Options\",B133=\"Futures\",B133=\"Swaps\",B133=\"Forward rate agreements\",B133=\"Financial Contracts for Differences\"),1,0)","v":0},null,{"$f":"IF(LEN(D133)=3, 1, IF(LEN(D133)=12, 1, 0))","v":0},null,null,{"$f":"IF(OR(G133=\"Complex\",G133=\"Non-Complex\", G133=\"Non Complex\"),1,0)","v":0}]
[null,null,0,null,0,null,null,0]
[null,null,0,null,0,null,null,0]
[null,null,0,null,0,null,null,0]
[null,null,0,null,0,null,null,0]
[null,null,0,null,0,null,null,0]
[null,null,0,null,0,null,null,0]
[null,null,0,null,0,null,null,0]
[null,null,0,null,0,null,null,0]
[null,null,0,null,0,null,null,0]
[null,null,0,null,0,null,null,0]
[null,null,0,null,0,null,null,0]
[null,null,0,null,0,null,null,0]
[null,null,0,null,0,null,null,0]
[null,null,0,null,0,null,null,0]
[null,null,0,null,0,null,null,0]
[null,null,0,null,0,null,null,0]
[null,null,0,null,0,null,null,0]
[null,null,0,null,0,null,null,0]
[null,null,0,null,0,null,null,0]
[null,null,0,null,0,null,null,0]
[null,null,0,null,0,null,null,0]
[null,null,0,null,0,null,null,0]
[null,null,0,null,0,null,null,0]
[null,null,0,null,0,null,null,0]
[null,null,0,null,0,null,null,0]
[null,null,0,null,0,null,null,0]
[null,null,0,null,0,null,null,0]
[null,null,0,null,0,null,null,0]
[null,null,0,null,0,null,null,0]
[null,null,0,null,0,null,null,0]
[null,null,0,null,0,null,null,0]
[null,null,0,null,0,null,null,0]
[null,null,0,null,0,null,null,0]
[null,null,0,null,0,null,null,0]
[null,null,0,null,0,null,null,0]
[null,null,0,null,0,null,null,0]
[null,null,0,null,0,null,null,0]
[null,null,0,null,0,null,null,0]
[null,null,0,null,0,null,null,0]
[null,null,0,null,0,null,null,0]
[null,null,0,null,0,null,null,0]
[null,null,0,null,0,null,null,0]
[null,null,0,null,0,null,null,0]
[null,null,0,null,0,null,null,0]
[null,null,0,null,0,null,null,0]
[null,null,0,null,0,null,null,0]
[null,null,0,null,0,null,null,0]
[null,null,0,null,0,null,null,0]
[null,null,0,null,0,null,null,0]
[null,null,0,null,0,null,null,0]
[null,null,0,null,0,null,null,0]
[null,null,0,null,0,null,null,0]
[null,null,0,null,0,null,null,0]
[null,null,0,null,0,null,null,0]
[null,null,0,null,0,null,null,0]
[null,null,0,null,0,null,null,0]
[null,null,0,null,0,null,null,0]
[null,null,0,null,0,null,null,0]
[null,null,0,null,0,null,null,0]
[null,null,0,null,0,null,null,0]
[null,null,0,null,0,null,null,0]
[null,null,0,null,0,null,null,0]
[null,null,0,null,0,null,null,0]
[null,null,{"$f":"IF(OR(B197=\"Transferable securities\",B197=\"Money-market instruments\",B197=\"Units in collective investment undertakings\",B197=\"Options\",B197=\"Futures\",B197=\"Swaps\",B197=\"Forward rate agreements\",B197=\"Financial Contracts for Differences\"),1,0)","v":0},null,{"$f":"IF(LEN(D197)=3, 1, IF(LEN(D197)=12, 1, 0))","v":0},null,null,{"$f":"IF(OR(G197=\"Complex\",G197=\"Non-Complex\", G197=\"Non Complex\"),1,0)","v":0}]
[null,null,0,null,0,null,null,0]
[null,null,0,null,0,null,null,0]
[null,null,0,null,0,null,null,0]
[null,null,0,null,0,null,null,0]
[null,null,0,null,0,null,null,0]
[null,null,0,null,0,null,null,0]
[null,null,0,null,0,null,null,0]
[null,null,0,null,0,null,null,0]
[null,null,0,null,0,null,null,0]
[null,null,0,null,0,null,null,0]
[null,null,0,null,0,null,null,0]
[null,null,0,null,0,null,null,0]
[null,null,0,null,0,null,null,0]
[null,null,0,null,0,null,null,0]
[null,null,0,null,0,null,null,0]
[null,null,0,null,0,null,null,0]
[null,null,0,null,0,null,null,0]
[null,null,0,null,0,null,null,0]
[null,null,0,null,0,null,null,0]
[null,null,0,null,0,null,null,0]
[null,null,0,null,0,null,null,0]
[null,null,0,null,0,null,null,0]
[null,null,0,null,0,null,null,0]
[null,null,0,null,0,null,null,0]
[null,null,0,null,0,null,null,0]
[null,null,0,null,0,null,null,0]
[null,null,0,null,0,null,null,0]
[null,null,0,null,0,null,null,0]
[null,null,0,null,0,null,null,0]
[null,null,0,null,0,null,null,0]
[null,null,0,null,0,null,null,0]
[null,null,0,null,0,null,null,0]
[null,null,0,null,0,null,null,0]
[null,null,0,null,0,null,null,0]
[null,null,0,null,0,null,null,0]
[null,null,0,null,0,null,null,0]
[null,null,0,null,0,null,null,0]
[null,null,0,null,0,null,null,0]
[null,null,0,null,0,null,null,0]
[null,null,0,null,0,null,null,0]
[null,null,0,null,0,null,null,0]
[null,null,0,null,0,null,null,0]
[null,null,0,null,0,null,null,0]
[null,null,0,null,0,null,null,0]
[null,null,0,null,0,null,null,0]
[null,null,0,null,0,null,null,0]
[null,null,0,null,0,null,null,0]
[null,null,0,null,0,null,null,0]
[null,null,0,null,0,null,null,0]
[null,null,0,null,0,null,null,0]
[null,null,0,null,0,null,null,0]
[null,null,0,null,0,null,null,0]
[null,null,0,null,0,null,null,0]
[null,null,0,null,0,null,null,0]
[null,null,0,null,0,null,null,0]
[null,null,0,null,0,null,null,0]
[null,null,0,null,0,null,null,0]
[null,null,0,null,0,null,null,0]
[null,null,0,null,0,null,null,0]
[null,null,0,null,0,null,null,0]
[null,null,0,null,0,null,null,0]
[null,null,0,null,0,null,null,0]
[null,null,0,null,0,null,null,0]
[null,null,{"$f":"IF(OR(B261=\"Transferable securities\",B261=\"Money-market instruments\",B261=\"Units in collective investment undertakings\",B261=\"Options\",B261=\"Futures\",B261=\"Swaps\",B261=\"Forward rate agreements\",B261=\"Financial Contracts for Differences\"),1,0)","v":0},null,{"$f":"IF(LEN(D261)=3, 1, IF(LEN(D261)=12, 1, 0))","v":0},null,null,{"$f":"IF(OR(G261=\"Complex\",G261=\"Non-Complex\", G261=\"Non Complex\"),1,0)","v":0}]
[null,null,0,null,0,null,null,0]
[null,null,0,null,0,null,null,0]
[null,null,0,null,0,null,null,0]
[null,null,0,null,0,null,null,0]
[null,null,0,null,0,null,null,0]
[null,null,0,null,0,null,null,0]
[null,null,0,null,0,null,null,0]
[null,null,0,null,0,null,null,0]
[null,null,0,null,0,null,null,0]
[null,null,0,null,0,null,null,0]
[null,null,0,null,0,null,null,0]
[null,null,0,null,0,null,null,0]
[null,null,0,null,0,null,null,0]
[null,null,0,null,0,null,null,0]
[null,null,0,null,0,null,null,0]
[null,null,0,null,0,null,null,0]
[null,null,0,null,0,null,null,0]
[null,null,0,null,0,null,null,0]
[null,null,0,null,0,null,null,0]
[null,null,0,null,0,null,null,0]
[null,null,0,null,0,null,null,0]
[null,null,0,null,0,null,null,0]
[null,null,0,null,0,null,null,0]
[null,null,0,null,0,null,null,0]
[null,null,0,null,0,null,null,0]
[null,null,0,null,0,null,null,0]
[null,null,0,null,0,null,null,0]
[null,null,0,null,0,null,null,0]
[null,null,0,null,0,null,null,0]
[null,null,0,null,0,null,null,0]
[null,null,0,null,0,null,null,0]
[null,null,0,null,0,null,null,0]
[null,null,0,null,0,null,null,0]
[null,null,0,null,0,null,null,0]
[null,null,0,null,0,null,null,0]
[null,null,0,null,0,null,null,0]
[null,null,0,null,0,null,null,0]
[null,null,0,null,0,null,null,0]
[null,null,0,null,0,null,null,0]
[null,null,0,null,0,null,null,0]
[null,null,0,null,0,null,null,0]
[null,null,0,null,0,null,null,0]
[null,null,0,null,0,null,null,0]
[null,null,0,null,0,null,null,0]
[null,null,0,null,0,null,null,0]
[null,null,0,null,0,null,null,0]
[null,null,0,null,0,null,null,0]
[null,null,0,null,0,null,null,0]
[null,null,0,null,0,null,null,0]
[null,null,0,null,0,null,null,0]
[null,null,0,null,0,null,null,0]
[null,null,0,null,0,null,null,0]
[null,null,0,null,0,null,null,0]
[null,null,0,null,0,null,null,0]
[null,null,0,null,0,null,null,0]
[null,null,0,null,0,null,null,0]
[null,null,0,null,0,null,null,0]
[null,null,0,null,0,null,null,0]
[null,null,0,null,0,null,null,0]
[null,null,0,null,0,null,null,0]
[null,null,0,null,0,null,null,0]
[null,null,0,null,0,null,null,0]
[null,null,0,null,0,null,null,0]
[null,null,{"$f":"IF(OR(B325=\"Transferable securities\",B325=\"Money-market instruments\",B325=\"Units in collective investment undertakings\",B325=\"Options\",B325=\"Futures\",B325=\"Swaps\",B325=\"Forward rate agreements\",B325=\"Financial Contracts for Differences\"),1,0)","v":0},null,{"$f":"IF(LEN(D325)=3, 1, IF(LEN(D325)=12, 1, 0))","v":0},null,null,{"$f":"IF(OR(G325=\"Complex\",G325=\"Non-Complex\", G325=\"Non Complex\"),1,0)","v":0}]
[null,null,0,null,0,null,null,0]
[null,null,0,null,0,null,null,0]
[null,null,0,null,0,null,null,0]
[null,null,0,null,0,null,null,0]
[null,null,0,null,0,null,null,0]
[null,null,0,null,0,null,null,0]
[null,null,0,null,0,null,null,0]
[null,null,0,null,0,null,null,0]
[null,null,0,null,0,null,null,0]
[null,null,0,null,0,null,null,0]
[null,null,0,null,0,null,null,0]
[null,null,0,null,0,null,null,0]
[null,null,0,null,0,null,null,0]
[null,null,0,null,0,null,null,0]
[null,null,0,null,0,null,null,0]
[null,null,0,null,0,null,null,0]
[null,null,0,null,0,null,null,0]
[null,null,0,null,0,null,null,0]
[null,null,0,null,0,null,null,0]
[null,null,0,null,0,null,null,0]
[null,null,0,null,0,null,null,0]
[null,null,0,null,0,null,null,0]
[null,null,0,null,0,null,null,0]
[null,null,0,null,0,null,null,0]
[null,null,0,null,0,null,null,0]
[null,null,0,null,0,null,null,0]
[null,null,0,null,0,null,null,0]
[null,null,0,null,0,null,null,0]
[null,null,0,null,0,null,null,0]
[null,null,0,null,0,null,null,0]
[null,null,0,null,0,null,null,0]
[null,null,0,null,0,null,null,0]
[null,null,0,null,0,null,null,0]
[null,null,0,null,0,null,null,0]
[null,null,0,null,0,null,null,0]
[null,null,0,null,0,null,null,0]
[null,null,0,null,0,null,null,0]
[null,null,0,null,0,null,null,0]
[null,null,0,null,0,null,null,0]
[null,null,0,null,0,null,null,0]
[null,null,0,null,0,null,null,0]
[null,null,0,null,0,null,null,0]
[null,null,0,null,0,null,null,0]
[null,null,0,null,0,null,null,0]
[null,null,0,null,0,null,null,0]
[null,null,0,null,0,null,null,0]
[null,null,0,null,0,null,null,0]
[null,null,0,null,0,null,null,0]
[null,null,0,null,0,null,null,0]
[null,null,0,null,0,null,null,0]
[null,null,0,null,0,null,null,0]
[null,null,0,null,0,null,null,0]
[null,null,0,null,0,null,null,0]
[null,null,0,null,0,null,null,0]
[null,null,0,null,0,null,null,0]
[null,null,0,null,0,null,null,0]
[null,null,0,null,0,null,null,0]
[null,null,0,null,0,null,null,0]
[null,null,0,null,0,null,null,0]
[null,null,0,null,0,null,null,0]
[null,null,0,null,0,null,null,0]
[null,null,0,null,0,null,null,0]
[null,null,0,null,0,null,null,0]
[null,null,{"$f":"IF(OR(B389=\"Transferable securities\",B389=\"Money-market instruments\",B389=\"Units in collective investment undertakings\",B389=\"Options\",B389=\"Futures\",B389=\"Swaps\",B389=\"Forward rate agreements\",B389=\"Financial Contracts for Differences\"),1,0)","v":0},null,{"$f":"IF(LEN(D389)=3, 1, IF(LEN(D389)=12, 1, 0))","v":0},null,null,{"$f":"IF(OR(G389=\"Complex\",G389=\"Non-Complex\", G389=\"Non Complex\"),1,0)","v":0}]
[null,null,0,null,0,null,null,0]
[null,null,0,null,0,null,null,0]
[null,null,0,null,0,null,null,0]
[null,null,0,null,0,null,null,0]
[null,null,0,null,0,null,null,0]
[null,null,0,null,0,null,null,0]
[null,null,0,null,0,null,null,0]
[null,null,0,null,0,null,null,0]
[null,null,0,null,0,null,null,0]
[null,null,0,null,0,null,null,0]
[null,null,0,null,0,null,null,0]
[null,null,0,null,0,null,null,0]
[null,null,0,null,0,null,null,0]
[null,null,0,null,0,null,null,0]
[null,null,0,null,0,null,null,0]
[null,null,0,null,0,null,null,0]
[null,null,0,null,0,null,null,0]
[null,null,0,null,0,null,null,0]
[null,null,0,null,0,null,null,0]
[null,null,0,null,0,null,null,0]
[null,null,0,null,0,null,null,0]
[null,null,0,null,0,null,null,0]
[null,null,0,null,0,null,null,0]
[null,null,0,null,0,null,null,0]
[null,null,0,null,0,null,null,0]
[null,null,0,null,0,null,null,0]
[null,null,0,null,0,null,null,0]
[null,null,0,null,0,null,null,0]
[null,null,0,null,0,null,null,0]
[null,null,0,null,0,null,null,0]
[null,null,0,null,0,null,null,0]
[null,null,0,null,0,null,null,0]
[null,null,0,null,0,null,null,0]
[null,null,0,null,0,null,null,0]
[null,null,0,null,0,null,null,0]
[null,null,0,null,0,null,null,0]
[null,null,0,null,0,null,null,0]
[null,null,0,null,0,null,null,0]
[null,null,0,null,0,null,null,0]
[null,null,0,null,0,null,null,0]
[null,null,0,null,0,null,null,0]
[null,null,0,null,0,null,null,0]
[null,null,0,null,0,null,null,0]
[null,null,0,null,0,null,null,0]
[null,null,0,null,0,null,null,0]
[null,null,0,null,0,null,null,0]
[null,null,0,null,0,null,null,0]
[null,null,0,null,0,null,null,0]
[null,null,0,null,0,null,null,0]
[null,null,0,null,0,null,null,0]
[null,null,0,null,0,null,null,0]
[null,null,0,null,0,null,null,0]
[null,null,0,null,0,null,null,0]
[null,null,0,null,0,null,null,0]
[null,null,0,null,0,null,null,0]
[null,null,0,null,0,null,null,0]
[null,null,0,null,0,null,null,0]
[null,null,0,null,0,null,null,0]
[null,null,0,null,0,null,null,0]
[null,null,0,null,0,null,null,0]
[null,null,0,null,0,null,null,0]
[null,null,0,null,0,null,null,0]
[null,null,0,null,0,null,null,0]
[null,null,{"$f":"IF(OR(B453=\"Transferable securities\",B453=\"Money-market instruments\",B453=\"Units in collective investment undertakings\",B453=\"Options\",B453=\"Futures\",B453=\"Swaps\",B453=\"Forward rate agreements\",B453=\"Financial Contracts for Differences\"),1,0)","v":0},null,{"$f":"IF(LEN(D453)=3, 1, IF(LEN(D453)=12, 1, 0))","v":0},null,null,{"$f":"IF(OR(G453=\"Complex\",G453=\"Non-Complex\", G453=\"Non Complex\"),1,0)","v":0}]
[null,null,0,null,0,null,null,0]
[null,null,0,null,0,null,null,0]
[null,null,0,null,0,null,null,0]
[null,null,0,null,0,null,null,0]
[null,null,0,null,0,null,null,0]
[null,null,0,null,0,null,null,0]
[null,null,0,null,0,null,null,0]
[null,null,0,null,0,null,null,0]
[null,null,0,null,0,null,null,0]
[null,null,0,null,0,null,null,0]
[null,null,0,null,0,null,null,0]
[null,null,0,null,0,null,null,0]
[null,null,0,null,0,null,null,0]
[null,null,0,null,0,null,null,0]
[null,null,0,null,0,null,null,0]
[null,null,0,null,0,null,null,0]
[null,null,0,null,0,null,null,0]
[null,null,0,null,0,null,null,0]
[null,null,0,null,0,null,null,0]
[null,null,0,null,0,null,null,0]
[null,null,0,null,0,null,null,0]
[null,null,0,null,0,null,null,0]
[null,null,0,null,0,null,null,0]
[null,null,0,null,0,null,null,0]
[null,null,0,null,0,null,null,0]
[null,null,0,null,0,null,null,0]
[null,null,0,null,0,null,null,0]
[null,null,0,null,0,null,null,0]
[null,null,0,null,0,null,null,0]
[null,null,0,null,0,null,null,0]
[null,null,0,null,0,null,null,0]
[null,null,0,null,0,null,null,0]
[null,null,0,null,0,null,null,0]
[null,null,0,null,0,null,null,0]
[null,null,0,null,0,null,null,0]
[null,null,0,null,0,null,null,0]
[null,null,0,null,0,null,null,0]
[null,null,0,null,0,null,null,0]
[null,null,0,null,0,null,null,0]
[null,null,0,null,0,null,null,0]
[null,null,0,null,0,null,null,0]
[null,null,0,null,0,null,null,0]
[null,null,0,null,0,null,null,0]
[null,null,0,null,0,null,null,0]
[null,null,0,null,0,null,null,0]
[null,null,0,null,0,null,null,0]
[null,null,0,null,0,null,null,0]
[null,null,0,null,0,null,null,0]
[null,null,0,null,0,null,null,0]
[null,null,0,null,0,null,null,0]
[null,null,0,null,0,null,null,0]
[null,null,0,null,0,null,null,0]
[null,null,0,null,0,null,null,0]
[null,null,0,null,0,null,null,0]
[null,null,0,null,0,null,null,0]
[null,null,0,null,0,null,null,0]
[null,null,0,null,0,null,null,0]
[null,null,0,null,0,null,null,0]
[null,null,0,null,0,null,null,0]
[null,null,0,null,0,null,null,0]
[null,null,0,null,0,null,null,0]
[null,null,0,null,0,null,null,0]
[null,null,0,null,0,null,null,0]
[null,null,{"$f":"IF(OR(B517=\"Transferable securities\",B517=\"Money-market instruments\",B517=\"Units in collective investment undertakings\",B517=\"Options\",B517=\"Futures\",B517=\"Swaps\",B517=\"Forward rate agreements\",B517=\"Financial Contracts for Differences\"),1,0)","v":0},null,{"$f":"IF(LEN(D517)=3, 1, IF(LEN(D517)=12, 1, 0))","v":0},null,null,{"$f":"IF(OR(G517=\"Complex\",G517=\"Non-Complex\", G517=\"Non Complex\"),1,0)","v":0}]
[null,null,0,null,0,null,null,0]
[null,null,0,null,0,null,null,0]
[null,null,0,null,0,null,null,0]
[null,null,0,null,0,null,null,0]
[null,null,0,null,0,null,null,0]
[null,null,0,null,0,null,null,0]
[null,null,0,null,0,null,null,0]
[null,null,0,null,0,null,null,0]
[null,null,0,null,0,null,null,0]
[null,null,0,null,0,null,null,0]
[null,null,0,null,0,null,null,0]
[null,null,0,null,0,null,null,0]
[null,null,0,null,0,null,null,0]
[null,null,0,null,0,null,null,0]
[null,null,0,null,0,null,null,0]
[null,null,0,null,0,null,null,0]
[null,null,0,null,0,null,null,0]
[null,null,0,null,0,null,null,0]
[null,null,0,null,0,null,null,0]
[null,null,0,null,0,null,null,0]
[null,null,0,null,0,null,null,0]
[null,null,0,null,0,null,null,0]
[null,null,0,null,0,null,null,0]
[null,null,0,null,0,null,null,0]
[null,null,0,null,0,null,null,0]
[null,null,0,null,0,null,null,0]
[null,null,0,null,0,null,null,0]
[null,null,0,null,0,null,null,0]
[null,null,0,null,0,null,null,0]
[null,null,0,null,0,null,null,0]
[null,null,0,null,0,null,null,0]
[null,null,0,null,0,null,null,0]
[null,null,0,null,0,null,null,0]
[null,null,0,null,0,null,null,0]
[null,null,0,null,0,null,null,0]
[null,null,0,null,0,null,null,0]
[null,null,0,null,0,null,null,0]
[null,null,0,null,0,null,null,0]
[null,null,0,null,0,null,null,0]
[null,null,0,null,0,null,null,0]
[null,null,0,null,0,null,null,0]
[null,null,0,null,0,null,null,0]
[null,null,0,null,0,null,null,0]
[null,null,0,null,0,null,null,0]
[null,null,0,null,0,null,null,0]
[null,null,0,null,0,null,null,0]
[null,null,0,null,0,null,null,0]
[null,null,0,null,0,null,null,0]
[null,null,0,null,0,null,null,0]
[null,null,0,null,0,null,null,0]
[null,null,0,null,0,null,null,0]
[null,null,0,null,0,null,null,0]
[null,null,0,null,0,null,null,0]
[null,null,0,null,0,null,null,0]
[null,null,0,null,0,null,null,0]
[null,null,0,null,0,null,null,0]
[null,null,0,null,0,null,null,0]
[null,null,0,null,0,null,null,0]
[null,null,0,null,0,null,null,0]
[null,null,0,null,0,null,null,0]
[null,null,0,null,0,null,null,0]
[null,null,0,null,0,null,null,0]
[null,null,0,null,0,null,null,0]
[null,null,{"$f":"IF(OR(B581=\"Transferable securities\",B581=\"Money-market instruments\",B581=\"Units in collective investment undertakings\",B581=\"Options\",B581=\"Futures\",B581=\"Swaps\",B581=\"Forward rate agreements\",B581=\"Financial Contracts for Differences\"),1,0)","v":0},null,{"$f":"IF(LEN(D581)=3, 1, IF(LEN(D581)=12, 1, 0))","v":0},null,null,{"$f":"IF(OR(G581=\"Complex\",G581=\"Non-Complex\", G581=\"Non Complex\"),1,0)","v":0}]
[null,null,0,null,0,null,null,0]
[null,null,0,null,0,null,null,0]
[null,null,0,null,0,null,null,0]
[null,null,0,null,0,null,null,0]
[null,null,0,null,0,null,null,0]
[null,null,0,null,0,null,null,0]
[null,null,0,null,0,null,null,0]
[null,null,0,null,0,null,null,0]
[null,null,0,null,0,null,null,0]
[null,null,0,null,0,null,null,0]
[null,null,0,null,0,null,null,0]
[null,null,0,null,0,null,null,0]
[null,null,0,null,0,null,null,0]
[null,null,0,null,0,null,null,0]
[null,null,0,null,0,null,null,0]
[null,null,0,null,0,null,null,0]
[null,null,0,null,0,null,null,0]
[null,null,0,null,0,null,null,0]
[null,null,0,null,0,null,null,0]
[null,null,0,null,0,null,null,0]
[null,null,0,null,0,null,null,0]
[null,null,0,null,0,null,null,0]
[null,null,0,null,0,null,null,0]
[null,null,0,null,0,null,null,0]
[null,null,0,null,0,null,null,0]
[null,null,0,null,0,null,null,0]
[null,null,0,null,0,null,null,0]
[null,null,0,null,0,null,null,0]
[null,null,0,null,0,null,null,0]
[null,null,0,null,0,null,null,0]
[null,null,0,null,0,null,null,0]
[null,null,0,null,0,null,null,0]
[null,null,0,null,0,null,null,0]
[null,null,0,null,0,null,null,0]
[null,null,0,null,0,null,null,0]
[null,null,0,null,0,null,null,0]
[null,null,0,null,0,null,null,0]
[null,null,0,null,0,null,null,0]
[null,null,0,null,0,null,null,0]
[null,null,0,null,0,null,null,0]
[null,null,0,null,0,null,null,0]
[null,null,0,null,0,null,null,0]
[null,null,0,null,0,null,null,0]
[null,null,0,null,0,null,null,0]
[null,null,0,null,0,null,null,0]
[null,null,0,null,0,null,null,0]
[null,null,0,null,0,null,null,0]
[null,null,0,null,0,null,null,0]
[null,null,0,null,0,null,null,0]
[null,null,0,null,0,null,null,0]
[null,null,0,null,0,null,null,0]
[null,null,0,null,0,null,null,0]
[null,null,0,null,0,null,null,0]
[null,null,0,null,0,null,null,0]
[null,null,0,null,0,null,null,0]
[null,null,0,null,0,null,null,0]
[null,null,0,null,0,null,null,0]
[null,null,0,null,0,null,null,0]
[null,null,0,null,0,null,null,0]
[null,null,0,null,0,null,null,0]
[null,null,0,null,0,null,null,0]
[null,null,0,null,0,null,null,0]
[null,null,0,null,0,null,null,0]
[null,null,{"$f":"IF(OR(B645=\"Transferable securities\",B645=\"Money-market instruments\",B645=\"Units in collective investment undertakings\",B645=\"Options\",B645=\"Futures\",B645=\"Swaps\",B645=\"Forward rate agreements\",B645=\"Financial Contracts for Differences\"),1,0)","v":0},null,{"$f":"IF(LEN(D645)=3, 1, IF(LEN(D645)=12, 1, 0))","v":0},null,null,{"$f":"IF(OR(G645=\"Complex\",G645=\"Non-Complex\", G645=\"Non Complex\"),1,0)","v":0}]
[null,null,0,null,0,null,null,0]
[null,null,0,null,0,null,null,0]
[null,null,0,null,0,null,null,0]
[null,null,0,null,0,null,null,0]
[null,null,0,null,0,null,null,0]
[null,null,0,null,0,null,null,0]
[null,null,0,null,0,null,null,0]
[null,null,0,null,0,null,null,0]
[null,null,0,null,0,null,null,0]
[null,null,0,null,0,null,null,0]
[null,null,0,null,0,null,null,0]
[null,null,0,null,0,null,null,0]
[null,null,0,null,0,null,null,0]
[null,null,0,null,0,null,null,0]
[null,null,0,null,0,null,null,0]
[null,null,0,null,0,null,null,0]
[null,null,0,null,0,null,null,0]
[null,null,0,null,0,null,null,0]
[null,null,0,null,0,null,null,0]
[null,null,0,null,0,null,null,0]
[null,null,0,null,0,null,null,0]
[null,null,0,null,0,null,null,0]
[null,null,0,null,0,null,null,0]
[null,null,0,null,0,null,null,0]
[null,null,0,null,0,null,null,0]
[null,null,0,null,0,null,null,0]
[null,null,0,null,0,null,null,0]
[null,null,0,null,0,null,null,0]
[null,null,0,null,0,null,null,0]
[null,null,0,null,0,null,null,0]
[null,null,0,null,0,null,null,0]
[null,null,0,null,0,null,null,0]
[null,null,0,null,0,null,null,0]
[null,null,0,null,0,null,null,0]
[null,null,0,null,0,null,null,0]
[null,null,0,null,0,null,null,0]
[null,null,0,null,0,null,null,0]
[null,null,0,null,0,null,null,0]
[null,null,0,null,0,null,null,0]
[null,null,0,null,0,null,null,0]
[null,null,0,null,0,null,null,0]
[null,null,0,null,0,null,null,0]
[null,null,0,null,0,null,null,0]
[null,null,0,null,0,null,null,0]
[null,null,0,null,0,null,null,0]
[null,null,0,null,0,null,null,0]
[null,null,0,null,0,null,null,0]
[null,null,0,null,0,null,null,0]
[null,null,0,null,0,null,null,0]
[null,null,0,null,0,null,null,0]
[null,null,0,null,0,null,null,0]
[null,null,0,null,0,null,null,0]
[null,null,0,null,0,null,null,0]
[null,null,0,null,0,null,null,0]
[null,null,0,null,0,null,null,0]
[null,null,0,null,0,null,null,0]
[null,null,0,null,0,null,null,0]
[null,null,0,null,0,null,null,0]
[null,null,0,null,0,null,null,0]
[null,null,0,null,0,null,null,0]
[null,null,0,null,0,null,null,0]
[null,null,0,null,0,null,null,0]
[null,null,0,null,0,null,null,0]
[null,null,{"$f":"IF(OR(B709=\"Transferable securities\",B709=\"Money-market instruments\",B709=\"Units in collective investment undertakings\",B709=\"Options\",B709=\"Futures\",B709=\"Swaps\",B709=\"Forward rate agreements\",B709=\"Financial Contracts for Differences\"),1,0)","v":0},null,{"$f":"IF(LEN(D709)=3, 1, IF(LEN(D709)=12, 1, 0))","v":0},null,null,{"$f":"IF(OR(G709=\"Complex\",G709=\"Non-Complex\", G709=\"Non Complex\"),1,0)","v":0}]
[null,null,0,null,0,null,null,0]
[null,null,0,null,0,null,null,0]
[null,null,0,null,0,null,null,0]
[null,null,0,null,0,null,null,0]
[null,null,0,null,0,null,null,0]
[null,null,0,null,0,null,null,0]
[null,null,0,null,0,null,null,0]
[null,null,0,null,0,null,null,0]
[null,null,0,null,0,null,null,0]
[null,null,0,null,0,null,null,0]
[null,null,0,null,0,null,null,0]
[null,null,0,null,0,null,null,0]
[null,null,0,null,0,null,null,0]
[null,null,0,null,0,null,null,0]
[null,null,0,null,0,null,null,0]
[null,null,0,null,0,null,null,0]
[null,null,0,null,0,null,null,0]
[null,null,0,null,0,null,null,0]
[null,null,0,null,0,null,null,0]
[null,null,0,null,0,null,null,0]
[null,null,0,null,0,null,null,0]
[null,null,0,null,0,null,null,0]
[null,null,0,null,0,null,null,0]
[null,null,0,null,0,null,null,0]
[null,null,0,null,0,null,null,0]
[null,null,0,null,0,null,null,0]
[null,null,0,null,0,null,null,0]
[null,null,0,null,0,null,null,0]
[null,null,0,null,0,null,null,0]
[null,null,0,null,0,null,null,0]
[null,null,0,null,0,null,null,0]
[null,null,0,null,0,null,null,0]
[null,null,0,null,0,null,null,0]
[null,null,0,null,0,null,null,0]
[null,null,0,null,0,null,null,0]
[null,null,0,null,0,null,null,0]
[null,null,0,null,0,null,null,0]
[null,null,0,null,0,null,null,0]
[null,null,0,null,0,null,null,0]
[null,null,0,null,0,null,null,0]
[null,null,0,null,0,null,null,0]
[null,null,0,null,0,null,null,0]
[null,null,0,null,0,null,null,0]
[null,null,0,null,0,null,null,0]
[null,null,0,null,0,null,null,0]
[null,null,0,null,0,null,null,0]
[null,null,0,null,0,null,null,0]
[null,null,0,null,0,null,null,0]
[null,null,0,null,0,null,null,0]
[null,null,0,null,0,null,null,0]
[null,null,0,null,0,null,null,0]
[null,null,0,null,0,null,null,0]
[null,null,0,null,0,null,null,0]
[null,null,0,null,0,null,null,0]
[null,null,0,null,0,null,null,0]
[null,null,0,null,0,null,null,0]
[null,null,0,null,0,null,null,0]
[null,null,0,null,0,null,null,0]
[null,null,0,null,0,null,null,0]
[null,null,0,null,0,null,null,0]
[null,null,0,null,0,null,null,0]
[null,null,0,null,0,null,null,0]
[null,null,0,null,0,null,null,0]
[null,null,{"$f":"IF(OR(B773=\"Transferable securities\",B773=\"Money-market instruments\",B773=\"Units in collective investment undertakings\",B773=\"Options\",B773=\"Futures\",B773=\"Swaps\",B773=\"Forward rate agreements\",B773=\"Financial Contracts for Differences\"),1,0)","v":0},null,{"$f":"IF(LEN(D773)=3, 1, IF(LEN(D773)=12, 1, 0))","v":0},null,null,{"$f":"IF(OR(G773=\"Complex\",G773=\"Non-Complex\", G773=\"Non Complex\"),1,0)","v":0}]
[null,null,0,null,0,null,null,0]
[null,null,0,null,0,null,null,0]
[null,null,0,null,0,null,null,0]
[null,null,0,null,0,null,null,0]
[null,null,0,null,0,null,null,0]
[null,null,0,null,0,null,null,0]
[null,null,0,null,0,null,null,0]
[null,null,0,null,0,null,null,0]
[null,null,0,null,0,null,null,0]
[null,null,0,null,0,null,null,0]
[null,null,0,null,0,null,null,0]
[null,null,0,null,0,null,null,0]
[null,null,0,null,0,null,null,0]
[null,null,0,null,0,null,null,0]
[null,null,0,null,0,null,null,0]
[null,null,0,null,0,null,null,0]
[null,null,0,null,0,null,null,0]
[null,null,0,null,0,null,null,0]
[null,null,0,null,0,null,null,0]
[null,null,0,null,0,null,null,0]
[null,null,0,null,0,null,null,0]
[null,null,0,null,0,null,null,0]
[null,null,0,null,0,null,null,0]
[null,null,0,null,0,null,null,0]
[null,null,0,null,0,null,null,0]
[null,null,0,null,0,null,null,0]
[null,null,0,null,0,null,null,0]
[null,null,0,null,0,null,null,0]
[null,null,0,null,0,null,null,0]
[null,null,0,null,0,null,null,0]
[null,null,0,null,0,null,null,0]
[null,null,0,null,0,null,null,0]
[null,null,0,null,0,null,null,0]
[null,null,0,null,0,null,null,0]
[null,null,0,null,0,null,null,0]
[null,null,0,null,0,null,null,0]
[null,null,0,null,0,null,null,0]
[null,null,0,null,0,null,null,0]
[null,null,0,null,0,null,null,0]
[null,null,0,null,0,null,null,0]
[null,null,0,null,0,null,null,0]
[null,null,0,null,0,null,null,0]
[null,null,0,null,0,null,null,0]
[null,null,0,null,0,null,null,0]
[null,null,0,null,0,null,null,0]
[null,null,0,null,0,null,null,0]
[null,null,0,null,0,null,null,0]
[null,null,0,null,0,null,null,0]
[null,null,0,null,0,null,null,0]
[null,null,0,null,0,null,null,0]
[null,null,0,null,0,null,null,0]
[null,null,0,null,0,null,null,0]
[null,null,0,null,0,null,null,0]
[null,null,0,null,0,null,null,0]
[null,null,0,null,0,null,null,0]
[null,null,0,null,0,null,null,0]
[null,null,0,null,0,null,null,0]
[null,null,0,null,0,null,null,0]
[null,null,0,null,0,null,null,0]
[null,null,0,null,0,null,null,0]
[null,null,0,null,0,null,null,0]
[null,null,0,null,0,null,null,0]
[null,null,0,null,0,null,null,0]
[null,null,{"$f":"IF(OR(B837=\"Transferable securities\",B837=\"Money-market instruments\",B837=\"Units in collective investment undertakings\",B837=\"Options\",B837=\"Futures\",B837=\"Swaps\",B837=\"Forward rate agreements\",B837=\"Financial Contracts for Differences\"),1,0)","v":0},null,{"$f":"IF(LEN(D837)=3, 1, IF(LEN(D837)=12, 1, 0))","v":0},null,null,{"$f":"IF(OR(G837=\"Complex\",G837=\"Non-Complex\", G837=\"Non Complex\"),1,0)","v":0}]
[null,null,0,null,0,null,null,0]
[null,null,0,null,0,null,null,0]
[null,null,0,null,0,null,null,0]
[null,null,0,null,0,null,null,0]
[null,null,0,null,0,null,null,0]
[null,null,0,null,0,null,null,0]
[null,null,0,null,0,null,null,0]
[null,null,0,null,0,null,null,0]
[null,null,0,null,0,null,null,0]
[null,null,0,null,0,null,null,0]
[null,null,0,null,0,null,null,0]
[null,null,0,null,0,null,null,0]
[null,null,0,null,0,null,null,0]
[null,null,0,null,0,null,null,0]
[null,null,0,null,0,null,null,0]
[null,null,0,null,0,null,null,0]
[null,null,0,null,0,null,null,0]
[null,null,0,null,0,null,null,0]
[null,null,0,null,0,null,null,0]
[null,null,0,null,0,null,null,0]
[null,null,0,null,0,null,null,0]
[null,null,0,null,0,null,null,0]
[null,null,0,null,0,null,null,0]
[null,null,0,null,0,null,null,0]
[null,null,0,null,0,null,null,0]
[null,null,0,null,0,null,null,0]
[null,null,0,null,0,null,null,0]
[null,null,0,null,0,null,null,0]
[null,null,0,null,0,null,null,0]
[null,null,0,null,0,null,null,0]
[null,null,0,null,0,null,null,0]
[null,null,0,null,0,null,null,0]
[null,null,0,null,0,null,null,0]
[null,null,0,null,0,null,null,0]
[null,null,0,null,0,null,null,0]
[null,null,0,null,0,null,null,0]
[null,null,0,null,0,null,null,0]
[null,null,0,null,0,null,null,0]
[null,null,0,null,0,null,null,0]
[null,null,0,null,0,null,null,0]
[null,null,0,null,0,null,null,0]
[null,null,0,null,0,null,null,0]
[null,null,0,null,0,null,null,0]
[null,null,0,null,0,null,null,0]
[null,null,0,null,0,null,null,0]
[null,null,0,null,0,null,null,0]
[null,null,0,null,0,null,null,0]
[null,null,0,null,0,null,null,0]
[null,null,0,null,0,null,null,0]
[null,null,0,null,0,null,null,0]
[null,null,0,null,0,null,null,0]
[null,null,0,null,0,null,null,0]
[null,null,0,null,0,null,null,0]
[null,null,0,null,0,null,null,0]
[null,null,0,null,0,null,null,0]
[null,null,0,null,0,null,null,0]
[null,null,0,null,0,null,null,0]
[null,null,0,null,0,null,null,0]
[null,null,0,null,0,null,null,0]
[null,null,0,null,0,null,null,0]
[null,null,0,null,0,null,null,0]
[null,null,0,null,0,null,null,0]
[null,null,0,null,0,null,null,0]
[null,null,{"$f":"IF(OR(B901=\"Transferable securities\",B901=\"Money-market instruments\",B901=\"Units in collective investment undertakings\",B901=\"Options\",B901=\"Futures\",B901=\"Swaps\",B901=\"Forward rate agreements\",B901=\"Financial Contracts for Differences\"),1,0)","v":0},null,{"$f":"IF(LEN(D901)=3, 1, IF(LEN(D901)=12, 1, 0))","v":0},null,null,{"$f":"IF(OR(G901=\"Complex\",G901=\"Non-Complex\", G901=\"Non Complex\"),1,0)","v":0}]
[null,null,0,null,0,null,null,0]
[null,null,0,null,0,null,null,0]
[null,null,0,null,0,null,null,0]
[null,null,0,null,0,null,null,0]
[null,null,0,null,0,null,null,0]
[null,null,0,null,0,null,null,0]
[null,null,0,null,0,null,null,0]
[null,null,0,null,0,null,null,0]
[null,null,0,null,0,null,null,0]
[null,null,0,null,0,null,null,0]
[null,null,0,null,0,null,null,0]
[null,null,0,null,0,null,null,0]
[null,null,0,null,0,null,null,0]
[null,null,0,null,0,null,null,0]
[null,null,0,null,0,null,null,0]
[null,null,0,null,0,null,null,0]
[null,null,0,null,0,null,null,0]
[null,null,0,null,0,null,null,0]
[null,null,0,null,0,null,null,0]
[null,null,0,null,0,null,null,0]
[null,null,0,null,0,null,null,0]
[null,null,0,null,0,null,null,0]
[null,null,0,null,0,null,null,0]
[null,null,0,null,0,null,null,0]
[null,null,0,null,0,null,null,0]
[null,null,0,null,0,null,null,0]
[null,null,0,null,0,null,null,0]
[null,null,0,null,0,null,null,0]
[null,null,0,null,0,null,null,0]
[null,null,0,null,0,null,null,0]
[null,null,0,null,0,null,null,0]
[null,null,0,null,0,null,null,0]
[null,null,0,null,0,null,null,0]
[null,null,0,null,0,null,null,0]
[null,null,0,null,0,null,null,0]
[null,null,0,null,0,null,null,0]
[null,null,0,null,0,null,null,0]
[null,null,0,null,0,null,null,0]
[null,null,0,null,0,null,null,0]
[null,null,0,null,0,null,null,0]
[null,null,0,null,0,null,null,0]
[null,null,0,null,0,null,null,0]
[null,null,0,null,0,null,null,0]
[null,null,0,null,0,null,null,0]
[null,null,0,null,0,null,null,0]
[null,null,0,null,0,null,null,0]
[null,null,0,null,0,null,null,0]
[null,null,0,null,0,null,null,0]
[null,null,0,null,0,null,null,0]
[null,null,0,null,0,null,null,0]
[null,null,0,null,0,null,null,0]
[null,null,0,null,0,null,null,0]
[null,null,0,null,0,null,null,0]
[null,null,0,null,0,null,null,0]
[null,null,0,null,0,null,null,0]
[null,null,0,null,0,null,null,0]
[null,null,0,null,0,null,null,0]
[null,null,0,null,0,null,null,0]
[null,null,0,null,0,null,null,0]
[null,null,0,null,0,null,null,0]
[null,null,0,null,0,null,null,0]
[null,null,0,null,0,null,null,0]
[null,null,0,null,0,null,null,0]
[null,null,{"$f":"IF(OR(B965=\"Transferable securities\",B965=\"Money-market instruments\",B965=\"Units in collective investment undertakings\",B965=\"Options\",B965=\"Futures\",B965=\"Swaps\",B965=\"Forward rate agreements\",B965=\"Financial Contracts for Differences\"),1,0)","v":0},null,{"$f":"IF(LEN(D965)=3, 1, IF(LEN(D965)=12, 1, 0))","v":0},null,null,{"$f":"IF(OR(G965=\"Complex\",G965=\"Non-Complex\", G965=\"Non Complex\"),1,0)","v":0}]
[null,null,0,null,0,null,null,0]
[null,null,0,null,0,null,null,0]
[null,null,0,null,0,null,null,0]
[null,null,0,null,0,null,null,0]
[null,null,0,null,0,null,null,0]
[null,null,0,null,0,null,null,0]
[null,null,0,null,0,null,null,0]
[null,null,0,null,0,null,null,0]
[null,null,0,null,0,null,null,0]
[null,null,0,null,0,null,null,0]
[null,null,0,null,0,null,null,0]
[null,null,0,null,0,null,null,0]
[null,null,0,null,0,null,null,0]
[null,null,0,null,0,null,null,0]
[null,null,0,null,0,null,null,0]
[null,null,0,null,0,null,null,0]
[null,null,0,null,0,null,null,0]
[null,null,0,null,0,null,null,0]
[null,null,0,null,0,null,null,0]
[null,null,0,null,0,null,null,0]
[null,null,0,null,0,null,null,0]
[null,null,0,null,0,null,null,0]
[null,null,0,null,0,null,null,0]
[null,null,0,null,0,null,null,0]
[null,null,0,null,0,null,null,0]
[null,null,0,null,0,null,null,0]
[null,null,0,null,0,null,null,0]
[null,null,0,null,0,null,null,0]
[null,null,0,null,0,null,null,0]
[null,null,0,null,0,null,null,0]
[null,null,0,null,0,null,null,0]
[null,null,0,null,0,null,null,0]
[null,null,0,null,0,null,null,0]
[null,null,0,null,0,null,null,0]
[null,null,0,null,0,null,null,0]
[null,null,0,null,0,null,null,0]
[null,null,0,null,0,null,null,0]
[null,null,0,null,0,null,null,0]
[null,null,0,null,0,null,null,0]
[null,null,0,null,0,null,null,0]
[null,null,0,null,0,null,null,0]
[null,null,0,null,0,null,null,0]
[null,null,0,null,0,null,null,0]
[null,null,0,null,0,null,null,0]
[null,null,0,null,0,null,null,0]
[null,null,0,null,0,null,null,0]
[null,null,0,null,0,null,null,0]
[null,null,0,null,0,null,null,0]
[null,null,0,null,0,null,null,0]
[null,null,0,null,0,null,null,0]
[null,null,0,null,0,null,null,0]
[null,null,0,null,0,null,null,0]
[null,null,0,null,0,null,null,0]
[null,null,0,null,0,null,null,0]
[null,null,0,null,0,null,null,0]
[null,null,0,null,0,null,null,0]
[null,null,0,null,0,null,null,0]
[null,null,0,null,0,null,null,0]
[null,null,0,null,0,null,null,0]
[null,null,0,null,0,null,null,0]
[null,null,0,null,0,null,null,0]
[null,null,0,null,0,null,null,0]
[null,null,0,null,0,null,null,0]
[null,null,{"$f":"IF(OR(B1029=\"Transferable securities\",B1029=\"Money-market instruments\",B1029=\"Units in collective investment undertakings\",B1029=\"Options\",B1029=\"Futures\",B1029=\"Swaps\",B1029=\"Forward rate agreements\",B1029=\"Financial Contracts for Differences\"),1,0)","v":0},null,{"$f":"IF(LEN(D1029)=3, 1, IF(LEN(D1029)=12, 1, 0))","v":0},null,null,{"$f":"IF(OR(G1029=\"Complex\",G1029=\"Non-Complex\", G1029=\"Non Complex\"),1,0)","v":0}]
[null,null,0,null,0,null,null,0]
[null,null,0,null,0,null,null,0]
[null,null,0,null,0,null,null,0]
[null,null,0,null,0,null,null,0]
[null,null,0,null,0,null,null,0]
[null,null,0,null,0,null,null,0]
[null,null,0,null,0,null,null,0]
[null,null,0,null,0,null,null,0]
[null,null,0,null,0,null,null,0]
[null,null,0,null,0,null,null,0]
[null,null,0,null,0,null,null,0]
[null,null,0,null,0,null,null,0]
[null,null,0,null,0,null,null,0]
[null,null,0,null,0,null,null,0]
[null,null,0,null,0,null,null,0]
[null,null,0,null,0,null,null,0]
[null,null,0,null,0,null,null,0]
[null,null,0,null,0,null,null,0]
[null,null,0,null,0,null,null,0]
[null,null,0,null,0,null,null,0]
[null,null,0,null,0,null,null,0]
[null,null,0,null,0,null,null,0]
[null,null,0,null,0,null,null,0]
[null,null,0,null,0,null,null,0]
[null,null,0,null,0,null,null,0]
[null,null,0,null,0,null,null,0]
[null,null,0,null,0,null,null,0]
[null,null,0,null,0,null,null,0]
[null,null,0,null,0,null,null,0]
[null,null,0,null,0,null,null,0]
[null,null,0,null,0,null,null,0]
[null,null,0,null,0,null,null,0]
[null,null,0,null,0,null,null,0]
[null,null,0,null,0,null,null,0]
[null,null,0,null,0,null,null,0]
[null,null,0,null,0,null,null,0]
[null,null,0,null,0,null,null,0]
[null,null,0,null,0,null,null,0]
[null,null,0,null,0,null,null,0]
[null,null,0,null,0,null,null,0]
[null,null,0,null,0,null,null,0]
[null,null,0,null,0,null,null,0]
[null,null,0,null,0,null,null,0]
[null,null,0,null,0,null,null,0]
[null,null,0,null,0,null,null,0]
[null,null,0,null,0,null,null,0]
[null,null,0,null,0,null,null,0]
[null,null,0,null,0,null,null,0]
[null,null,0,null,0,null,null,0]
[null,null,0,null,0,null,null,0]
[null,null,0,null,0,null,null,0]
[null,null,0,null,0,null,null,0]
[null,null,0,null,0,null,null,0]
[null,null,0,null,0,null,null,0]
[null,null,0,null,0,null,null,0]
[null,null,0,null,0,null,null,0]
[null,null,0,null,0,null,null,0]
[null,null,0,null,0,null,null,0]
[null,null,0,null,0,null,null,0]
[null,null,0,null,0,null,null,0]
[null,null,0,null,0,null,null,0]
[null,null,0,null,0,null,null,0]
[null,null,0,null,0,null,null,0]
[null,null,{"$f":"IF(OR(B1093=\"Transferable securities\",B1093=\"Money-market instruments\",B1093=\"Units in collective investment undertakings\",B1093=\"Options\",B1093=\"Futures\",B1093=\"Swaps\",B1093=\"Forward rate agreements\",B1093=\"Financial Contracts for Differences\"),1,0)","v":0},null,{"$f":"IF(LEN(D1093)=3, 1, IF(LEN(D1093)=12, 1, 0))","v":0},null,null,{"$f":"IF(OR(G1093=\"Complex\",G1093=\"Non-Complex\", G1093=\"Non Complex\"),1,0)","v":0}]
[null,null,0,null,0,null,null,0]
[null,null,0,null,0,null,null,0]
[null,null,0,null,0,null,null,0]
[null,null,0,null,0,null,null,0]
[null,null,0,null,0,null,null,0]
[null,null,0,null,0,null,null,0]
[null,null,0,null,0,null,null,0]
[null,null,0,null,0,null,null,0]
[null,null,0,null,0,null,null,0]
[null,null,0,null,0,null,null,0]
[null,null,0,null,0,null,null,0]
[null,null,0,null,0,null,null,0]
[null,null,0,null,0,null,null,0]
[null,null,0,null,0,null,null,0]
[null,null,0,null,0,null,null,0]
[null,null,0,null,0,null,null,0]
[null,null,0,null,0,null,null,0]
[null,null,0,null,0,null,null,0]
[null,null,0,null,0,null,null,0]
[null,null,0,null,0,null,null,0]
[null,null,0,null,0,null,null,0]
[null,null,0,null,0,null,null,0]
[null,null,0,null,0,null,null,0]
[null,null,0,null,0,null,null,0]
[null,null,0,null,0,null,null,0]
[null,null,0,null,0,null,null,0]
[null,null,0,null,0,null,null,0]
[null,null,0,null,0,null,null,0]
[null,null,0,null,0,null,null,0]
[null,null,0,null,0,null,null,0]
[null,null,0,null,0,null,null,0]
[null,null,0,null,0,null,null,0]
[null,null,0,null,0,null,null,0]
[null,null,0,null,0,null,null,0]
[null,null,0,null,0,null,null,0]
[null,null,0,null,0,null,null,0]
[null,null,0,null,0,null,null,0]
[null,null,0,null,0,null,null,0]
[null,null,0,null,0,null,null,0]
[null,null,0,null,0,null,null,0]
[null,null,0,null,0,null,null,0]
[null,null,0,null,0,null,null,0]
[null,null,0,null,0,null,null,0]
[null,null,0,null,0,null,null,0]
[null,null,0,null,0,null,null,0]
[null,null,0,null,0,null,null,0]
[null,null,0,null,0,null,null,0]
[null,null,0,null,0,null,null,0]
[null,null,0,null,0,null,null,0]
[null,null,0,null,0,null,null,0]
[null,null,0,null,0,null,null,0]
[null,null,0,null,0,null,null,0]
[null,null,0,null,0,null,null,0]
[null,null,0,null,0,null,null,0]
[null,null,0,null,0,null,null,0]
[null,null,0,null,0,null,null,0]
[null,null,0,null,0,null,null,0]
[null,null,0,null,0,null,null,0]
[null,null,0,null,0,null,null,0]
[null,null,0,null,0,null,null,0]
[null,null,0,null,0,null,null,0]
[null,null,0,null,0,null,null,0]
[null,null,0,null,0,null,null,0]
[null,null,{"$f":"IF(OR(B1157=\"Transferable securities\",B1157=\"Money-market instruments\",B1157=\"Units in collective investment undertakings\",B1157=\"Options\",B1157=\"Futures\",B1157=\"Swaps\",B1157=\"Forward rate agreements\",B1157=\"Financial Contracts for Differences\"),1,0)","v":0},null,{"$f":"IF(LEN(D1157)=3, 1, IF(LEN(D1157)=12, 1, 0))","v":0},null,null,{"$f":"IF(OR(G1157=\"Complex\",G1157=\"Non-Complex\", G1157=\"Non Complex\"),1,0)","v":0}]
[null,null,0,null,0,null,null,0]
[null,null,0,null,0,null,null,0]
[null,null,0,null,0,null,null,0]
[null,null,0,null,0,null,null,0]
[null,null,0,null,0,null,null,0]
[null,null,0,null,0,null,null,0]
[null,null,0,null,0,null,null,0]
[null,null,0,null,0,null,null,0]
[null,null,0,null,0,null,null,0]
[null,null,0,null,0,null,null,0]
[null,null,0,null,0,null,null,0]
[null,null,0,null,0,null,null,0]
[null,null,0,null,0,null,null,0]
[null,null,0,null,0,null,null,0]
[null,null,0,null,0,null,null,0]
[null,null,0,null,0,null,null,0]
[null,null,0,null,0,null,null,0]
[null,null,0,null,0,null,null,0]
[null,null,0,null,0,null,null,0]
[null,null,0,null,0,null,null,0]
[null,null,0,null,0,null,null,0]
[null,null,0,null,0,null,null,0]
[null,null,0,null,0,null,null,0]
[null,null,0,null,0,null,null,0]
[null,null,0,null,0,null,null,0]
[null,null,0,null,0,null,null,0]
[null,null,0,null,0,null,null,0]
[null,null,0,null,0,null,null,0]
[null,null,0,null,0,null,null,0]
[null,null,0,null,0,null,null,0]
[null,null,0,null,0,null,null,0]
[null,null,0,null,0,null,null,0]
[null,null,0,null,0,null,null,0]
[null,null,0,null,0,null,null,0]
[null,null,0,null,0,null,null,0]
[null,null,0,null,0,null,null,0]
[null,null,0,null,0,null,null,0]
[null,null,0,null,0,null,null,0]
[null,null,0,null,0,null,null,0]
[null,null,0,null,0,null,null,0]
[null,null,0,null,0,null,null,0]
[null,null,0,null,0,null,null,0]
[null,null,0,null,0,null,null,0]
[null,null,0,null,0,null,null,0]
[null,null,0,null,0,null,null,0]
[null,null,0,null,0,null,null,0]
[null,null,0,null,0,null,null,0]
[null,null,0,null,0,null,null,0]
[null,null,0,null,0,null,null,0]
[null,null,0,null,0,null,null,0]
[null,null,0,null,0,null,null,0]
[null,null,0,null,0,null,null,0]
[null,null,0,null,0,null,null,0]
[null,null,0,null,0,null,null,0]
[null,null,0,null,0,null,null,0]
[null,null,0,null,0,null,null,0]
[null,null,0,null,0,null,null,0]
[null,null,0,null,0,null,null,0]
[null,null,0,null,0,null,null,0]
[null,null,0,null,0,null,null,0]
[null,null,0,null,0,null,null,0]
[null,null,0,null,0,null,null,0]
[null,null,0,null,0,null,null,0]
[null,null,{"$f":"IF(OR(B1221=\"Transferable securities\",B1221=\"Money-market instruments\",B1221=\"Units in collective investment undertakings\",B1221=\"Options\",B1221=\"Futures\",B1221=\"Swaps\",B1221=\"Forward rate agreements\",B1221=\"Financial Contracts for Differences\"),1,0)","v":0},null,{"$f":"IF(LEN(D1221)=3, 1, IF(LEN(D1221)=12, 1, 0))","v":0},null,null,{"$f":"IF(OR(G1221=\"Complex\",G1221=\"Non-Complex\", G1221=\"Non Complex\"),1,0)","v":0}]
[null,null,0,null,0,null,null,0]
[null,null,0,null,0,null,null,0]
[null,null,0,null,0,null,null,0]
[null,null,0,null,0,null,null,0]
[null,null,0,null,0,null,null,0]
[null,null,0,null,0,null,null,0]
[null,null,0,null,0,null,null,0]
[null,null,0,null,0,null,null,0]
[null,null,0,null,0,null,null,0]
[null,null,0,null,0,null,null,0]
[null,null,0,null,0,null,null,0]
[null,null,0,null,0,null,null,0]
[null,null,0,null,0,null,null,0]
[null,null,0,null,0,null,null,0]
[null,null,0,null,0,null,null,0]
[null,null,0,null,0,null,null,0]
[null,null,0,null,0,null,null,0]
[null,null,0,null,0,null,null,0]
[null,null,0,null,0,null,null,0]
[null,null,0,null,0,null,null,0]
[null,null,0,null,0,null,null,0]
[null,null,0,null,0,null,null,0]
[null,null,0,null,0,null,null,0]
[null,null,0,null,0,null,null,0]
[null,null,0,null,0,null,null,0]
[null,null,0,null,0,null,null,0]
[null,null,0,null,0,null,null,0]
[null,null,0,null,0,null,null,0]
[null,null,0,null,0,null,null,0]
[null,null,0,null,0,null,null,0]
[null,null,0,null,0,null,null,0]
[null,null,0,null,0,null,null,0]
[null,null,0,null,0,null,null,0]
[null,null,0,null,0,null,null,0]
[null,null,0,null,0,null,null,0]
[null,null,0,null,0,null,null,0]
[null,null,0,null,0,null,null,0]
[null,null,0,null,0,null,null,0]
[null,null,0,null,0,null,null,0]
[null,null,0,null,0,null,null,0]
[null,null,0,null,0,null,null,0]
[null,null,0,null,0,null,null,0]
[null,null,0,null,0,null,null,0]
[null,null,0,null,0,null,null,0]
[null,null,0,null,0,null,null,0]
[null,null,0,null,0,null,null,0]
[null,null,0,null,0,null,null,0]
[null,null,0,null,0,null,null,0]
[null,null,0,null,0,null,null,0]
[null,null,0,null,0,null,null,0]
[null,null,0,null,0,null,null,0]
[null,null,0,null,0,null,null,0]
[null,null,0,null,0,null,null,0]
[null,null,0,null,0,null,null,0]
[null,null,0,null,0,null,null,0]
[null,null,0,null,0,null,null,0]
[null,null,0,null,0,null,null,0]
[null,null,0,null,0,null,null,0]
[null,null,0,null,0,null,null,0]
[null,null,0,null,0,null,null,0]
[null,null,0,null,0,null,null,0]
[null,null,0,null,0,null,null,0]
[null,null,0,null,0,null,null,0]
[null,null,{"$f":"IF(OR(B1285=\"Transferable securities\",B1285=\"Money-market instruments\",B1285=\"Units in collective investment undertakings\",B1285=\"Options\",B1285=\"Futures\",B1285=\"Swaps\",B1285=\"Forward rate agreements\",B1285=\"Financial Contracts for Differences\"),1,0)","v":0},null,{"$f":"IF(LEN(D1285)=3, 1, IF(LEN(D1285)=12, 1, 0))","v":0},null,null,{"$f":"IF(OR(G1285=\"Complex\",G1285=\"Non-Complex\", G1285=\"Non Complex\"),1,0)","v":0}]
[null,null,0,null,0,null,null,0]
[null,null,0,null,0,null,null,0]
[null,null,0,null,0,null,null,0]
[null,null,0,null,0,null,null,0]
[null,null,0,null,0,null,null,0]
[null,null,0,null,0,null,null,0]
[null,null,0,null,0,null,null,0]
[null,null,0,null,0,null,null,0]
[null,null,0,null,0,null,null,0]
[null,null,0,null,0,null,null,0]
[null,null,0,null,0,null,null,0]
[null,null,0,null,0,null,null,0]
[null,null,0,null,0,null,null,0]
[null,null,0,null,0,null,null,0]
[null,null,0,null,0,null,null,0]
[null,null,0,null,0,null,null,0]
[null,null,0,null,0,null,null,0]
[null,null,0,null,0,null,null,0]
[null,null,0,null,0,null,null,0]
[null,null,0,null,0,null,null,0]
[null,null,0,null,0,null,null,0]
[null,null,0,null,0,null,null,0]
[null,null,0,null,0,null,null,0]
[null,null,0,null,0,null,null,0]
[null,null,0,null,0,null,null,0]
[null,null,0,null,0,null,null,0]
[null,null,0,null,0,null,null,0]
[null,null,0,null,0,null,null,0]
[null,null,0,null,0,null,null,0]
[null,null,0,null,0,null,null,0]
[null,null,0,null,0,null,null,0]
[null,null,0,null,0,null,null,0]
[null,null,0,null,0,null,null,0]
[null,null,0,null,0,null,null,0]
[null,null,0,null,0,null,null,0]
[null,null,0,null,0,null,null,0]
[null,null,0,null,0,null,null,0]
[null,null,0,null,0,null,null,0]
[null,null,0,null,0,null,null,0]
[null,null,0,null,0,null,null,0]
[null,null,0,null,0,null,null,0]
[null,null,0,null,0,null,null,0]
[null,null,0,null,0,null,null,0]
[null,null,0,null,0,null,null,0]
[null,null,0,null,0,null,null,0]
[null,null,0,null,0,null,null,0]
[null,null,0,null,0,null,null,0]
[null,null,0,null,0,null,null,0]
[null,null,0,null,0,null,null,0]
[null,null,0,null,0,null,null,0]
[null,null,0,null,0,null,null,0]
[null,null,0,null,0,null,null,0]
[null,null,0,null,0,null,null,0]
[null,null,0,null,0,null,null,0]
[null,null,0,null,0,null,null,0]
[null,null,0,null,0,null,null,0]
[null,null,0,null,0,null,null,0]
[null,null,0,null,0,null,null,0]
[null,null,0,null,0,null,null,0]
[null,null,0,null,0,null,null,0]
[null,null,0,null,0,null,null,0]
[null,null,0,null,0,null,null,0]
[null,null,0,null,0,null,null,0]
[null,null,{"$f":"IF(OR(B1349=\"Transferable securities\",B1349=\"Money-market instruments\",B1349=\"Units in collective investment undertakings\",B1349=\"Options\",B1349=\"Futures\",B1349=\"Swaps\",B1349=\"Forward rate agreements\",B1349=\"Financial Contracts for Differences\"),1,0)","v":0},null,{"$f":"IF(LEN(D1349)=3, 1, IF(LEN(D1349)=12, 1, 0))","v":0},null,null,{"$f":"IF(OR(G1349=\"Complex\",G1349=\"Non-Complex\", G1349=\"Non Complex\"),1,0)","v":0}]
[null,null,0,null,0,null,null,0]
[null,null,0,null,0,null,null,0]
[null,null,0,null,0,null,null,0]
[null,null,0,null,0,null,null,0]
[null,null,0,null,0,null,null,0]
[null,null,0,null,0,null,null,0]
[null,null,0,null,0,null,null,0]
[null,null,0,null,0,null,null,0]
[null,null,0,null,0,null,null,0]
[null,null,0,null,0,null,null,0]
[null,null,0,null,0,null,null,0]
[null,null,0,null,0,null,null,0]
[null,null,0,null,0,null,null,0]
[null,null,0,null,0,null,null,0]
[null,null,0,null,0,null,null,0]
[null,null,0,null,0,null,null,0]
[null,null,0,null,0,null,null,0]
[null,null,0,null,0,null,null,0]
[null,null,0,null,0,null,null,0]
[null,null,0,null,0,null,null,0]
[null,null,0,null,0,null,null,0]
[null,null,0,null,0,null,null,0]
[null,null,0,null,0,null,null,0]
[null,null,0,null,0,null,null,0]
[null,null,0,null,0,null,null,0]
[null,null,0,null,0,null,null,0]
[null,null,0,null,0,null,null,0]
[null,null,0,null,0,null,null,0]
[null,null,0,null,0,null,null,0]
[null,null,0,null,0,null,null,0]
[null,null,0,null,0,null,null,0]
[null,null,0,null,0,null,null,0]
[null,null,0,null,0,null,null,0]
[null,null,0,null,0,null,null,0]
[null,null,0,null,0,null,null,0]
[null,null,0,null,0,null,null,0]
[null,null,0,null,0,null,null,0]
[null,null,0,null,0,null,null,0]
[null,null,0,null,0,null,null,0]
[null,null,0,null,0,null,null,0]
[null,null,0,null,0,null,null,0]
[null,null,0,null,0,null,null,0]
[null,null,0,null,0,null,null,0]
[null,null,0,null,0,null,null,0]
[null,null,0,null,0,null,null,0]
[null,null,0,null,0,null,null,0]
[null,null,0,null,0,null,null,0]
[null,null,0,null,0,null,null,0]
[null,null,0,null,0,null,null,0]
[null,null,0,null,0,null,null,0]
[null,null,0,null,0,null,null,0]
[null,null,0,null,0,null,null,0]
[null,null,0,null,0,null,null,0]
[null,null,0,null,0,null,null,0]
[null,null,0,null,0,null,null,0]
[null,null,0,null,0,null,null,0]
[null,null,0,null,0,null,null,0]
[null,null,0,null,0,null,null,0]
[null,null,0,null,0,null,null,0]
[null,null,0,null,0,null,null,0]
[null,null,0,null,0,null,null,0]
[null,null,0,null,0,null,null,0]
[null,null,0,null,0,null,null,0]
[null,null,{"$f":"IF(OR(B1413=\"Transferable securities\",B1413=\"Money-market instruments\",B1413=\"Units in collective investment undertakings\",B1413=\"Options\",B1413=\"Futures\",B1413=\"Swaps\",B1413=\"Forward rate agreements\",B1413=\"Financial Contracts for Differences\"),1,0)","v":0},null,{"$f":"IF(LEN(D1413)=3, 1, IF(LEN(D1413)=12, 1, 0))","v":0},null,null,{"$f":"IF(OR(G1413=\"Complex\",G1413=\"Non-Complex\", G1413=\"Non Complex\"),1,0)","v":0}]
[null,null,0,null,0,null,null,0]
[null,null,0,null,0,null,null,0]
[null,null,0,null,0,null,null,0]
[null,null,0,null,0,null,null,0]
[null,null,0,null,0,null,null,0]
[null,null,0,null,0,null,null,0]
[null,null,0,null,0,null,null,0]
[null,null,0,null,0,null,null,0]
[null,null,0,null,0,null,null,0]
[null,null,0,null,0,null,null,0]
[null,null,0,null,0,null,null,0]
[null,null,0,null,0,null,null,0]
[null,null,0,null,0,null,null,0]
[null,null,0,null,0,null,null,0]
[null,null,0,null,0,null,null,0]
[null,null,0,null,0,null,null,0]
[null,null,0,null,0,null,null,0]
[null,null,0,null,0,null,null,0]
[null,null,0,null,0,null,null,0]
[null,null,0,null,0,null,null,0]
[null,null,0,null,0,null,null,0]
[null,null,0,null,0,null,null,0]
[null,null,0,null,0,null,null,0]
[null,null,0,null,0,null,null,0]
[null,null,0,null,0,null,null,0]
[null,null,0,null,0,null,null,0]
[null,null,0,null,0,null,null,0]
[null,null,0,null,0,null,null,0]
[null,null,0,null,0,null,null,0]
[null,null,0,null,0,null,null,0]
[null,null,0,null,0,null,null,0]
[null,null,0,null,0,null,null,0]
[null,null,0,null,0,null,null,0]
[null,null,0,null,0,null,null,0]
[null,null,0,null,0,null,null,0]
[null,null,0,null,0,null,null,0]
[null,null,0,null,0,null,null,0]
[null,null,0,null,0,null,null,0]
[null,null,0,null,0,null,null,0]
[null,null,0,null,0,null,null,0]
[null,null,0,null,0,null,null,0]
[null,null,0,null,0,null,null,0]
[null,null,0,null,0,null,null,0]
[null,null,0,null,0,null,null,0]
[null,null,0,null,0,null,null,0]
[null,null,0,null,0,null,null,0]
[null,null,0,null,0,null,null,0]
[null,null,0,null,0,null,null,0]
[null,null,0,null,0,null,null,0]
[null,null,0,null,0,null,null,0]
[null,null,0,null,0,null,null,0]
[null,null,0,null,0,null,null,0]
[null,null,0,null,0,null,null,0]
[null,null,0,null,0,null,null,0]
[null,null,0,null,0,null,null,0]
[null,null,0,null,0,null,null,0]
[null,null,0,null,0,null,null,0]
[null,null,0,null,0,null,null,0]
[null,null,0,null,0,null,null,0]
[null,null,0,null,0,null,null,0]
[null,null,0,null,0,null,null,0]
[null,null,0,null,0,null,null,0]
[null,null,0,null,0,null,null,0]
[null,null,{"$f":"IF(OR(B1477=\"Transferable securities\",B1477=\"Money-market instruments\",B1477=\"Units in collective investment undertakings\",B1477=\"Options\",B1477=\"Futures\",B1477=\"Swaps\",B1477=\"Forward rate agreements\",B1477=\"Financial Contracts for Differences\"),1,0)","v":0},null,{"$f":"IF(LEN(D1477)=3, 1, IF(LEN(D1477)=12, 1, 0))","v":0},null,null,{"$f":"IF(OR(G1477=\"Complex\",G1477=\"Non-Complex\", G1477=\"Non Complex\"),1,0)","v":0}]
[null,null,0,null,0,null,null,0]
[null,null,0,null,0,null,null,0]
[null,null,0,null,0,null,null,0]
[null,null,0,null,0,null,null,0]
[null,null,0,null,0,null,null,0]
[null,null,0,null,0,null,null,0]
[null,null,0,null,0,null,null,0]
[null,null,0,null,0,null,null,0]
[null,null,0,null,0,null,null,0]
[null,null,0,null,0,null,null,0]
[null,null,0,null,0,null,null,0]
[null,null,0,null,0,null,null,0]
[null,null,0,null,0,null,null,0]
[null,null,0,null,0,null,null,0]
[null,null,0,null,0,null,null,0]
[null,null,0,null,0,null,null,0]
[null,null,0,null,0,null,null,0]
[null,null,0,null,0,null,null,0]
[null,null,0,null,0,null,null,0]
[null,null,0,null,0,null,null,0]
[null,null,0,null,0,null,null,0]
[null,null,0,null,0,null,null,0]
[null,null,0,null,0,null,null,0]
[null,null,0,null,0,null,null,0]
[null,null,0,null,0,null,null,0]
[null,null,0,null,0,null,null,0]
[null,null,0,null,0,null,null,0]
[null,null,0,null,0,null,null,0]
[null,null,0,null,0,null,null,0]
[null,null,0,null,0,null,null,0]
[null,null,0,null,0,null,null,0]
[null,null,0,null,0,null,null,0]
[null,null,0,null,0,null,null,0]
[null,null,0,null,0,null,null,0]
[null,null,0,null,0,null,null,0]
[null,null,0,null,0,null,null,0]
[null,null,0,null,0,null,null,0]
[null,null,0,null,0,null,null,0]
[null,null,0,null,0,null,null,0]
[null,null,0,null,0,null,null,0]
[null,null,0,null,0,null,null,0]
[null,null,0,null,0,null,null,0]
[null,null,0,null,0,null,null,0]
[null,null,0,null,0,null,null,0]
[null,null,0,null,0,null,null,0]
[null,null,0,null,0,null,null,0]
[null,null,0,null,0,null,null,0]
[null,null,0,null,0,null,null,0]
[null,null,0,null,0,null,null,0]
[null,null,0,null,0,null,null,0]
[null,null,0,null,0,null,null,0]
[null,null,0,null,0,null,null,0]
[null,null,0,null,0,null,null,0]
[null,null,0,null,0,null,null,0]
[null,null,0,null,0,null,null,0]
[null,null,0,null,0,null,null,0]
[null,null,0,null,0,null,null,0]
[null,null,0,null,0,null,null,0]
[null,null,0,null,0,null,null,0]
[null,null,0,null,0,null,null,0]
[null,null,0,null,0,null,null,0]
[null,null,0,null,0,null,null,0]
[null,null,0,null,0,null,null,0]
[null,null,{"$f":"IF(OR(B1541=\"Transferable securities\",B1541=\"Money-market instruments\",B1541=\"Units in collective investment undertakings\",B1541=\"Options\",B1541=\"Futures\",B1541=\"Swaps\",B1541=\"Forward rate agreements\",B1541=\"Financial Contracts for Differences\"),1,0)","v":0},null,{"$f":"IF(LEN(D1541)=3, 1, IF(LEN(D1541)=12, 1, 0))","v":0},null,null,{"$f":"IF(OR(G1541=\"Complex\",G1541=\"Non-Complex\", G1541=\"Non Complex\"),1,0)","v":0}]
[null,null,0,null,0,null,null,0]
[null,null,0,null,0,null,null,0]
[null,null,0,null,0,null,null,0]
[null,null,0,null,0,null,null,0]
[null,null,0,null,0,null,null,0]
[null,null,0,null,0,null,null,0]
[null,null,0,null,0,null,null,0]
[null,null,0,null,0,null,null,0]
[null,null,0,null,0,null,null,0]
[null,null,0,null,0,null,null,0]
[null,null,0,null,0,null,null,0]
[null,null,0,null,0,null,null,0]
[null,null,0,null,0,null,null,0]
[null,null,0,null,0,null,null,0]
[null,null,0,null,0,null,null,0]
[null,null,0,null,0,null,null,0]
[null,null,0,null,0,null,null,0]
[null,null,0,null,0,null,null,0]
[null,null,0,null,0,null,null,0]
[null,null,0,null,0,null,null,0]
[null,null,0,null,0,null,null,0]
[null,null,0,null,0,null,null,0]
[null,null,0,null,0,null,null,0]
[null,null,0,null,0,null,null,0]
[null,null,0,null,0,null,null,0]
[null,null,0,null,0,null,null,0]
[null,null,0,null,0,null,null,0]
[null,null,0,null,0,null,null,0]
[null,null,0,null,0,null,null,0]
[null,null,0,null,0,null,null,0]
[null,null,0,null,0,null,null,0]
[null,null,0,null,0,null,null,0]
[null,null,0,null,0,null,null,0]
[null,null,0,null,0,null,null,0]
[null,null,0,null,0,null,null,0]
[null,null,0,null,0,null,null,0]
[null,null,0,null,0,null,null,0]
[null,null,0,null,0,null,null,0]
[null,null,0,null,0,null,null,0]
[null,null,0,null,0,null,null,0]
[null,null,0,null,0,null,null,0]
[null,null,0,null,0,null,null,0]
[null,null,0,null,0,null,null,0]
[null,null,0,null,0,null,null,0]
[null,null,0,null,0,null,null,0]
[null,null,0,null,0,null,null,0]
[null,null,0,null,0,null,null,0]
[null,null,0,null,0,null,null,0]
[null,null,0,null,0,null,null,0]
[null,null,0,null,0,null,null,0]
[null,null,0,null,0,null,null,0]
[null,null,0,null,0,null,null,0]
[null,null,0,null,0,null,null,0]
[null,null,0,null,0,null,null,0]
[null,null,0,null,0,null,null,0]
[null,null,0,null,0,null,null,0]
[null,null,0,null,0,null,null,0]
[null,null,0,null,0,null,null,0]
[null,null,0,null,0,null,null,0]
[null,null,0,null,0,null,null,0]
[null,null,0,null,0,null,null,0]
[null,null,0,null,0,null,null,0]
[null,null,0,null,0,null,null,0]
[null,null,{"$f":"IF(OR(B1605=\"Transferable securities\",B1605=\"Money-market instruments\",B1605=\"Units in collective investment undertakings\",B1605=\"Options\",B1605=\"Futures\",B1605=\"Swaps\",B1605=\"Forward rate agreements\",B1605=\"Financial Contracts for Differences\"),1,0)","v":0},null,{"$f":"IF(LEN(D1605)=3, 1, IF(LEN(D1605)=12, 1, 0))","v":0},null,null,{"$f":"IF(OR(G1605=\"Complex\",G1605=\"Non-Complex\", G1605=\"Non Complex\"),1,0)","v":0}]
[null,null,0,null,0,null,null,0]
[null,null,0,null,0,null,null,0]
[null,null,0,null,0,null,null,0]
[null,null,0,null,0,null,null,0]
[null,null,0,null,0,null,null,0]
[null,null,0,null,0,null,null,0]
[null,null,0,null,0,null,null,0]
[null,null,0,null,0,null,null,0]
[null,null,0,null,0,null,null,0]
[null,null,0,null,0,null,null,0]
[null,null,0,null,0,null,null,0]
[null,null,0,null,0,null,null,0]
[null,null,0,null,0,null,null,0]
[null,null,0,null,0,null,null,0]
[null,null,0,null,0,null,null,0]
[null,null,0,null,0,null,null,0]
[null,null,0,null,0,null,null,0]
[null,null,0,null,0,null,null,0]
[null,null,0,null,0,null,null,0]
[null,null,0,null,0,null,null,0]
[null,null,0,null,0,null,null,0]
[null,null,0,null,0,null,null,0]
[null,null,0,null,0,null,null,0]
[null,null,0,null,0,null,null,0]
[null,null,0,null,0,null,null,0]
[null,null,0,null,0,null,null,0]
[null,null,0,null,0,null,null,0]
[null,null,0,null,0,null,null,0]
[null,null,0,null,0,null,null,0]
[null,null,0,null,0,null,null,0]
[null,null,0,null,0,null,null,0]
[null,null,0,null,0,null,null,0]
[null,null,0,null,0,null,null,0]
[null,null,0,null,0,null,null,0]
[null,null,0,null,0,null,null,0]
[null,null,0,null,0,null,null,0]
[null,null,0,null,0,null,null,0]
[null,null,0,null,0,null,null,0]
[null,null,0,null,0,null,null,0]
[null,null,0,null,0,null,null,0]
[null,null,0,null,0,null,null,0]
[null,null,0,null,0,null,null,0]
[null,null,0,null,0,null,null,0]
[null,null,0,null,0,null,null,0]
[null,null,0,null,0,null,null,0]
[null,null,0,null,0,null,null,0]
[null,null,0,null,0,null,null,0]
[null,null,0,null,0,null,null,0]
[null,null,0,null,0,null,null,0]
[null,null,0,null,0,null,null,0]
[null,null,0,null,0,null,null,0]
[null,null,0,null,0,null,null,0]
[null,null,0,null,0,null,null,0]
[null,null,0,null,0,null,null,0]
[null,null,0,null,0,null,null,0]
[null,null,0,null,0,null,null,0]
[null,null,0,null,0,null,null,0]
[null,null,0,null,0,null,null,0]
[null,null,0,null,0,null,null,0]
[null,null,0,null,0,null,null,0]
[null,null,0,null,0,null,null,0]
[null,null,0,null,0,null,null,0]
[null,null,0,null,0,null,null,0]
[null,null,{"$f":"IF(OR(B1669=\"Transferable securities\",B1669=\"Money-market instruments\",B1669=\"Units in collective investment undertakings\",B1669=\"Options\",B1669=\"Futures\",B1669=\"Swaps\",B1669=\"Forward rate agreements\",B1669=\"Financial Contracts for Differences\"),1,0)","v":0},null,{"$f":"IF(LEN(D1669)=3, 1, IF(LEN(D1669)=12, 1, 0))","v":0},null,null,{"$f":"IF(OR(G1669=\"Complex\",G1669=\"Non-Complex\", G1669=\"Non Complex\"),1,0)","v":0}]
[null,null,0,null,0,null,null,0]
[null,null,0,null,0,null,null,0]
[null,null,0,null,0,null,null,0]
[null,null,0,null,0,null,null,0]
[null,null,0,null,0,null,null,0]
[null,null,0,null,0,null,null,0]
[null,null,0,null,0,null,null,0]
[null,null,0,null,0,null,null,0]
[null,null,0,null,0,null,null,0]
[null,null,0,null,0,null,null,0]
[null,null,0,null,0,null,null,0]
[null,null,0,null,0,null,null,0]
[null,null,0,null,0,null,null,0]
[null,null,0,null,0,null,null,0]
[null,null,0,null,0,null,null,0]
[null,null,0,null,0,null,null,0]
[null,null,0,null,0,null,null,0]
[null,null,0,null,0,null,null,0]
[null,null,0,null,0,null,null,0]
[null,null,0,null,0,null,null,0]
[null,null,0,null,0,null,null,0]
[null,null,0,null,0,null,null,0]
[null,null,0,null,0,null,null,0]
[null,null,0,null,0,null,null,0]
[null,null,0,null,0,null,null,0]
[null,null,0,null,0,null,null,0]
[null,null,0,null,0,null,null,0]
[null,null,0,null,0,null,null,0]
[null,null,0,null,0,null,null,0]
[null,null,0,null,0,null,null,0]
[null,null,0,null,0,null,null,0]
[null,null,0,null,0,null,null,0]
[null,null,0,null,0,null,null,0]
[null,null,0,null,0,null,null,0]
[null,null,0,null,0,null,null,0]
[null,null,0,null,0,null,null,0]
[null,null,0,null,0,null,null,0]
[null,null,0,null,0,null,null,0]
[null,null,0,null,0,null,null,0]
[null,null,0,null,0,null,null,0]
[null,null,0,null,0,null,null,0]
[null,null,0,null,0,null,null,0]
[null,null,0,null,0,null,null,0]
[null,null,0,null,0,null,null,0]
[null,null,0,null,0,null,null,0]
[null,null,0,null,0,null,null,0]
[null,null,0,null,0,null,null,0]
[null,null,0,null,0,null,null,0]
[null,null,0,null,0,null,null,0]
[null,null,0,null,0,null,null,0]
[null,null,0,null,0,null,null,0]
[null,null,0,null,0,null,null,0]
[null,null,0,null,0,null,null,0]
[null,null,0,null,0,null,null,0]
[null,null,0,null,0,null,null,0]
[null,null,0,null,0,null,null,0]
[null,null,0,null,0,null,null,0]
[null,null,0,null,0,null,null,0]
[null,null,0,null,0,null,null,0]
[null,null,0,null,0,null,null,0]
[null,null,0,null,0,null,null,0]
[null,null,0,null,0,null,null,0]
[null,null,0,null,0,null,null,0]
[null,null,{"$f":"IF(OR(B1733=\"Transferable securities\",B1733=\"Money-market instruments\",B1733=\"Units in collective investment undertakings\",B1733=\"Options\",B1733=\"Futures\",B1733=\"Swaps\",B1733=\"Forward rate agreements\",B1733=\"Financial Contracts for Differences\"),1,0)","v":0},null,{"$f":"IF(LEN(D1733)=3, 1, IF(LEN(D1733)=12, 1, 0))","v":0},null,null,{"$f":"IF(OR(G1733=\"Complex\",G1733=\"Non-Complex\", G1733=\"Non Complex\"),1,0)","v":0}]
[null,null,0,null,0,null,null,0]
[null,null,0,null,0,null,null,0]
[null,null,0,null,0,null,null,0]
[null,null,0,null,0,null,null,0]
[null,null,0,null,0,null,null,0]
[null,null,0,null,0,null,null,0]
[null,null,0,null,0,null,null,0]
[null,null,0,null,0,null,null,0]
[null,null,0,null,0,null,null,0]
[null,null,0,null,0,null,null,0]
[null,null,0,null,0,null,null,0]
[null,null,0,null,0,null,null,0]
[null,null,0,null,0,null,null,0]
[null,null,0,null,0,null,null,0]
[null,null,0,null,0,null,null,0]
[null,null,0,null,0,null,null,0]
[null,null,0,null,0,null,null,0]
[null,null,0,null,0,null,null,0]
[null,null,0,null,0,null,null,0]
[null,null,0,null,0,null,null,0]
[null,null,0,null,0,null,null,0]
[null,null,0,null,0,null,null,0]
[null,null,0,null,0,null,null,0]
[null,null,0,null,0,null,null,0]
[null,null,0,null,0,null,null,0]
[null,null,0,null,0,null,null,0]
[null,null,0,null,0,null,null,0]
[null,null,0,null,0,null,null,0]
[null,null,0,null,0,null,null,0]
[null,null,0,null,0,null,null,0]
[null,null,0,null,0,null,null,0]
[null,null,0,null,0,null,null,0]
[null,null,0,null,0,null,null,0]
[null,null,0,null,0,null,null,0]
[null,null,0,null,0,null,null,0]
[null,null,0,null,0,null,null,0]
[null,null,0,null,0,null,null,0]
[null,null,0,null,0,null,null,0]
[null,null,0,null,0,null,null,0]
[null,null,0,null,0,null,null,0]
[null,null,0,null,0,null,null,0]
[null,null,0,null,0,null,null,0]
[null,null,0,null,0,null,null,0]
[null,null,0,null,0,null,null,0]
[null,null,0,null,0,null,null,0]
[null,null,0,null,0,null,null,0]
[null,null,0,null,0,null,null,0]
[null,null,0,null,0,null,null,0]
[null,null,0,null,0,null,null,0]
[null,null,0,null,0,null,null,0]
[null,null,0,null,0,null,null,0]
[null,null,0,null,0,null,null,0]
[null,null,0,null,0,null,null,0]
[null,null,0,null,0,null,null,0]
[null,null,0,null,0,null,null,0]
[null,null,0,null,0,null,null,0]
[null,null,0,null,0,null,null,0]
[null,null,0,null,0,null,null,0]
[null,null,0,null,0,null,null,0]
[null,null,0,null,0,null,null,0]
[null,null,0,null,0,null,null,0]
[null,null,0,null,0,null,null,0]
[null,null,0,null,0,null,null,0]
[null,null,{"$f":"IF(OR(B1797=\"Transferable securities\",B1797=\"Money-market instruments\",B1797=\"Units in collective investment undertakings\",B1797=\"Options\",B1797=\"Futures\",B1797=\"Swaps\",B1797=\"Forward rate agreements\",B1797=\"Financial Contracts for Differences\"),1,0)","v":0},null,{"$f":"IF(LEN(D1797)=3, 1, IF(LEN(D1797)=12, 1, 0))","v":0},null,null,{"$f":"IF(OR(G1797=\"Complex\",G1797=\"Non-Complex\", G1797=\"Non Complex\"),1,0)","v":0}]
[null,null,0,null,0,null,null,0]
[null,null,0,null,0,null,null,0]
[null,null,0,null,0,null,null,0]
[null,null,0,null,0,null,null,0]
[null,null,0,null,0,null,null,0]
[null,null,0,null,0,null,null,0]
[null,null,0,null,0,null,null,0]
[null,null,0,null,0,null,null,0]
[null,null,0,null,0,null,null,0]
[null,null,0,null,0,null,null,0]
[null,null,0,null,0,null,null,0]
[null,null,0,null,0,null,null,0]
[null,null,0,null,0,null,null,0]
[null,null,0,null,0,null,null,0]
[null,null,0,null,0,null,null,0]
[null,null,0,null,0,null,null,0]
[null,null,0,null,0,null,null,0]
[null,null,0,null,0,null,null,0]
[null,null,0,null,0,null,null,0]
[null,null,0,null,0,null,null,0]
[null,null,0,null,0,null,null,0]
[null,null,0,null,0,null,null,0]
[null,null,0,null,0,null,null,0]
[null,null,0,null,0,null,null,0]
[null,null,0,null,0,null,null,0]
[null,null,0,null,0,null,null,0]
[null,null,0,null,0,null,null,0]
[null,null,0,null,0,null,null,0]
[null,null,0,null,0,null,null,0]
[null,null,0,null,0,null,null,0]
[null,null,0,null,0,null,null,0]
[null,null,0,null,0,null,null,0]
[null,null,0,null,0,null,null,0]
[null,null,0,null,0,null,null,0]
[null,null,0,null,0,null,null,0]
[null,null,0,null,0,null,null,0]
[null,null,0,null,0,null,null,0]
[null,null,0,null,0,null,null,0]
[null,null,0,null,0,null,null,0]
[null,null,0,null,0,null,null,0]
[null,null,0,null,0,null,null,0]
[null,null,0,null,0,null,null,0]
[null,null,0,null,0,null,null,0]
[null,null,0,null,0,null,null,0]
[null,null,0,null,0,null,null,0]
[null,null,0,null,0,null,null,0]
[null,null,0,null,0,null,null,0]
[null,null,0,null,0,null,null,0]
[null,null,0,null,0,null,null,0]
[null,null,0,null,0,null,null,0]
[null,null,0,null,0,null,null,0]
[null,null,0,null,0,null,null,0]
[null,null,0,null,0,null,null,0]
[null,null,0,null,0,null,null,0]
[null,null,0,null,0,null,null,0]
[null,null,0,null,0,null,null,0]
[null,null,0,null,0,null,null,0]
[null,null,0,null,0,null,null,0]
[null,null,0,null,0,null,null,0]
[null,null,0,null,0,null,null,0]
[null,null,0,null,0,null,null,0]
[null,null,0,null,0,null,null,0]
[null,null,0,null,0,null,null,0]
[null,null,{"$f":"IF(OR(B1861=\"Transferable securities\",B1861=\"Money-market instruments\",B1861=\"Units in collective investment undertakings\",B1861=\"Options\",B1861=\"Futures\",B1861=\"Swaps\",B1861=\"Forward rate agreements\",B1861=\"Financial Contracts for Differences\"),1,0)","v":0},null,{"$f":"IF(LEN(D1861)=3, 1, IF(LEN(D1861)=12, 1, 0))","v":0},null,null,{"$f":"IF(OR(G1861=\"Complex\",G1861=\"Non-Complex\", G1861=\"Non Complex\"),1,0)","v":0}]
[null,null,0,null,0,null,null,0]
[null,null,0,null,0,null,null,0]
[null,null,0,null,0,null,null,0]
[null,null,0,null,0,null,null,0]
[null,null,0,null,0,null,null,0]
[null,null,0,null,0,null,null,0]
[null,null,0,null,0,null,null,0]
[null,null,0,null,0,null,null,0]
[null,null,0,null,0,null,null,0]
[null,null,0,null,0,null,null,0]
[null,null,0,null,0,null,null,0]
[null,null,0,null,0,null,null,0]
[null,null,0,null,0,null,null,0]
[null,null,0,null,0,null,null,0]
[null,null,0,null,0,null,null,0]
[null,null,0,null,0,null,null,0]
[null,null,0,null,0,null,null,0]
[null,null,0,null,0,null,null,0]
[null,null,0,null,0,null,null,0]
[null,null,0,null,0,null,null,0]
[null,null,0,null,0,null,null,0]
[null,null,0,null,0,null,null,0]
[null,null,0,null,0,null,null,0]
[null,null,0,null,0,null,null,0]
[null,null,0,null,0,null,null,0]
[null,null,0,null,0,null,null,0]
[null,null,0,null,0,null,null,0]
[null,null,0,null,0,null,null,0]
[null,null,0,null,0,null,null,0]
[null,null,0,null,0,null,null,0]
[null,null,0,null,0,null,null,0]
[null,null,0,null,0,null,null,0]
[null,null,0,null,0,null,null,0]
[null,null,0,null,0,null,null,0]
[null,null,0,null,0,null,null,0]
[null,null,0,null,0,null,null,0]
[null,null,0,null,0,null,null,0]
[null,null,0,null,0,null,null,0]
[null,null,0,null,0,null,null,0]
[null,null,0,null,0,null,null,0]
[null,null,0,null,0,null,null,0]
[null,null,0,null,0,null,null,0]
[null,null,0,null,0,null,null,0]
[null,null,0,null,0,null,null,0]
[null,null,0,null,0,null,null,0]
[null,null,0,null,0,null,null,0]
[null,null,0,null,0,null,null,0]
[null,null,0,null,0,null,null,0]
[null,null,0,null,0,null,null,0]
[null,null,0,null,0,null,null,0]
[null,null,0,null,0,null,null,0]
[null,null,0,null,0,null,null,0]
[null,null,0,null,0,null,null,0]
[null,null,0,null,0,null,null,0]
[null,null,0,null,0,null,null,0]
[null,null,0,null,0,null,null,0]
[null,null,0,null,0,null,null,0]
[null,null,0,null,0,null,null,0]
[null,null,0,null,0,null,null,0]
[null,null,0,null,0,null,null,0]
[null,null,0,null,0,null,null,0]
[null,null,0,null,0,null,null,0]
[null,null,0,null,0,null,null,0]
[null,null,{"$f":"IF(OR(B1925=\"Transferable securities\",B1925=\"Money-market instruments\",B1925=\"Units in collective investment undertakings\",B1925=\"Options\",B1925=\"Futures\",B1925=\"Swaps\",B1925=\"Forward rate agreements\",B1925=\"Financial Contracts for Differences\"),1,0)","v":0},null,{"$f":"IF(LEN(D1925)=3, 1, IF(LEN(D1925)=12, 1, 0))","v":0},null,null,{"$f":"IF(OR(G1925=\"Complex\",G1925=\"Non-Complex\", G1925=\"Non Complex\"),1,0)","v":0}]
[null,null,0,null,0,null,null,0]
[null,null,0,null,0,null,null,0]
[null,null,0,null,0,null,null,0]
[null,null,0,null,0,null,null,0]
[null,null,0,null,0,null,null,0]
[null,null,0,null,0,null,null,0]
[null,null,0,null,0,null,null,0]
[null,null,0,null,0,null,null,0]
[null,null,0,null,0,null,null,0]
[null,null,0,null,0,null,null,0]
[null,null,0,null,0,null,null,0]
[null,null,0,null,0,null,null,0]
[null,null,0,null,0,null,null,0]
[null,null,0,null,0,null,null,0]
[null,null,0,null,0,null,null,0]
[null,null,0,null,0,null,null,0]
[null,null,0,null,0,null,null,0]
[null,null,0,null,0,null,null,0]
[null,null,0,null,0,null,null,0]
[null,null,0,null,0,null,null,0]
[null,null,0,null,0,null,null,0]
[null,null,0,null,0,null,null,0]
[null,null,0,null,0,null,null,0]
[null,null,0,null,0,null,null,0]
[null,null,0,null,0,null,null,0]
[null,null,0,null,0,null,null,0]
[null,null,0,null,0,null,null,0]
[null,null,0,null,0,null,null,0]
[null,null,0,null,0,null,null,0]
[null,null,0,null,0,null,null,0]
[null,null,0,null,0,null,null,0]
[null,null,0,null,0,null,null,0]
[null,null,0,null,0,null,null,0]
[null,null,0,null,0,null,null,0]
[null,null,0,null,0,null,null,0]
[null,null,0,null,0,null,null,0]
[null,null,0,null,0,null,null,0]
[null,null,0,null,0,null,null,0]
[null,null,0,null,0,null,null,0]
[null,null,0,null,0,null,null,0]
[null,null,0,null,0,null,null,0]
[null,null,0,null,0,null,null,0]
[null,null,0,null,0,null,null,0]
[null,null,0,null,0,null,null,0]
[null,null,0,null,0,null,null,0]
[null,null,0,null,0,null,null,0]
[null,null,0,null,0,null,null,0]
[null,null,0,null,0,null,null,0]
[null,null,0,null,0,null,null,0]
[null,null,0,null,0,null,null,0]
[null,null,0,null,0,null,null,0]
[null,null,0,null,0,null,null,0]
[null,null,0,null,0,null,null,0]
[null,null,0,null,0,null,null,0]
[null,null,0,null,0,null,null,0]
[null,null,0,null,0,null,null,0]
[null,null,0,null,0,null,null,0]
[null,null,0,null,0,null,null,0]
[null,null,0,null,0,null,null,0]
[null,null,0,null,0,null,null,0]
[null,null,0,null,0,null,null,0]
[null,null,0,null,0,null,null,0]
[null,null,0,null,0,null,null,0]
[null,null,{"$f":"IF(OR(B1989=\"Transferable securities\",B1989=\"Money-market instruments\",B1989=\"Units in collective investment undertakings\",B1989=\"Options\",B1989=\"Futures\",B1989=\"Swaps\",B1989=\"Forward rate agreements\",B1989=\"Financial Contracts for Differences\"),1,0)","v":0},null,{"$f":"IF(LEN(D1989)=3, 1, IF(LEN(D1989)=12, 1, 0))","v":0},null,null,{"$f":"IF(OR(G1989=\"Complex\",G1989=\"Non-Complex\", G1989=\"Non Complex\"),1,0)","v":0}]
[null,null,0,null,0,null,null,0]
[null,null,0,null,0,null,null,0]
[null,null,0,null,0,null,null,0]
[null,null,0,null,0,null,null,0]
[null,null,0,null,0,null,null,0]
[null,null,0,null,0,null,null,0]
[null,null,0,null,0,null,null,0]
[null,null,0,null,0,null,null,0]
[null,null,0,null,0,null,null,0]
[null,null,0,null,0,null,null,0]
[null,null,0,null,0,null,null,0]
[null,null,0,null,0,null,null,0]
[null,null,0,null,0,null,null,0]
[null,null,0,null,0,null,null,0]
[null,null,0,null,0,null,null,0]
[null,null,0,null,0,null,null,0]
[null,null,0,null,0,null,null,0]
[null,null,0,null,0,null,null,0]
[null,null,0,null,0,null,null,0]
[null,null,0,null,0,null,null,0]
[null,null,0,null,0,null,null,0]
[null,null,0,null,0,null,null,0]
[null,null,0,null,0,null,null,0]
[null,null,0,null,0,null,null,0]
[null,null,{"$f":"IF(OR(B2181=\"Transferable securities\",B2181=\"Money-market instruments\",B2181=\"Units in collective investment undertakings\",B2181=\"Options\",B2181=\"Futures\",B2181=\"Swaps\",B2181=\"Forward rate agreements\",B2181=\"Financial Contracts for Differences\"),1,0)","v":0},null,{"$f":"IF(LEN(D2181)=3, 1, IF(LEN(D2181)=12, 1, 0))","v":0},null,null,{"$f":"IF(OR(G2181=\"Complex\",G2181=\"Non-Complex\", G2181=\"Non Complex\"),1,0)","v":0}]
[null,null,0,null,0,null,null,0]
[null,null,0,null,0,null,null,0]
[null,null,0,null,0,null,null,0]
[null,null,0,null,0,null,null,0]
[null,null,0,null,0,null,null,0]
[null,null,0,null,0,null,null,0]
[null,null,0,null,0,null,null,0]
[null,null,0,null,0,null,null,0]
[null,null,0,null,0,null,null,0]
[null,null,0,null,0,null,null,0]
[null,null,0,null,0,null,null,0]
[null,null,0,null,0,null,null,0]
[null,null,0,null,0,null,null,0]
[null,null,0,null,0,null,null,0]
[null,null,0,null,0,null,null,0]
[null,null,0,null,0,null,null,0]
[null,null,0,null,0,null,null,0]
[null,null,0,null,0,null,null,0]
[null,null,0,null,0,null,null,0]
[null,null,0,null,0,null,null,0]
[null,null,0,null,0,null,null,0]
[null,null,0,null,0,null,null,0]
[null,null,0,null,0,null,null,0]
[null,null,0,null,0,null,null,0]
[null,null,0,null,0,null,null,0]
[null,null,0,null,0,null,null,0]
[null,null,0,null,0,null,null,0]
[null,null,0,null,0,null,null,0]
[null,null,0,null,0,null,null,0]
[null,null,0,null,0,null,null,0]
[null,null,0,null,0,null,null,0]
[null,null,0,null,0,null,null,0]
[null,null,0,null,0,null,null,0]
[null,null,0,null,0,null,null,0]
[null,null,0,null,0,null,null,0]
[null,null,0,null,0,null,null,0]
[null,null,0,null,0,null,null,0]
[null,null,0,null,0,null,null,0]
[null,null,0,null,0,null,null,0]
[null,null,0,null,0,null,null,0]
[null,null,0,null,0,null,null,0]
[null,null,{"$f":"IF(OR(B2757=\"Transferable securities\",B2757=\"Money-market instruments\",B2757=\"Units in collective investment undertakings\",B2757=\"Options\",B2757=\"Futures\",B2757=\"Swaps\",B2757=\"Forward rate agreements\",B2757=\"Financial Contracts for Differences\"),1,0)","v":0},null,{"$f":"IF(LEN(D2757)=3, 1, IF(LEN(D2757)=12, 1, 0))","v":0},null,null,{"$f":"IF(OR(G2757=\"Complex\",G2757=\"Non-Complex\", G2757=\"Non Complex\"),1,0)","v":0}]
[null,null,0,null,0,null,null,0]
[null,null,0,null,0,null,null,0]
[null,null,0,null,0,null,null,0]
[null,null,0,null,0,null,null,0]
[null,null,0,null,0,null,null,0]
[null,null,0,null,0,null,null,0]
[null,null,0,null,0,null,null,0]
[null,null,0,null,0,null,null,0]
[null,null,0,null,0,null,null,0]
[null,null,0,null,0,null,null,0]
[null,null,0,null,0,null,null,0]
[null,null,0,null,0,null,null,0]
[null,null,0,null,0,null,null,0]
[null,null,0,null,0,null,null,0]
[null,null,0,null,0,null,null,0]
[null,null,0,null,0,null,null,0]
[null,null,0,null,0,null,null,0]
[null,null,0,null,0,null,null,0]
[null,null,0,null,0,null,null,0]
[null,null,0,null,0,null,null,0]
[null,null,0,null,0,null,null,0]
[null,null,0,null,0,null,null,0]
[null,null,0,null,0,null,null,0]
[null,null,0,null,0,null,null,0]
[null,null,0,null,0,null,null,0]
[null,null,0,null,0,null,null,0]
[null,null,0,null,0,null,null,0]
[null,null,0,null,0,null,null,0]
[null,null,0,null,0,null,null,0]
[null,null,0,null,0,null,null,0]
[null,null,0,null,0,null,null,0]
[null,null,0,null,0,null,null,0]
[null,null,0,null,0,null,null,0]
[null,null,0,null,0,null,null,0]
[null,null,0,null,0,null,null,0]
[null,null,0,null,0,null,null,0]
[null,null,0,null,0,null,null,0]
[null,null,0,null,0,null,null,0]
[null,null,0,null,0,null,null,0]
[null,null,0,null,0,null,null,0]
[null,null,{"$f":"IF(OR(B3333=\"Transferable securities\",B3333=\"Money-market instruments\",B3333=\"Units in collective investment undertakings\",B3333=\"Options\",B3333=\"Futures\",B3333=\"Swaps\",B3333=\"Forward rate agreements\",B3333=\"Financial Contracts for Differences\"),1,0)","v":0},null,{"$f":"IF(LEN(D3333)=3, 1, IF(LEN(D3333)=12, 1, 0))","v":0},null,null,{"$f":"IF(OR(G3333=\"Complex\",G3333=\"Non-Complex\", G3333=\"Non Complex\"),1,0)","v":0}]
[null,null,0,null,0,null,null,0]
[null,null,0,null,0,null,null,0]
[null,null,0,null,0,null,null,0]
[null,null,0,null,0,null,null,0]
[null,null,0,null,0,null,null,0]
[null,null,0,null,0,null,null,0]
[null,null,0,null,0,null,null,0]
[null,null,0,null,0,null,null,0]
[null,null,0,null,0,null,null,0]
[null,null,0,null,0,null,null,0]
[null,null,0,null,0,null,null,0]
[null,null,0,null,0,null,null,0]
[null,null,0,null,0,null,null,0]
[null,null,0,null,0,null,null,0]
[null,null,0,null,0,null,null,0]
[null,null,0,null,0,null,null,0]
[null,null,0,null,0,null,null,0]
[null,null,0,null,0,null,null,0]
[null,null,0,null,0,null,null,0]
[null,null,0,null,0,null,null,0]
[null,null,0,null,0,null,null,0]
[null,null,0,null,0,null,null,0]
[null,null,0,null,0,null,null,0]
[null,null,0,null,0,null,null,0]
[null,null,0,null,0,null,null,0]
[null,null,0,null,0,null,null,0]
[null,null,0,null,0,null,null,0]
[null,null,0,null,0,null,null,0]
[null,null,0,null,0,null,null,0]
[null,null,0,null,0,null,null,0]
[null,null,0,null,0,null,null,0]
[null,null,0,null,0,null,null,0]
[null,null,0,null,0,null,null,0]
[null,null,0,null,0,null,null,0]
[null,null,0,null,0,null,null,0]
[null,null,0,null,0,null,null,0]
[null,null,0,null,0,null,null,0]
[null,null,0,null,0,null,null,0]
[null,null,0,null,0,null,null,0]
[null,null,0,null,0,null,null,0]
[null,null,0,null,0,null,null,0]
[null,null,{"$f":"IF(OR(B3909=\"Transferable securities\",B3909=\"Money-market instruments\",B3909=\"Units in collective investment undertakings\",B3909=\"Options\",B3909=\"Futures\",B3909=\"Swaps\",B3909=\"Forward rate agreements\",B3909=\"Financial Contracts for Differences\"),1,0)","v":0},null,{"$f":"IF(LEN(D3909)=3, 1, IF(LEN(D3909)=12, 1, 0))","v":0},null,null,{"$f":"IF(OR(G3909=\"Complex\",G3909=\"Non-Complex\", G3909=\"Non Complex\"),1,0)","v":0}]
[null,null,0,null,0,null,null,0]
[null,null,0,null,0,null,null,0]
[null,null,0,null,0,null,null,0]
[null,null,0,null,0,null,null,0]
[null,null,0,null,0,null,null,0]
[null,null,0,null,0,null,null,0]
[null,null,0,null,0,null,null,0]
[null,null,0,null,0,null,null,0]
[null,null,0,null,0,null,null,0]
[null,null,0,null,0,null,null,0]
[null,null,0,null,0,null,null,0]
[null,null,0,null,0,null,null,0]
[null,null,0,null,0,null,null,0]
[null,null,0,null,0,null,null,0]
[null,null,0,null,0,null,null,0]
[null,null,0,null,0,null,null,0]
[null,null,0,null,0,null,null,0]
[null,null,0,null,0,null,null,0]
[null,null,0,null,0,null,null,0]
[null,null,0,null,0,null,null,0]
[null,null,0,null,0,null,null,0]
[null,null,0,null,0,null,null,0]
[null,null,0,null,0,null,null,0]
[null,null,{"$f":"IF(OR(B4229=\"Transferable securities\",B4229=\"Money-market instruments\",B4229=\"Units in collective investment undertakings\",B4229=\"Options\",B4229=\"Futures\",B4229=\"Swaps\",B4229=\"Forward rate agreements\",B4229=\"Financial Contracts for Differences\"),1,0)","v":0},null,{"$f":"IF(LEN(D4229)=3, 1, IF(LEN(D4229)=12, 1, 0))","v":0},null,null,{"$f":"IF(OR(G4229=\"Complex\",G4229=\"Non-Complex\", G4229=\"Non Complex\"),1,0)","v":0}]
[null,null,0,null,0,null,null,0]
[null,null,0,null,0,null,null,0]
[null,null,0,null,0,null,null,0]
[null,null,0,null,0,null,null,0]
[null,null,0,null,0,null,null,0]
[null,null,0,null,0,null,null,0]
[null,null,0,null,0,null,null,0]
[null,null,0,null,0,null,null,0]
[null,null,0,null,0,null,null,0]
[null,null,0,null,0,null,null,0]
[null,null,0,null,0,null,null,0]
[null,null,0,null,0,null,null,0]
[null,null,0,null,0,null,null,0]
[null,null,0,null,0,null,null,0]
[null,null,0,null,0,null,null,0]
[null,null,0,null,0,null,null,0]
[null,null,0,null,0,null,null,0]
[null,null,0,null,0,null,null,0]
[null,null,0,null,0,null,null,0]
[null,null,0,null,0,null,null,0]
[null,null,0,null,0,null,null,0]
[null,null,0,null,0,null,null,0]
[null,null,0,null,0,null,null,0]
[null,null,0,null,0,null,null,0]
[null,null,0,null,0,null,null,0]
[null,null,0,null,0,null,null,0]
[null,null,0,null,0,null,null,0]
[null,null,0,null,0,null,null,0]
[null,null,0,null,0,null,null,0]
[null,null,0,null,0,null,null,0]
[null,null,0,null,0,null,null,0]
[null,null,0,null,0,null,null,0]
[null,null,0,null,0,null,null,0]
[null,null,0,null,0,null,null,0]
[null,null,0,null,0,null,null,0]
[null,null,0,null,0,null,null,0]
[null,null,0,null,0,null,null,0]
[null,null,0,null,0,null,null,0]
[null,null,0,null,0,null,null,0]
[null,null,0,null,0,null,null,0]
[null,null,0,null,0,null,null,0]
[null,null,0,null,0,null,null,0]
[null,null,0,null,0,null,null,0]
[null,null,0,null,0,null,null,0]
[null,null,0,null,0,null,null,0]
[null,null,0,null,0,null,null,0]
[null,null,0,null,0,null,null,0]
[null,null,0,null,0,null,null,0]
[null,null,0,null,0,null,null,0]
[null,null,0,null,0,null,null,0]
[null,null,0,null,0,null,null,0]
[null,null,0,null,0,null,null,0]
[null,null,0,null,0,null,null,0]
[null,null,0,null,0,null,null,0]
[null,null,0,null,0,null,null,0]
[null,null,0,null,0,null,null,0]
[null,null,0,null,0,null,null,0]
[null,null,0,null,0,null,null,0]
[null,null,0,null,0,null,null,0]
[null,null,0,null,0,null,null,0]
[null,null,0,null,0,null,null,0]
[null,null,0,null,0,null,null,0]
[null,null,0,null,0,null,null,0]
[null,null,0,null,0,null,null,0]
[null,null,0,null,0,null,null,0]
[null,null,0,null,0,null,null,0]
[null,null,0,null,0,null,null,0]
[null,null,0,null,0,null,null,0]
[null,null,0,null,0,null,null,0]
[null,null,0,null,0,null,null,0]
[null,null,0,null,0,null,null,0]
[null,null,0,null,0,null,null,0]
[null,null,0,null,0,null,null,0]
[null,null,0,null,0,null,null,0]
[null,null,0,null,0,null,null,0]
[null,null,0,null,0,null,null,0]
[null,null,0,null,0,null,null,0]
[null,null,0,null,0,null,null,0]
[null,null,0,null,0,null,null,0]
[null,null,0,null,0,null,null,0]
[null,null,0,null,0,null,null,0]
[null,null,0,null,0,null,null,0]
[null,null,0,null,0,null,null,0]
[null,null,0,null,0,null,null,0]
[null,null,0,null,0,null,null,0]
[null,null,0,null,0,null,null,0]
[null,null,0,null,0,null,null,0]
[null,null,0,null,0,null,null,0]
[null,null,0,null,0,null,null,0]
[null,null,0,null,0,null,null,0]
[null,null,0,null,0,null,null,0]
[null,null,0,null,0,null,null,0]
[null,null,0,null,0,null,null,0]
[null,null,0,null,0,null,null,0]
[null,null,0,null,0,null,null,0]
[null,null,0,null,0,null,null,0]
[null,null,0,null,0,null,null,0]
[null,null,0,null,0,null,null,0]
[null,null,0,null,0,null,null,0]
[null,null,0,null,0,null,null,0]
[null,null,0,null,0,null,null,0]
[null,null,0,null,0,null,null,0]
[null,null,0,null,0,null,null,0]
[null,null,0,null,0,null,null,0]
[null,null,0,null,0,null,null,0]
[null,null,0,null,0,null,null,0]
[null,null,0,null,0,null,null,0]
[null,null,0,null,0,null,null,0]
[null,null,0,null,0,null,null,0]
[null,null,0,null,0,null,null,0]
[null,null,0,null,0,null,null,0]
[null,null,0,null,0,null,null,0]
[null,null,0,null,0,null,null,0]
[null,null,0,null,0,null,null,0]
[null,null,0,null,0,null,null,0]
[null,null,0,null,0,null,null,0]
[null,null,0,null,0,null,null,0]
[null,null,0,null,0,null,null,0]
[null,null,0,null,0,null,null,0]
[null,null,0,null,0,null,null,0]
[null,null,0,null,0,null,null,0]
[null,null,0,null,0,null,null,0]
[null,null,0,null,0,null,null,0]
[null,null,0,null,0,null,null,0]
[null,null,{"$f":"IF(OR(B5957=\"Transferable securities\",B5957=\"Money-market instruments\",B5957=\"Units in collective investment undertakings\",B5957=\"Options\",B5957=\"Futures\",B5957=\"Swaps\",B5957=\"Forward rate agreements\",B5957=\"Financial Contracts for Differences\"),1,0)","v":0},null,{"$f":"IF(LEN(D5957)=3, 1, IF(LEN(D5957)=12, 1, 0))","v":0},null,null,{"$f":"IF(OR(G5957=\"Complex\",G5957=\"Non-Complex\", G5957=\"Non Complex\"),1,0)","v":0}]
[null,null,0,null,0,null,null,0]
[null,null,0,null,0,null,null,0]
[null,null,0,null,0,null,null,0]
[null,null,0,null,0,null,null,0]
[null,null,{"$f":"IF(OR(B6021=\"Transferable securities\",B6021=\"Money-market instruments\",B6021=\"Units in collective investment undertakings\",B6021=\"Options\",B6021=\"Futures\",B6021=\"Swaps\",B6021=\"Forward rate agreements\",B6021=\"Financial Contracts for Differences\"),1,0)","v":0},null,{"$f":"IF(LEN(D6021)=3, 1, IF(LEN(D6021)=12, 1, 0))","v":0},null,null,{"$f":"IF(OR(G6021=\"Complex\",G6021=\"Non-Complex\", G6021=\"Non Complex\"),1,0)","v":0}]
[null,null,0,null,0,null,null,0]
[null,null,0,null,0,null,null,0]
[null,null,0,null,0,null,null,0]
[null,null,0,null,0,null,null,0]
[null,null,0,null,0,null,null,0]
[null,null,0,null,0,null,null,0]
[null,null,0,null,0,null,null,0]
[null,null,0,null,0,null,null,0]
[null,null,0,null,0,null,null,0]
[null,null,0,null,0,null,null,0]
[null,null,0,null,0,null,null,0]
[null,null,0,null,0,null,null,0]
[null,null,0,null,0,null,null,0]
[null,null,0,null,0,null,null,0]
[null,null,0,null,0,null,null,0]
[null,null,0,null,0,null,null,0]
[null,null,0,null,0,null,null,0]
[null,null,0,null,0,null,null,0]
[null,null,{"$f":"IF(OR(B6277=\"Transferable securities\",B6277=\"Money-market instruments\",B6277=\"Units in collective investment undertakings\",B6277=\"Options\",B6277=\"Futures\",B6277=\"Swaps\",B6277=\"Forward rate agreements\",B6277=\"Financial Contracts for Differences\"),1,0)","v":0},null,{"$f":"IF(LEN(D6277)=3, 1, IF(LEN(D6277)=12, 1, 0))","v":0},null,null,{"$f":"IF(OR(G6277=\"Complex\",G6277=\"Non-Complex\", G6277=\"Non Complex\"),1,0)","v":0}]
[null,null,0,null,0,null,null,0]
[null,null,0,null,0,null,null,0]
[null,null,0,null,0,null,null,0]
[null,null,0,null,0,null,null,0]
[null,null,0,null,0,null,null,0]
[null,null,0,null,0,null,null,0]
[null,null,0,null,0,null,null,0]
[null,null,0,null,0,null,null,0]
[null,null,0,null,0,null,null,0]
[null,null,0,null,0,null,null,0]
[null,null,0,null,0,null,null,0]
[null,null,0,null,0,null,null,0]
[null,null,0,null,0,null,null,0]
[null,null,0,null,0,null,null,0]
[null,null,0,null,0,null,null,0]
[null,null,0,null,0,null,null,0]
[null,null,0,null,0,null,null,0]
[null,null,0,null,0,null,null,0]
[null,null,0,null,0,null,null,0]
[null,null,0,null,0,null,null,0]
[null,null,0,null,0,null,null,0]
[null,null,0,null,0,null,null,0]
[null,null,0,null,0,null,null,0]
[null,null,0,null,0,null,null,0]
[null,null,0,null,0,null,null,0]
[null,null,0,null,0,null,null,0]
[null,null,0,null,0,null,null,0]
[null,null,0,null,0,null,null,0]
[null,null,0,null,0,null,null,0]
[null,null,0,null,0,null,null,0]
[null,null,0,null,0,null,null,0]
[null,null,0,null,0,null,null,0]
[null,null,0,null,0,null,null,0]
[null,null,0,null,0,null,null,0]
[null,null,0,null,0,null,null,0]
[null,null,0,null,0,null,null,0]
[null,null,0,null,0,null,null,0]
[null,null,0,null,0,null,null,0]
[null,null,0,null,0,null,null,0]
[null,null,0,null,0,null,null,0]
[null,null,0,null,0,null,null,0]
[null,null,0,null,0,null,null,0]
[null,null,0,null,0,null,null,0]
[null,null,0,null,0,null,null,0]
[null,null,0,null,0,null,null,0]
[null,null,0,null,0,null,null,0]
[null,null,0,null,0,null,null,0]
[null,null,0,null,0,null,null,0]
[null,null,0,null,0,null,null,0]
[null,null,0,null,0,null,null,0]
[null,null,0,null,0,null,null,0]
[null,null,0,null,0,null,null,0]
[null,null,0,null,0,null,null,0]
[null,null,0,null,0,null,null,0]
[null,null,0,null,0,null,null,0]
[null,null,0,null,0,null,null,0]
[null,null,0,null,0,null,null,0]
[null,null,0,null,0,null,null,0]
[null,null,0,null,0,null,null,0]
[null,null,0,null,0,null,null,0]
[null,null,0,null,0,null,null,0]
[null,null,0,null,0,null,null,0]
[null,null,0,null,0,null,null,0]
[null,null,0,null,0,null,null,0]
[null,null,0,null,0,null,null,0]
[null,null,0,null,0,null,null,0]
[null,null,0,null,0,null,null,0]
[null,null,0,null,0,null,null,0]
[null,null,0,null,0,null,null,0]
[null,null,0,null,0,null,null,0]
[null,null,0,null,0,null,null,0]
[null,null,0,null,0,null,null,0]
[null,null,0,null,0,null,null,0]
[null,null,0,null,0,null,null,0]
[null,null,0,null,0,null,null,0]
[null,null,0,null,0,null,null,0]
[null,null,0,null,0,null,null,0]
[null,null,0,null,0,null,null,0]
[null,null,0,null,0,null,null,0]
[null,null,0,null,0,null,null,0]
[null,null,0,null,0,null,null,0]
[null,null,0,null,0,null,null,0]
[null,null,0,null,0,null,null,0]
[null,null,0,null,0,null,null,0]
[null,null,0,null,0,null,null,0]
[null,null,0,null,0,null,null,0]
[null,null,0,null,0,null,null,0]
[null,null,0,null,0,null,null,0]
[null,null,0,null,0,null,null,0]
[null,null,0,null,0,null,null,0]
[null,null,0,null,0,null,null,0]
[null,null,0,null,0,null,null,0]
[null,null,0,null,0,null,null,0]
[null,null,0,null,0,null,null,0]
[null,null,0,null,0,null,null,0]
[null,null,0,null,0,null,null,0]
[null,null,0,null,0,null,null,0]
[null,null,0,null,0,null,null,0]
[null,null,0,null,0,null,null,0]
[null,null,0,null,0,null,null,0]
[null,null,0,null,0,null,null,0]
[null,null,{"$f":"IF(OR(B7685=\"Transferable securities\",B7685=\"Money-market instruments\",B7685=\"Units in collective investment undertakings\",B7685=\"Options\",B7685=\"Futures\",B7685=\"Swaps\",B7685=\"Forward rate agreements\",B7685=\"Financial Contracts for Differences\"),1,0)","v":0},null,{"$f":"IF(LEN(D7685)=3, 1, IF(LEN(D7685)=12, 1, 0))","v":0},null,null,{"$f":"IF(OR(G7685=\"Complex\",G7685=\"Non-Complex\", G7685=\"Non Complex\"),1,0)","v":0}]
[null,null,0,null,0,null,null,0]
[null,null,0,null,0,null,null,0]
[null,null,0,null,0,null,null,0]
[null,null,0,null,0,null,null,0]
[null,null,0,null,0,null,null,0]
[null,null,0,null,0,null,null,0]
[null,null,0,null,0,null,null,0]
[null,null,0,null,0,null,null,0]
[null,null,0,null,0,null,null,0]
[null,null,0,null,0,null,null,0]
[null,null,0,null,0,null,null,0]
[null,null,0,null,0,null,null,0]
[null,null,0,null,0,null,null,0]
[null,null,0,null,0,null,null,0]
[null,null,0,null,0,null,null,0]
[null,null,0,null,0,null,null,0]
[null,null,0,null,0,null,null,0]
[null,null,0,null,0,null,null,0]
[null,null,0,null,0,null,null,0]
[null,null,0,null,0,null,null,0]
[null,null,0,null,0,null,null,0]
[null,null,0,null,0,null,null,0]
[null,null,0,null,0,null,null,0]
[null,null,0,null,0,null,null,0]
[null,null,0,null,0,null,null,0]
[null,null,0,null,0,null,null,0]
[null,null,0,null,0,null,null,0]
[null,null,0,null,0,null,null,0]
[null,null,0,null,0,null,null,0]
[null,null,0,null,0,null,null,0]
[null,null,0,null,0,null,null,0]
[null,null,0,null,0,null,null,0]
[null,null,0,null,0,null,null,0]
[null,null,0,null,0,null,null,0]
[null,null,0,null,0,null,null,0]
[null,null,0,null,0,null,null,0]
[null,null,0,null,0,null,null,0]
[null,null,0,null,0,null,null,0]
[null,null,0,null,0,null,null,0]
[null,null,0,null,0,null,null,0]
[null,null,0,null,0,null,null,0]
[null,null,0,null,0,null,null,0]
[null,null,0,null,0,null,null,0]
[null,null,0,null,0,null,null,0]
[null,null,0,null,0,null,null,0]
[null,null,0,null,0,null,null,0]
[null,null,0,null,0,null,null,0]
[null,null,0,null,0,null,null,0]
[null,null,0,null,0,null,null,0]
[null,null,0,null,0,null,null,0]
[null,null,0,null,0,null,null,0]
[null,null,0,null,0,null,null,0]
[null,null,0,null,0,null,null,0]
[null,null,0,null,0,null,null,0]
[null,null,0,null,0,null,null,0]
[null,null,0,null,0,null,null,0]
[null,null,0,null,0,null,null,0]
[null,null,0,null,0,null,null,0]
[null,null,0,null,0,null,null,0]
[null,null,0,null,0,null,null,0]
[null,null,0,null,0,null,null,0]
[null,null,0,null,0,null,null,0]
[null,null,0,null,0,null,null,0]
[null,null,0,null,0,null,null,0]
[null,null,0,null,0,null,null,0]
[null,null,0,null,0,null,null,0]
[null,null,0,null,0,null,null,0]
[null,null,0,null,0,null,null,0]
[null,null,0,null,0,null,null,0]
[null,null,0,null,0,null,null,0]
[null,null,0,null,0,null,null,0]
[null,null,0,null,0,null,null,0]
[null,null,0,null,0,null,null,0]
[null,null,0,null,0,null,null,0]
[null,null,0,null,0,null,null,0]
[null,null,0,null,0,null,null,0]
[null,null,0,null,0,null,null,0]
[null,null,0,null,0,null,null,0]
[null,null,0,null,0,null,null,0]
[null,null,0,null,0,null,null,0]
[null,null,0,null,0,null,null,0]
[null,null,0,null,0,null,null,0]
[null,null,0,null,0,null,null,0]
[null,null,0,null,0,null,null,0]
[null,null,0,null,0,null,null,0]
[null,null,0,null,0,null,null,0]
[null,null,0,null,0,null,null,0]
[null,null,0,null,0,null,null,0]
[null,null,0,null,0,null,null,0]
[null,null,0,null,0,null,null,0]
[null,null,0,null,0,null,null,0]
[null,null,0,null,0,null,null,0]
[null,null,0,null,0,null,null,0]
[null,null,0,null,0,null,null,0]
[null,null,0,null,0,null,null,0]
[null,null,0,null,0,null,null,0]
[null,null,0,null,0,null,null,0]
[null,null,0,null,0,null,null,0]
[null,null,0,null,0,null,null,0]
[null,null,0,null,0,null,null,0]
[null,null,0,null,0,null,null,0]
[null,null,0,null,0,null,null,0]
[null,null,0,null,0,null,null,0]
[null,null,0,null,0,null,null,0]
[null,null,0,null,0,null,null,0]
[null,null,0,null,0,null,null,0]
[null,null,0,null,0,null,null,0]
[null,null,0,null,0,null,null,0]
[null,null,0,null,0,null,null,0]
[null,null,0,null,0,null,null,0]
[null,null,0,null,0,null,null,0]
[null,null,0,null,0,null,null,0]
[null,null,0,null,0,null,null,0]
[null,null,0,null,0,null,null,0]
[null,null,0,null,0,null,null,0]
[null,null,0,null,0,null,null,0]
[null,null,0,null,0,null,null,0]
[null,null,0,null,0,null,null,0]
[null,null,0,null,0,null,null,0]
[null,null,0,null,0,null,null,0]
[null,null,0,null,0,null,null,0]
[null,null,0,null,0,null,null,0]
[null,null,0,null,0,null,null,0]
[null,null,0,null,0,null,null,0]
[null,null,0,null,0,null,null,0]
[null,null,0,null,0,null,null,0]
[null,null,0,null,0,null,null,0]
[null,null,0,null,0,null,null,0]
[null,null,0,null,0,null,null,0]
[null,null,0,null,0,null,null,0]
[null,null,0,null,0,null,null,0]
[null,null,0,null,0,null,null,0]
[null,null,0,null,0,null,null,0]
[null,null,0,null,0,null,null,0]
[null,null,0,null,0,null,null,0]
[null,null,0,null,0,null,null,0]
[null,null,0,null,0,null,null,0]
[null,null,0,null,0,null,null,0]
[null,null,0,null,0,null,null,0]
[null,null,0,null,0,null,null,0]
[null,null,0,null,0,null,null,0]
[null,null,0,null,0,null,null,0]
[null,null,0,null,0,null,null,0]
[null,null,0,null,0,null,null,0]
[null,null,0,null,0,null,null,0]
[null,null,0,null,0,null,null,0]
[null,null,0,null,0,null,null,0]
[null,null,0,null,0,null,null,0]
[null,null,{"$f":"IF(OR(B9733=\"Transferable securities\",B9733=\"Money-market instruments\",B9733=\"Units in collective investment undertakings\",B9733=\"Options\",B9733=\"Futures\",B9733=\"Swaps\",B9733=\"Forward rate agreements\",B9733=\"Financial Contracts for Differences\"),1,0)","v":0},null,{"$f":"IF(LEN(D9733)=3, 1, IF(LEN(D9733)=12, 1, 0))","v":0},null,null,{"$f":"IF(OR(G9733=\"Complex\",G9733=\"Non-Complex\", G9733=\"Non Complex\"),1,0)","v":0}]
[null,null,0,null,0,null,null,0]
[null,null,0,null,0,null,null,0]
[null,null,0,null,0,null,null,0]
[null,null,0,null,0,null,null,0]
[null,null,0,null,0,null,null,0]
[null,null,0,null,0,null,null,0]
[null,null,0,null,0,null,null,0]
[null,null,0,null,0,null,null,0]
[null,null,0,null,0,null,null,0]
[null,null,0,null,0,null,null,0]
[null,null,0,null,0,null,null,0]
[null,null,0,null,0,null,null,0]
[null,null,0,null,0,null,null,0]
[null,null,0,null,0,null,null,0]
[null,null,0,null,0,null,null,0]
[null,null,0,null,0,null,null,0]
[null,null,0,null,0,null,null,0]
[null,null,0,null,0,null,null,0]
[null,null,0,null,0,null,null,0]
[null,null,0,null,0,null,null,0]
[null,null,0,null,0,null,null,0]
[null,null,0,null,0,null,null,0]
[null,null,0,null,0,null,null,0]
[null,null,0,null,0,null,null,0]
[null,null,0,null,0,null,null,0]
[null,null,0,null,0,null,null,0]
[null,null,0,null,0,null,null,0]
[null,null,0,null,0,null,null,0]
[null,null,0,null,0,null,null,0]
[null,null,0,null,0,null,null,0]
[null,null,0,null,0,null,null,0]
[null,null,0,null,0,null,null,0]
[null,null,0,null,0,null,null,0]
[null,null,0,null,0,null,null,0]
[null,null,0,null,0,null,null,0]
[null,null,0,null,0,null,null,0]
[null,null,0,null,0,null,null,0]
[null,null,0,null,0,null,null,0]
[null,null,0,null,0,null,null,0]
[null,null,0,null,0,null,null,0]
[null,null,0,null,0,null,null,0]
[null,null,0,null,0,null,null,0]
[null,null,0,null,0,null,null,0]
[null,null,0,null,0,null,null,0]
[null,null,0,null,0,null,null,0]
[null,null,0,null,0,null,null,0]
[null,null,0,null,0,null,null,0]
[null,null,0,null,0,null,null,0]
[null,null,0,null,0,null,null,0]
[null,null,0,null,0,null,null,0]
[null,null,0,null,0,null,null,0]
[null,null,0,null,0,null,null,0]
[null,null,0,null,0,null,null,0]
[null,null,0,null,0,null,null,0]
[null,null,0,null,0,null,null,0]
[null,null,0,null,0,null,null,0]
[null,null,0,null,0,null,null,0]
[null,null,0,null,0,null,null,0]
[null,null,0,null,0,null,null,0]
[null,null,0,null,0,null,null,0]
[null,null,0,null,0,null,null,0]
[null,null,0,null,0,null,null,0]
[null,null,0,null,0,null,null,0]
[null,null,0,null,0,null,null,0]
[null,null,0,null,0,null,null,0]
[null,null,0,null,0,null,null,0]
[null,null,0,null,0,null,null,0]
[null,null,0,null,0,null,null,0]
[null,null,0,null,0,null,null,0]
[null,null,0,null,0,null,null,0]
[null,null,0,null,0,null,null,0]
[null,null,0,null,0,null,null,0]
[null,null,0,null,0,null,null,0]
[null,null,0,null,0,null,null,0]
[null,null,0,null,0,null,null,0]
[null,null,0,null,0,null,null,0]
[null,null,0,null,0,null,null,0]
[null,null,0,null,0,null,null,0]
[null,null,0,null,0,null,null,0]
[null,null,0,null,0,null,null,0]
[null,null,0,null,0,null,null,0]
[null,null,0,null,0,null,null,0]
[null,null,0,null,0,null,null,0]
[null,null,0,null,0,null,null,0]
[null,null,0,null,0,null,null,0]
[null,null,0,null,0,null,null,0]
[null,null,0,null,0,null,null,0]
[null,null,0,null,0,null,null,0]
[null,null,0,null,0,null,null,0]
[null,null,0,null,0,null,null,0]
[null,null,0,null,0,null,null,0]
[null,null,0,null,0,null,null,0]
[null,null,0,null,0,null,null,0]
[null,null,0,null,0,null,null,0]
[null,null,0,null,0,null,null,0]
[null,null,0,null,0,null,null,0]
[null,null,0,null,0,null,null,0]
[null,null,0,null,0,null,null,0]
[null,null,0,null,0,null,null,0]
[null,null,0,null,0,null,null,0]
[null,null,0,null,0,null,null,0]
[null,null,0,null,0,null,null,0]
[null,null,0,null,0,null,null,0]
[null,null,0,null,0,null,null,0]
[null,null,0,null,0,null,null,0]
[null,null,0,null,0,null,null,0]
[null,null,0,null,0,null,null,0]
[null,null,0,null,0,null,null,0]
[null,null,0,null,0,null,null,0]
[null,null,0,null,0,null,null,0]
[null,null,0,null,0,null,null,0]
[null,null,0,null,0,null,null,0]
[null,null,0,null,0,null,null,0]
[null,null,0,null,0,null,null,0]
[null,null,0,null,0,null,null,0]
[null,null,0,null,0,null,null,0]
[null,null,0,null,0,null,null,0]
[null,null,0,null,0,null,null,0]
[null,null,0,null,0,null,null,0]
[null,null,0,null,0,null,null,0]
[null,null,0,null,0,null,null,0]
[null,null,0,null,0,null,null,0]
[null,null,0,null,0,null,null,0]
[null,null,0,null,0,null,null,0]
[null,null,0,null,0,null,null,0]
[null,null,0,null,0,null,null,0]
[null,null,0,null,0,null,null,0]
[null,null,0,null,0,null,null,0]
[null,null,0,null,0,null,null,0]
[null,null,{"$f":"IF(OR(B11525=\"Transferable securities\",B11525=\"Money-market instruments\",B11525=\"Units in collective investment undertakings\",B11525=\"Options\",B11525=\"Futures\",B11525=\"Swaps\",B11525=\"Forward rate agreements\",B11525=\"Financial Contracts for Differences\"),1,0)","v":0},null,{"$f":"IF(LEN(D11525)=3, 1, IF(LEN(D11525)=12, 1, 0))","v":0},null,null,{"$f":"IF(OR(G11525=\"Complex\",G11525=\"Non-Complex\", G11525=\"Non Complex\"),1,0)","v":0}]
[null,null,0,null,0,null,null,0]
[null,null,0,null,0,null,null,0]
[null,null,0,null,0,null,null,0]
[null,null,0,null,0,null,null,0]
[null,null,0,null,0,null,null,0]
[null,null,0,null,0,null,null,0]
[null,null,0,null,0,null,null,0]
[null,null,0,null,0,null,null,0]
[null,null,0,null,0,null,null,0]
[null,null,0,null,0,null,null,0]
[null,null,0,null,0,null,null,0]
[null,null,0,null,0,null,null,0]
[null,null,0,null,0,null,null,0]
[null,null,0,null,0,null,null,0]
[null,null,0,null,0,null,null,0]
[null,null,0,null,0,null,null,0]
[null,null,0,null,0,null,null,0]
[null,null,0,null,0,null,null,0]
[null,null,{"$f":"IF(OR(B11781=\"Transferable securities\",B11781=\"Money-market instruments\",B11781=\"Units in collective investment undertakings\",B11781=\"Options\",B11781=\"Futures\",B11781=\"Swaps\",B11781=\"Forward rate agreements\",B11781=\"Financial Contracts for Differences\"),1,0)","v":0},null,{"$f":"IF(LEN(D11781)=3, 1, IF(LEN(D11781)=12, 1, 0))","v":0},null,null,{"$f":"IF(OR(G11781=\"Complex\",G11781=\"Non-Complex\", G11781=\"Non Complex\"),1,0)","v":0}]
[null,null,0,null,0,null,null,0]
[null,null,0,null,0,null,null,0]
[null,null,0,null,0,null,null,0]
[null,null,0,null,0,null,null,0]
[null,null,0,null,0,null,null,0]
[null,null,0,null,0,null,null,0]
[null,null,0,null,0,null,null,0]
[null,null,0,null,0,null,null,0]
[null,null,0,null,0,null,null,0]
[null,null,0,null,0,null,null,0]
[null,null,0,null,0,null,null,0]
[null,null,0,null,0,null,null,0]
[null,null,0,null,0,null,null,0]
[null,null,0,null,0,null,null,0]
[null,null,0,null,0,null,null,0]
[null,null,0,null,0,null,null,0]
[null,null,0,null,0,null,null,0]
[null,null,0,null,0,null,null,0]
[null,null,0,null,0,null,null,0]
[null,null,0,null,0,null,null,0]
[null,null,0,null,0,null,null,0]
[null,null,0,null,0,null,null,0]
[null,null,0,null,0,null,null,0]
[null,null,0,null,0,null,null,0]
[null,null,0,null,0,null,null,0]
[null,null,0,null,0,null,null,0]
[null,null,0,null,0,null,null,0]
[null,null,0,null,0,null,null,0]
[null,null,0,null,0,null,null,0]
[null,null,0,null,0,null,null,0]
[null,null,0,null,0,null,null,0]
[null,null,0,null,0,null,null,0]
[null,null,0,null,0,null,null,0]
[null,null,0,null,0,null,null,0]
[null,null,0,null,0,null,null,0]
[null,null,0,null,0,null,null,0]
[null,null,0,null,0,null,null,0]
[null,null,0,null,0,null,null,0]
[null,null,0,null,0,null,null,0]
[null,null,0,null,0,null,null,0]
[null,null,0,null,0,null,null,0]
[null,null,0,null,0,null,null,0]
[null,null,0,null,0,null,null,0]
[null,null,0,null,0,null,null,0]
[null,null,0,null,0,null,null,0]
[null,null,0,null,0,null,null,0]
[null,null,0,null,0,null,null,0]
[null,null,0,null,0,null,null,0]
[null,null,0,null,0,null,null,0]
[null,null,0,null,0,null,null,0]
[null,null,0,null,0,null,null,0]
[null,null,0,null,0,null,null,0]
[null,null,0,null,0,null,null,0]
[null,null,0,null,0,null,null,0]
[null,null,0,null,0,null,null,0]
[null,null,0,null,0,null,null,0]
[null,null,0,null,0,null,null,0]
[null,null,0,null,0,null,null,0]
[null,null,0,null,0,null,null,0]
[null,null,0,null,0,null,null,0]
[null,null,0,null,0,null,null,0]
[null,null,0,null,0,null,null,0]
[null,null,0,null,0,null,null,0]
[null,null,0,null,0,null,null,0]
[null,null,0,null,0,null,null,0]
[null,null,0,null,0,null,null,0]
[null,null,0,null,0,null,null,0]
[null,null,0,null,0,null,null,0]
[null,null,0,null,0,null,null,0]
[null,null,0,null,0,null,null,0]
[null,null,0,null,0,null,null,0]
[null,null,0,null,0,null,null,0]
[null,null,0,null,0,null,null,0]
[null,null,0,null,0,null,null,0]
[null,null,0,null,0,null,null,0]
[null,null,0,null,0,null,null,0]
[null,null,0,null,0,null,null,0]
[null,null,0,null,0,null,null,0]
[null,null,0,null,0,null,null,0]
[null,null,0,null,0,null,null,0]
[null,null,0,null,0,null,null,0]
[null,null,0,null,0,null,null,0]
[null,null,0,null,0,null,null,0]
[null,null,0,null,0,null,null,0]
[null,null,0,null,0,null,null,0]
[null,null,0,null,0,null,null,0]
[null,null,0,null,0,null,null,0]
[null,null,0,null,0,null,null,0]
[null,null,0,null,0,null,null,0]
[null,null,0,null,0,null,null,0]
[null,null,0,null,0,null,null,0]
[null,null,0,null,0,null,null,0]
[null,null,0,null,0,null,null,0]
[null,null,0,null,0,null,null,0]
[null,null,0,null,0,null,null,0]
[null,null,0,null,0,null,null,0]
[null,null,0,null,0,null,null,0]
[null,null,0,null,0,null,null,0]
[null,null,0,null,0,null,null,0]
[null,null,0,null,0,null,null,0]
[null,null,0,null,0,null,null,0]
[null,null,{"$f":"IF(OR(B13189=\"Transferable securities\",B13189=\"Money-market instruments\",B13189=\"Units in collective investment undertakings\",B13189=\"Options\",B13189=\"Futures\",B13189=\"Swaps\",B13189=\"Forward rate agreements\",B13189=\"Financial Contracts for Differences\"),1,0)","v":0},null,{"$f":"IF(LEN(D13189)=3, 1, IF(LEN(D13189)=12, 1, 0))","v":0},null,null,{"$f":"IF(OR(G13189=\"Complex\",G13189=\"Non-Complex\", G13189=\"Non Complex\"),1,0)","v":0}]
[null,null,0,null,0,null,null,0]
[null,null,0,null,0,null,null,0]
[null,null,0,null,0,null,null,0]
[null,null,0,null,0,null,null,0]
[null,null,0,null,0,null,null,0]
[null,null,0,null,0,null,null,0]
[null,null,0,null,0,null,null,0]
[null,null,0,null,0,null,null,0]
[null,null,0,null,0,null,null,0]
[null,null,0,null,0,null,null,0]
[null,null,0,null,0,null,null,0]
[null,null,0,null,0,null,null,0]
[null,null,0,null,0,null,null,0]
[null,null,0,null,0,null,null,0]
[null,null,0,null,0,null,null,0]
[null,null,0,null,0,null,null,0]
[null,null,0,null,0,null,null,0]
[null,null,0,null,0,null,null,0]
[null,null,0,null,0,null,null,0]
[null,null,0,null,0,null,null,0]
[null,null,0,null,0,null,null,0]
[null,null,0,null,0,null,null,0]
[null,null,0,null,0,null,null,0]
[null,null,{"$f":"IF(OR(B13509=\"Transferable securities\",B13509=\"Money-market instruments\",B13509=\"Units in collective investment undertakings\",B13509=\"Options\",B13509=\"Futures\",B13509=\"Swaps\",B13509=\"Forward rate agreements\",B13509=\"Financial Contracts for Differences\"),1,0)","v":0},null,{"$f":"IF(LEN(D13509)=3, 1, IF(LEN(D13509)=12, 1, 0))","v":0},null,null,{"$f":"IF(OR(G13509=\"Complex\",G13509=\"Non-Complex\", G13509=\"Non Complex\"),1,0)","v":0}]
[null,null,0,null,0,null,null,0]
[null,null,0,null,0,null,null,0]
[null,null,0,null,0,null,null,0]
[null,null,0,null,0,null,null,0]
[null,null,0,null,0,null,null,0]
[null,null,0,null,0,null,null,0]
[null,null,0,null,0,null,null,0]
[null,null,0,null,0,null,null,0]
[null,null,0,null,0,null,null,0]
[null,null,0,null,0,null,null,0]
[null,null,0,null,0,null,null,0]
[null,null,0,null,0,null,null,0]
[null,null,0,null,0,null,null,0]
[null,null,0,null,0,null,null,0]
[null,null,0,null,0,null,null,0]
[null,null,0,null,0,null,null,0]
[null,null,0,null,0,null,null,0]
[null,null,0,null,0,null,null,0]
[null,null,0,null,0,null,null,0]
[null,null,0,null,0,null,null,0]
[null,null,0,null,0,null,null,0]
[null,null,0,null,0,null,null,0]
[null,null,0,null,0,null,null,0]
[null,null,0,null,0,null,null,0]
[null,null,0,null,0,null,null,0]
[null,null,0,null,0,null,null,0]
[null,null,0,null,0,null,null,0]
[null,null,0,null,0,null,null,0]
[null,null,0,null,0,null,null,0]
[null,null,0,null,0,null,null,0]
[null,null,0,null,0,null,null,0]
[null,null,0,null,0,null,null,0]
[null,null,0,null,0,null,null,0]
[null,null,0,null,0,null,null,0]
[null,null,0,null,0,null,null,0]
[null,null,0,null,0,null,null,0]
[null,null,0,null,0,null,null,0]
[null,null,0,null,0,null,null,0]
[null,null,0,null,0,null,null,0]
[null,null,0,null,0,null,null,0]
[null,null,0,null,0,null,null,0]
[null,null,0,null,0,null,null,0]
[null,null,0,null,0,null,null,0]
[null,null,0,null,0,null,null,0]
[null,null,0,null,0,null,null,0]
[null,null,0,null,0,null,null,0]
[null,null,0,null,0,null,null,0]
[null,null,0,null,0,null,null,0]
[null,null,0,null,0,null,null,0]
[null,null,0,null,0,null,null,0]
[null,null,{"$f":"IF(OR(B14213=\"Transferable securities\",B14213=\"Money-market instruments\",B14213=\"Units in collective investment undertakings\",B14213=\"Options\",B14213=\"Futures\",B14213=\"Swaps\",B14213=\"Forward rate agreements\",B14213=\"Financial Contracts for Differences\"),1,0)","v":0},null,{"$f":"IF(LEN(D14213)=3, 1, IF(LEN(D14213)=12, 1, 0))","v":0},null,null,{"$f":"IF(OR(G14213=\"Complex\",G14213=\"Non-Complex\", G14213=\"Non Complex\"),1,0)","v":0}]
[null,null,0,null,0,null,null,0]
[null,null,0,null,0,null,null,0]
[null,null,0,null,0,null,null,0]
[null,null,0,null,0,null,null,0]
[null,null,0,null,0,null,null,0]
[null,null,0,null,0,null,null,0]
[null,null,0,null,0,null,null,0]
[null,null,0,null,0,null,null,0]
[null,null,0,null,0,null,null,0]
[null,null,0,null,0,null,null,0]
[null,null,0,null,0,null,null,0]
[null,null,0,null,0,null,null,0]
[null,null,0,null,0,null,null,0]
[null,null,0,null,0,null,null,0]
[null,null,0,null,0,null,null,0]
[null,null,0,null,0,null,null,0]
[null,null,0,null,0,null,null,0]
[null,null,0,null,0,null,null,0]
[null,null,0,null,0,null,null,0]
[null,null,0,null,0,null,null,0]
[null,null,0,null,0,null,null,0]
[null,null,0,null,0,null,null,0]
[null,null,0,null,0,null,null,0]
[null,null,0,null,0,null,null,0]
[null,null,0,null,0,null,null,0]
[null,null,0,null,0,null,null,0]
[null,null,0,null,0,null,null,0]
[null,null,0,null,0,null,null,0]
[null,null,0,null,0,null,null,0]
[null,null,0,null,0,null,null,0]
[null,null,0,null,0,null,null,0]
[null,null,0,null,0,null,null,0]
[null,null,0,null,0,null,null,0]
[null,null,0,null,0,null,null,0]
[null,null,0,null,0,null,null,0]
[null,null,0,null,0,null,null,0]
[null,null,0,null,0,null,null,0]
[null,null,0,null,0,null,null,0]
[null,null,0,null,0,null,null,0]
[null,null,0,null,0,null,null,0]
[null,null,0,null,0,null,null,0]
[null,null,0,null,0,null,null,0]
[null,null,0,null,0,null,null,0]
[null,null,0,null,0,null,null,0]
[null,null,0,null,0,null,null,0]
[null,null,0,null,0,null,null,0]
[null,null,0,null,0,null,null,0]
[null,null,0,null,0,null,null,0]
[null,null,0,null,0,null,null,0]
[null,null,0,null,0,null,null,0]
[null,null,0,null,0,null,null,0]
[null,null,0,null,0,null,null,0]
[null,null,0,null,0,null,null,0]
[null,null,0,null,0,null,null,0]
[null,null,0,null,0,null,null,0]
[null,null,0,null,0,null,null,0]
[null,null,0,null,0,null,null,0]
[null,null,0,null,0,null,null,0]
[null,null,0,null,0,null,null,0]
[null,null,0,null,0,null,null,0]
[null,null,0,null,0,null,null,0]
[null,null,0,null,0,null,null,0]
[null,null,0,null,0,null,null,0]
[null,null,0,null,0,null,null,0]
[null,null,0,null,0,null,null,0]
[null,null,0,null,0,null,null,0]
[null,null,0,null,0,null,null,0]
[null,null,0,null,0,null,null,0]
[null,null,0,null,0,null,null,0]
[null,null,0,null,0,null,null,0]
[null,null,0,null,0,null,null,0]
[null,null,0,null,0,null,null,0]
[null,null,0,null,0,null,null,0]
[null,null,{"$f":"IF(OR(B15237=\"Transferable securities\",B15237=\"Money-market instruments\",B15237=\"Units in collective investment undertakings\",B15237=\"Options\",B15237=\"Futures\",B15237=\"Swaps\",B15237=\"Forward rate agreements\",B15237=\"Financial Contracts for Differences\"),1,0)","v":0},null,{"$f":"IF(LEN(D15237)=3, 1, IF(LEN(D15237)=12, 1, 0))","v":0},null,null,{"$f":"IF(OR(G15237=\"Complex\",G15237=\"Non-Complex\", G15237=\"Non Complex\"),1,0)","v":0}]
[null,null,0,null,0,null,null,0]
[null,null,0,null,0,null,null,0]
[null,null,0,null,0,null,null,0]
[null,null,0,null,0,null,null,0]
[null,null,0,null,0,null,null,0]
[null,null,0,null,0,null,null,0]
[null,null,0,null,0,null,null,0]
[null,null,0,null,0,null,null,0]
[null,null,0,null,0,null,null,0]
[null,null,0,null,0,null,null,0]
[null,null,0,null,0,null,null,0]
[null,null,0,null,0,null,null,0]
[null,null,0,null,0,null,null,0]
[null,null,0,null,0,null,null,0]
[null,null,0,null,0,null,null,0]
[null,null,0,null,0,null,null,0]
[null,null,0,null,0,null,null,0]
[null,null,0,null,0,null,null,0]
[null,null,0,null,0,null,null,0]
[null,null,0,null,0,null,null,0]
[null,null,0,null,0,null,null,0]
[null,null,0,null,0,null,null,0]
[null,null,0,null,0,null,null,0]
[null,null,0,null,0,null,null,0]
[null,null,0,null,0,null,null,0]
[null,null,0,null,0,null,null,0]
[null,null,0,null,0,null,null,0]
[null,null,0,null,0,null,null,0]
[null,null,0,null,0,null,null,0]
[null,null,0,null,0,null,null,0]
[null,null,0,null,0,null,null,0]
[null,null,0,null,0,null,null,0]
[null,null,0,null,0,null,null,0]
[null,null,0,null,0,null,null,0]
[null,null,0,null,0,null,null,0]
[null,null,0,null,0,null,null,0]
[null,null,0,null,0,null,null,0]
[null,null,0,null,0,null,null,0]
[null,null,0,null,0,null,null,0]
[null,null,0,null,0,null,null,0]
[null,null,0,null,0,null,null,0]
[null,null,0,null,0,null,null,0]
[null,null,0,null,0,null,null,0]
[null,null,0,null,0,null,null,0]
[null,null,0,null,0,null,null,0]
[null,null,0,null,0,null,null,0]
[null,null,0,null,0,null,null,0]
[null,null,0,null,0,null,null,0]
[null,null,0,null,0,null,null,0]
[null,null,0,null,0,null,null,0]
[null,null,0,null,0,null,null,0]
[null,null,0,null,0,null,null,0]
[null,null,0,null,0,null,null,0]
[null,null,0,null,0,null,null,0]
[null,null,0,null,0,null,null,0]
[null,null,0,null,0,null,null,0]
[null,null,0,null,0,null,null,0]
[null,null,0,null,0,null,null,0]
[null,null,0,null,0,null,null,0]
[null,null,0,null,0,null,null,0]
[null,null,0,null,0,null,null,0]
[null,null,0,null,0,null,null,0]
[null,null,0,null,0,null,null,0]
[null,null,0,null,0,null,null,0]
[null,null,0,null,0,null,null,0]
[null,null,0,null,0,null,null,0]
[null,null,0,null,0,null,null,0]
[null,null,0,null,0,null,null,0]
[null,null,0,null,0,null,null,0]
[null,null,0,null,0,null,null,0]
[null,null,0,null,0,null,null,0]
[null,null,0,null,0,null,null,0]
[null,null,0,null,0,null,null,0]
[null,null,0,null,0,null,null,0]
[null,null,0,null,0,null,null,0]
[null,null,0,null,0,null,null,0]
[null,null,0,null,0,null,null,0]
[null,null,0,null,0,null,null,0]
[null,null,0,null,0,null,null,0]
[null,null,0,null,0,null,null,0]
[null,null,0,null,0,null,null,0]
[null,null,0,null,0,null,null,0]
[null,null,0,null,0,null,null,0]
[null,null,0,null,0,null,null,0]
[null,null,0,null,0,null,null,0]
[null,null,0,null,0,null,null,0]
[null,null,0,null,0,null,null,0]
[null,null,0,null,0,null,null,0]
[null,null,0,null,0,null,null,0]
[null,null,0,null,0,null,null,0]
[null,null,0,null,0,null,null,0]
[null,null,0,null,0,null,null,0]
[null,null,0,null,0,null,null,0]
[null,null,0,null,0,null,null,0]
[null,null,0,null,0,null,null,0]
[null,null,0,null,0,null,null,0]
[null,null,0,null,0,null,null,0]
[null,null,0,null,0,null,null,0]
[null,null,0,null,0,null,null,0]
[null,null,0,null,0,null,null,0]
[null,null,0,null,0,null,null,0]
[null,null,0,null,0,null,null,0]
[null,null,0,null,0,null,null,0]
[null,null,0,null,0,null,null,0]
[null,null,0,null,0,null,null,0]
[null,null,0,null,0,null,null,0]
[null,null,0,null,0,null,null,0]
[null,null,0,null,0,null,null,0]
[null,null,0,null,0,null,null,0]
[null,null,0,null,0,null,null,0]
[null,null,0,null,0,null,null,0]
[null,null,0,null,0,null,null,0]
[null,null,0,null,0,null,null,0]
[null,null,0,null,0,null,null,0]
[null,null,0,null,0,null,null,0]
[null,null,0,null,0,null,null,0]
[null,null,0,null,0,null,null,0]
[null,null,0,null,0,null,null,0]
[null,null,0,null,0,null,null,0]
[null,null,0,null,0,null,null,0]
[null,null,0,null,0,null,null,0]
[null,null,0,null,0,null,null,0]
[null,null,0,null,0,null,null,0]
[null,null,0,null,0,null,null,0]
[null,null,0,null,0,null,null,0]
[null,null,0,null,0,null,null,0]
[null,null,0,null,0,null,null,0]
[null,null,0,null,0,null,null,0]
[null,null,0,null,0,null,null,0]
[null,null,0,null,0,null,null,0]
[null,null,0,null,0,null,null,0]
[null,null,0,null,0,null,null,0]
[null,null,0,null,0,null,null,0]
[null,null,0,null,0,null,null,0]
[null,null,0,null,0,null,null,0]
[null,null,0,null,0,null,null,0]
[null,null,0,null,0,null,null,0]
[null,null,0,null,0,null,null,0]
[null,null,0,null,0,null,null,0]
[null,null,0,null,0,null,null,0]
[null,null,0,null,0,null,null,0]
[null,null,0,null,0,null,null,0]
[null,null,0,null,0,null,null,0]
[null,null,0,null,0,null,null,0]
[null,null,0,null,0,null,null,0]
[null,null,0,null,0,null,null,0]
[null,null,0,null,0,null,null,0]
[null,null,0,null,0,null,null,0]
[null,null,{"$f":"IF(OR(B17285=\"Transferable securities\",B17285=\"Money-market instruments\",B17285=\"Units in collective investment undertakings\",B17285=\"Options\",B17285=\"Futures\",B17285=\"Swaps\",B17285=\"Forward rate agreements\",B17285=\"Financial Contracts for Differences\"),1,0)","v":0},null,{"$f":"IF(LEN(D17285)=3, 1, IF(LEN(D17285)=12, 1, 0))","v":0},null,null,{"$f":"IF(OR(G17285=\"Complex\",G17285=\"Non-Complex\", G17285=\"Non Complex\"),1,0)","v":0}]
[null,null,0,null,0,null,null,0]
[null,null,0,null,0,null,null,0]
[null,null,0,null,0,null,null,0]
[null,null,0,null,0,null,null,0]
[null,null,0,null,0,null,null,0]
[null,null,0,null,0,null,null,0]
[null,null,0,null,0,null,null,0]
[null,null,0,null,0,null,null,0]
[null,null,0,null,0,null,null,0]
[null,null,0,null,0,null,null,0]
[null,null,0,null,0,null,null,0]
[null,null,0,null,0,null,null,0]
[null,null,0,null,0,null,null,0]
[null,null,0,null,0,null,null,0]
[null,null,0,null,0,null,null,0]
[null,null,0,null,0,null,null,0]
[null,null,0,null,0,null,null,0]
[null,null,0,null,0,null,null,0]
[null,null,0,null,0,null,null,0]
[null,null,0,null,0,null,null,0]
[null,null,0,null,0,null,null,0]
[null,null,0,null,0,null,null,0]
[null,null,0,null,0,null,null,0]
[null,null,0,null,0,null,null,0]
[null,null,0,null,0,null,null,0]
[null,null,0,null,0,null,null,0]
[null,null,0,null,0,null,null,0]
[null,null,0,null,0,null,null,0]
[null,null,0,null,0,null,null,0]
[null,null,0,null,0,null,null,0]
[null,null,0,null,0,null,null,0]
[null,null,0,null,0,null,null,0]
[null,null,{"$f":"IF(OR(B17733=\"Transferable securities\",B17733=\"Money-market instruments\",B17733=\"Units in collective investment undertakings\",B17733=\"Options\",B17733=\"Futures\",B17733=\"Swaps\",B17733=\"Forward rate agreements\",B17733=\"Financial Contracts for Differences\"),1,0)","v":0},null,{"$f":"IF(LEN(D17733)=3, 1, IF(LEN(D17733)=12, 1, 0))","v":0},null,null,{"$f":"IF(OR(G17733=\"Complex\",G17733=\"Non-Complex\", G17733=\"Non Complex\"),1,0)","v":0}]
[null,null,0,null,0,null,null,0]
[null,null,0,null,0,null,null,0]
[null,null,0,null,0,null,null,0]
[null,null,0,null,0,null,null,0]
[null,null,0,null,0,null,null,0]
[null,null,0,null,0,null,null,0]
[null,null,0,null,0,null,null,0]
[null,null,0,null,0,null,null,0]
[null,null,0,null,0,null,null,0]
[null,null,0,null,0,null,null,0]
[null,null,0,null,0,null,null,0]
[null,null,0,null,0,null,null,0]
[null,null,0,null,0,null,null,0]
[null,null,0,null,0,null,null,0]
[null,null,0,null,0,null,null,0]
[null,null,0,null,0,null,null,0]
[null,null,0,null,0,null,null,0]
[null,null,0,null,0,null,null,0]
[null,null,0,null,0,null,null,0]
[null,null,0,null,0,null,null,0]
[null,null,0,null,0,null,null,0]
[null,null,0,null,0,null,null,0]
[null,null,0,null,0,null,null,0]
[null,null,0,null,0,null,null,0]
[null,null,0,null,0,null,null,0]
[null,null,0,null,0,null,null,0]
[null,null,0,null,0,null,null,0]
[null,null,0,null,0,null,null,0]
[null,null,0,null,0,null,null,0]
[null,null,0,null,0,null,null,0]
[null,null,0,null,0,null,null,0]
[null,null,0,null,0,null,null,0]
[null,null,0,null,0,null,null,0]
[null,null,0,null,0,null,null,0]
[null,null,0,null,0,null,null,0]
[null,null,0,null,0,null,null,0]
[null,null,0,null,0,null,null,0]
[null,null,0,null,0,null,null,0]
[null,null,0,null,0,null,null,0]
[null,null,0,null,0,null,null,0]
[null,null,0,null,0,null,null,0]
[null,null,0,null,0,null,null,0]
[null,null,0,null,0,null,null,0]
[null,null,0,null,0,null,null,0]
[null,null,0,null,0,null,null,0]
[null,null,0,null,0,null,null,0]
[null,null,0,null,0,null,null,0]
[null,null,0,null,0,null,null,0]
[null,null,0,null,0,null,null,0]
[null,null,0,null,0,null,null,0]
[null,null,0,null,0,null,null,0]
[null,null,0,null,0,null,null,0]
[null,null,0,null,0,null,null,0]
[null,null,0,null,0,null,null,0]
[null,null,0,null,0,null,null,0]
[null,null,0,null,0,null,null,0]
[null,null,0,null,0,null,null,0]
[null,null,0,null,0,null,null,0]
[null,null,0,null,0,null,null,0]
[null,null,0,null,0,null,null,0]
[null,null,0,null,0,null,null,0]
[null,null,0,null,0,null,null,0]
[null,null,0,null,0,null,null,0]
[null,null,0,null,0,null,null,0]
[null,null,0,null,0,null,null,0]
[null,null,0,null,0,null,null,0]
[null,null,0,null,0,null,null,0]
[null,null,0,null,0,null,null,0]
[null,null,0,null,0,null,null,0]
[null,null,0,null,0,null,null,0]
[null,null,0,null,0,null,null,0]
[null,null,0,null,0,null,null,0]
[null,null,0,null,0,null,null,0]
[null,null,0,null,0,null,null,0]
[null,null,0,null,0,null,null,0]
[null,null,0,null,0,null,null,0]
[null,null,0,null,0,null,null,0]
[null,null,0,null,0,null,null,0]
[null,null,0,null,0,null,null,0]
[null,null,0,null,0,null,null,0]
[null,null,0,null,0,null,null,0]
[null,null,0,null,0,null,null,0]
[null,null,0,null,0,null,null,0]
[null,null,0,null,0,null,null,0]
[null,null,0,null,0,null,null,0]
[null,null,0,null,0,null,null,0]
[null,null,0,null,0,null,null,0]
[null,null,0,null,0,null,null,0]
[null,null,0,null,0,null,null,0]
[null,null,0,null,0,null,null,0]
[null,null,0,null,0,null,null,0]
[null,null,0,null,0,null,null,0]
[null,null,{"$f":"IF(OR(B19013=\"Transferable securities\",B19013=\"Money-market instruments\",B19013=\"Units in collective investment undertakings\",B19013=\"Options\",B19013=\"Futures\",B19013=\"Swaps\",B19013=\"Forward rate agreements\",B19013=\"Financial Contracts for Differences\"),1,0)","v":0},null,{"$f":"IF(LEN(D19013)=3, 1, IF(LEN(D19013)=12, 1, 0))","v":0},null,null,{"$f":"IF(OR(G19013=\"Complex\",G19013=\"Non-Complex\", G19013=\"Non Complex\"),1,0)","v":0}]
[null,null,0,null,0,null,null,0]
[null,null,0,null,0,null,null,0]
[null,null,0,null,0,null,null,0]
[null,null,0,null,0,null,null,0]
[null,null,0,null,0,null,null,0]
[null,null,0,null,0,null,null,0]
[null,null,0,null,0,null,null,0]
[null,null,0,null,0,null,null,0]
[null,null,0,null,0,null,null,0]
[null,null,0,null,0,null,null,0]
[null,null,0,null,0,null,null,0]
[null,null,0,null,0,null,null,0]
[null,null,0,null,0,null,null,0]
[null,null,0,null,0,null,null,0]
[null,null,0,null,0,null,null,0]
[null,null,0,null,0,null,null,0]
[null,null,0,null,0,null,null,0]
[null,null,0,null,0,null,null,0]
[null,null,0,null,0,null,null,0]
[null,null,0,null,0,null,null,0]
[null,null,0,null,0,null,null,0]
[null,null,0,null,0,null,null,0]
[null,null,0,null,0,null,null,0]
[null,null,0,null,0,null,null,0]
[null,null,0,null,0,null,null,0]
[null,null,0,null,0,null,null,0]
[null,null,0,null,0,null,null,0]
[null,null,0,null,0,null,null,0]
[null,null,0,null,0,null,null,0]
[null,null,0,null,0,null,null,0]
[null,null,0,null,0,null,null,0]
[null,null,0,null,0,null,null,0]
[null,null,0,null,0,null,null,0]
[null,null,0,null,0,null,null,0]
[null,null,0,null,0,null,null,0]
[null,null,0,null,0,null,null,0]
[null,null,0,null,0,null,null,0]
[null,null,0,null,0,null,null,0]
[null,null,0,null,0,null,null,0]
[null,null,0,null,0,null,null,0]
[null,null,0,null,0,null,null,0]
[null,null,0,null,0,null,null,0]
[null,null,0,null,0,null,null,0]
[null,null,0,null,0,null,null,0]
[null,null,0,null,0,null,null,0]
[null,null,0,null,0,null,null,0]
[null,null,0,null,0,null,null,0]
[null,null,0,null,0,null,null,0]
[null,null,0,null,0,null,null,0]
[null,null,0,null,0,null,null,0]
[null,null,0,null,0,null,null,0]
[null,null,0,null,0,null,null,0]
[null,null,0,null,0,null,null,0]
[null,null,0,null,0,null,null,0]
[null,null,0,null,0,null,null,0]
[null,null,0,null,0,null,null,0]
[null,null,0,null,0,null,null,0]
[null,null,0,null,0,null,null,0]
[null,null,0,null,0,null,null,0]
[null,null,0,null,0,null,null,0]
[null,null,0,null,0,null,null,0]
[null,null,0,null,0,null,null,0]
[null,null,0,null,0,null,null,0]
[null,null,0,null,0,null,null,0]
[null,null,0,null,0,null,null,0]
[null,null,0,null,0,null,null,0]
[null,null,0,null,0,null,null,0]
[null,null,0,null,0,null,null,0]
[null,null,0,null,0,null,null,0]
[null,null,0,null,0,null,null,0]
[null,null,0,null,0,null,null,0]
[null,null,0,null,0,null,null,0]
[null,null,0,null,0,null,null,0]
[null,null,0,null,0,null,null,0]
[null,null,0,null,0,null,null,0]
[null,null,0,null,0,null,null,0]
[null,null,0,null,0,null,null,0]
[null,null,0,null,0,null,null,0]
[null,null,0,null,0,null,null,0]
[null,null,0,null,0,null,null,0]
[null,null,0,null,0,null,null,0]
[null,null,0,null,0,null,null,0]
[null,null,0,null,0,null,null,0]
[null,null,0,null,0,null,null,0]
[null,null,0,null,0,null,null,0]
[null,null,0,null,0,null,null,0]
[null,null,0,null,0,null,null,0]
[null,null,0,null,0,null,null,0]
[null,null,0,null,0,null,null,0]
[null,null,0,null,0,null,null,0]
[null,null,0,null,0,null,null,0]
[null,null,0,null,0,null,null,0]
[null,null,0,null,0,null,null,0]
[null,null,0,null,0,null,null,0]
[null,null,0,null,0,null,null,0]
[null,null,0,null,0,null,null,0]
[null,null,0,null,0,null,null,0]
[null,null,0,null,0,null,null,0]
[null,null,0,null,0,null,null,0]
[null,null,0,null,0,null,null,0]
[null,null,0,null,0,null,null,0]
[null,null,0,null,0,null,null,0]
[null,null,0,null,0,null,null,0]
[null,null,0,null,0,null,null,0]
[null,null,0,null,0,null,null,0]
[null,null,0,null,0,null,null,0]
[null,null,0,null,0,null,null,0]
[null,null,0,null,0,null,null,0]
[null,null,0,null,0,null,null,0]
[null,null,0,null,0,null,null,0]
[null,null,0,null,0,null,null,0]
[null,null,0,null,0,null,null,0]
[null,null,0,null,0,null,null,0]
[null,null,0,null,0,null,null,0]
[null,null,0,null,0,null,null,0]
[null,null,0,null,0,null,null,0]
[null,null,0,null,0,null,null,0]
[null,null,0,null,0,null,null,0]
[null,null,0,null,0,null,null,0]
[null,null,0,null,0,null,null,0]
[null,null,0,null,0,null,null,0]
[null,null,0,null,0,null,null,0]
[null,null,0,null,0,null,null,0]
[null,null,0,null,0,null,null,0]
[null,null,{"$f":"IF(OR(B20741=\"Transferable securities\",B20741=\"Money-market instruments\",B20741=\"Units in collective investment undertakings\",B20741=\"Options\",B20741=\"Futures\",B20741=\"Swaps\",B20741=\"Forward rate agreements\",B20741=\"Financial Contracts for Differences\"),1,0)","v":0},null,{"$f":"IF(LEN(D20741)=3, 1, IF(LEN(D20741)=12, 1, 0))","v":0},null,null,{"$f":"IF(OR(G20741=\"Complex\",G20741=\"Non-Complex\", G20741=\"Non Complex\"),1,0)","v":0}]
[null,null,0,null,0,null,null,0]
[null,null,0,null,0,null,null,0]
[null,null,0,null,0,null,null,0]
[null,null,0,null,0,null,null,0]
[null,null,0,null,0,null,null,0]
[null,null,0,null,0,null,null,0]
[null,null,0,null,0,null,null,0]
[null,null,0,null,0,null,null,0]
[null,null,0,null,0,null,null,0]
[null,null,0,null,0,null,null,0]
[null,null,0,null,0,null,null,0]
[null,null,0,null,0,null,null,0]
[null,null,0,null,0,null,null,0]
[null,null,0,null,0,null,null,0]
[null,null,0,null,0,null,null,0]
[null,null,0,null,0,null,null,0]
[null,null,0,null,0,null,null,0]
[null,null,0,null,0,null,null,0]
[null,null,0,null,0,null,null,0]
[null,null,0,null,0,null,null,0]
[null,null,0,null,0,null,null,0]
[null,null,0,null,0,null,null,0]
[null,null,0,null,0,null,null,0]
[null,null,{"$f":"IF(OR(B21061=\"Transferable securities\",B21061=\"Money-market instruments\",B21061=\"Units in collective investment undertakings\",B21061=\"Options\",B21061=\"Futures\",B21061=\"Swaps\",B21061=\"Forward rate agreements\",B21061=\"Financial Contracts for Differences\"),1,0)","v":0},null,{"$f":"IF(LEN(D21061)=3, 1, IF(LEN(D21061)=12, 1, 0))","v":0},null,null,{"$f":"IF(OR(G21061=\"Complex\",G21061=\"Non-Complex\", G21061=\"Non Complex\"),1,0)","v":0}]
[null,null,0,null,0,null,null,0]
[null,null,0,null,0,null,null,0]
[null,null,0,null,0,null,null,0]
[null,null,0,null,0,null,null,0]
[null,null,0,null,0,null,null,0]
[null,null,0,null,0,null,null,0]
[null,null,0,null,0,null,null,0]
[null,null,0,null,0,null,null,0]
[null,null,0,null,0,null,null,0]
[null,null,0,null,0,null,null,0]
[null,null,0,null,0,null,null,0]
[null,null,0,null,0,null,null,0]
[null,null,0,null,0,null,null,0]
[null,null,0,null,0,null,null,0]
[null,null,0,null,0,null,null,0]
[null,null,0,null,0,null,null,0]
[null,null,0,null,0,null,null,0]
[null,null,0,null,0,null,null,0]
[null,null,0,null,0,null,null,0]
[null,null,0,null,0,null,null,0]
[null,null,0,null,0,null,null,0]
[null,null,0,null,0,null,null,0]
[null,null,0,null,0,null,null,0]
[null,null,0,null,0,null,null,0]
[null,null,0,null,0,null,null,0]
[null,null,0,null,0,null,null,0]
[null,null,0,null,0,null,null,0]
[null,null,0,null,0,null,null,0]
[null,null,0,null,0,null,null,0]
[null,null,0,null,0,null,null,0]
[null,null,0,null,0,null,null,0]
[null,null,0,null,0,null,null,0]
[null,null,0,null,0,null,null,0]
[null,null,0,null,0,null,null,0]
[null,null,0,null,0,null,null,0]
[null,null,0,null,0,null,null,0]
[null,null,0,null,0,null,null,0]
[null,null,0,null,0,null,null,0]
[null,null,0,null,0,null,null,0]
[null,null,0,null,0,null,null,0]
[null,null,0,null,0,null,null,0]
[null,null,0,null,0,null,null,0]
[null,null,0,null,0,null,null,0]
[null,null,0,null,0,null,null,0]
[null,null,0,null,0,null,null,0]
[null,null,0,null,0,null,null,0]
[null,null,0,null,0,null,null,0]
[null,null,0,null,0,null,null,0]
[null,null,0,null,0,null,null,0]
[null,null,0,null,0,null,null,0]
[null,null,0,null,0,null,null,0]
[null,null,0,null,0,null,null,0]
[null,null,0,null,0,null,null,0]
[null,null,0,null,0,null,null,0]
[null,null,0,null,0,null,null,0]
[null,null,0,null,0,null,null,0]
[null,null,0,null,0,null,null,0]
[null,null,0,null,0,null,null,0]
[null,null,0,null,0,null,null,0]
[null,null,0,null,0,null,null,0]
[null,null,0,null,0,null,null,0]
[null,null,0,null,0,null,null,0]
[null,null,0,null,0,null,null,0]
[null,null,0,null,0,null,null,0]
[null,null,0,null,0,null,null,0]
[null,null,0,null,0,null,null,0]
[null,null,0,null,0,null,null,0]
[null,null,0,null,0,null,null,0]
[null,null,0,null,0,null,null,0]
[null,null,0,null,0,null,null,0]
[null,null,0,null,0,null,null,0]
[null,null,0,null,0,null,null,0]
[null,null,0,null,0,null,null,0]
[null,null,0,null,0,null,null,0]
[null,null,0,null,0,null,null,0]
[null,null,0,null,0,null,null,0]
[null,null,0,null,0,null,null,0]
[null,null,0,null,0,null,null,0]
[null,null,0,null,0,null,null,0]
[null,null,0,null,0,null,null,0]
[null,null,0,null,0,null,null,0]
[null,null,0,null,0,null,null,0]
[null,null,0,null,0,null,null,0]
[null,null,0,null,0,null,null,0]
[null,null,0,null,0,null,null,0]
[null,null,0,null,0,null,null,0]
[null,null,0,null,0,null,null,0]
[null,null,0,null,0,null,null,0]
[null,null,0,null,0,null,null,0]
[null,null,0,null,0,null,null,0]
[null,null,0,null,0,null,null,0]
[null,null,0,null,0,null,null,0]
[null,null,0,null,0,null,null,0]
[null,null,0,null,0,null,null,0]
[null,null,0,null,0,null,null,0]
[null,null,0,null,0,null,null,0]
[null,null,0,null,0,null,null,0]
[null,null,0,null,0,null,null,0]
[null,null,0,null,0,null,null,0]
[null,null,0,null,0,null,null,0]
[null,null,0,null,0,null,null,0]
[null,null,0,null,0,null,null,0]
[null,null,0,null,0,null,null,0]
[null,null,0,null,0,null,null,0]
[null,null,0,null,0,null,null,0]
[null,null,0,null,0,null,null,0]
[null,null,0,null,0,null,null,0]
[null,null,0,null,0,null,null,0]
[null,null,0,null,0,null,null,0]
[null,null,0,null,0,null,null,0]
[null,null,0,null,0,null,null,0]
[null,null,0,null,0,null,null,0]
[null,null,0,null,0,null,null,0]
[null,null,0,null,0,null,null,0]
[null,null,0,null,0,null,null,0]
[null,null,0,null,0,null,null,0]
[null,null,0,null,0,null,null,0]
[null,null,0,null,0,null,null,0]
[null,null,0,null,0,null,null,0]
[null,null,0,null,0,null,null,0]
[null,null,0,null,0,null,null,0]
[null,null,0,null,0,null,null,0]
[null,null,0,null,0,null,null,0]
[null,null,0,null,0,null,null,0]
[null,null,{"$f":"IF(OR(B22789=\"Transferable securities\",B22789=\"Money-market instruments\",B22789=\"Units in collective investment undertakings\",B22789=\"Options\",B22789=\"Futures\",B22789=\"Swaps\",B22789=\"Forward rate agreements\",B22789=\"Financial Contracts for Differences\"),1,0)","v":0},null,{"$f":"IF(LEN(D22789)=3, 1, IF(LEN(D22789)=12, 1, 0))","v":0},null,null,{"$f":"IF(OR(G22789=\"Complex\",G22789=\"Non-Complex\", G22789=\"Non Complex\"),1,0)","v":0}]
[null,null,0,null,0,null,null,0]
[null,null,0,null,0,null,null,0]
[null,null,0,null,0,null,null,0]
[null,null,0,null,0,null,null,0]
[null,null,0,null,0,null,null,0]
[null,null,0,null,0,null,null,0]
[null,null,0,null,0,null,null,0]
[null,null,0,null,0,null,null,0]
[null,null,0,null,0,null,null,0]
[null,null,0,null,0,null,null,0]
[null,null,0,null,0,null,null,0]
[null,null,0,null,0,null,null,0]
[null,null,0,null,0,null,null,0]
[null,null,0,null,0,null,null,0]
[null,null,0,null,0,null,null,0]
[null,null,0,null,0,null,null,0]
[null,null,0,null,0,null,null,0]
[null,null,0,null,0,null,null,0]
[null,null,0,null,0,null,null,0]
[null,null,0,null,0,null,null,0]
[null,null,0,null,0,null,null,0]
[null,null,0,null,0,null,null,0]
[null,null,0,null,0,null,null,0]
[null,null,{"$f":"IF(OR(B23109=\"Transferable securities\",B23109=\"Money-market instruments\",B23109=\"Units in collective investment undertakings\",B23109=\"Options\",B23109=\"Futures\",B23109=\"Swaps\",B23109=\"Forward rate agreements\",B23109=\"Financial Contracts for Differences\"),1,0)","v":0},null,{"$f":"IF(LEN(D23109)=3, 1, IF(LEN(D23109)=12, 1, 0))","v":0},null,null,{"$f":"IF(OR(G23109=\"Complex\",G23109=\"Non-Complex\", G23109=\"Non Complex\"),1,0)","v":0}]
[null,null,0,null,0,null,null,0]
[null,null,0,null,0,null,null,0]
[null,null,0,null,0,null,null,0]
[null,null,0,null,0,null,null,0]
[null,null,0,null,0,null,null,0]
[null,null,0,null,0,null,null,0]
[null,null,0,null,0,null,null,0]
[null,null,0,null,0,null,null,0]
[null,null,{"$f":"IF(OR(B23237=\"Transferable securities\",B23237=\"Money-market instruments\",B23237=\"Units in collective investment undertakings\",B23237=\"Options\",B23237=\"Futures\",B23237=\"Swaps\",B23237=\"Forward rate agreements\",B23237=\"Financial Contracts for Differences\"),1,0)","v":0},null,{"$f":"IF(LEN(D23237)=3, 1, IF(LEN(D23237)=12, 1, 0))","v":0},null,null,{"$f":"IF(OR(G23237=\"Complex\",G23237=\"Non-Complex\", G23237=\"Non Complex\"),1,0)","v":0}]
[null,null,0,null,0,null,null,0]
[null,null,0,null,0,null,null,0]
[null,null,0,null,0,null,null,0]
[null,null,0,null,0,null,null,0]
[null,null,0,null,0,null,null,0]
[null,null,0,null,0,null,null,0]
[null,null,0,null,0,null,null,0]
[null,null,0,null,0,null,null,0]
[null,null,0,null,0,null,null,0]
[null,null,0,null,0,null,null,0]
[null,null,0,null,0,null,null,0]
[null,null,0,null,0,null,null,0]
[null,null,0,null,0,null,null,0]
[null,null,0,null,0,null,null,0]
[null,null,0,null,0,null,null,0]
[null,null,0,null,0,null,null,0]
[null,null,0,null,0,null,null,0]
[null,null,0,null,0,null,null,0]
[null,null,0,null,0,null,null,0]
[null,null,0,null,0,null,null,0]
[null,null,0,null,0,null,null,0]
[null,null,0,null,0,null,null,0]
[null,null,0,null,0,null,null,0]
[null,null,0,null,0,null,null,0]
[null,null,0,null,0,null,null,0]
[null,null,0,null,0,null,null,0]
[null,null,0,null,0,null,null,0]
[null,null,0,null,0,null,null,0]
[null,null,0,null,0,null,null,0]
[null,null,0,null,0,null,null,0]
[null,null,0,null,0,null,null,0]
[null,null,0,null,0,null,null,0]
[null,null,0,null,0,null,null,0]
[null,null,0,null,0,null,null,0]
[null,null,0,null,0,null,null,0]
[null,null,0,null,0,null,null,0]
[null,null,0,null,0,null,null,0]
[null,null,0,null,0,null,null,0]
[null,null,0,null,0,null,null,0]
[null,null,0,null,0,null,null,0]
[null,null,0,null,0,null,null,0]
[null,null,0,null,0,null,null,0]
[null,null,0,null,0,null,null,0]
[null,null,0,null,0,null,null,0]
[null,null,0,null,0,null,null,0]
[null,null,0,null,0,null,null,0]
[null,null,0,null,0,null,null,0]
[null,null,0,null,0,null,null,0]
[null,null,0,null,0,null,null,0]
[null,null,0,null,0,null,null,0]
[null,null,0,null,0,null,null,0]
[null,null,0,null,0,null,null,0]
[null,null,0,null,0,null,null,0]
[null,null,0,null,0,null,null,0]
[null,null,0,null,0,null,null,0]
[null,null,0,null,0,null,null,0]
[null,null,0,null,0,null,null,0]
[null,null,0,null,0,null,null,0]
[null,null,0,null,0,null,null,0]
[null,null,0,null,0,null,null,0]
[null,null,0,null,0,null,null,0]
[null,null,0,null,0,null,null,0]
[null,null,0,null,0,null,null,0]
[null,null,0,null,0,null,null,0]
[null,null,0,null,0,null,null,0]
[null,null,0,null,0,null,null,0]
[null,null,0,null,0,null,null,0]
[null,null,0,null,0,null,null,0]
[null,null,0,null,0,null,null,0]
[null,null,0,null,0,null,null,0]
[null,null,0,null,0,null,null,0]
[null,null,0,null,0,null,null,0]
[null,null,0,null,0,null,null,0]
[null,null,0,null,0,null,null,0]
[null,null,0,null,0,null,null,0]
[null,null,0,null,0,null,null,0]
[null,null,0,null,0,null,null,0]
[null,null,0,null,0,null,null,0]
[null,null,0,null,0,null,null,0]
[null,null,0,null,0,null,null,0]
[null,null,0,null,0,null,null,0]
[null,null,0,null,0,null,null,0]
[null,null,0,null,0,null,null,0]
[null,null,0,null,0,null,null,0]
[null,null,0,null,0,null,null,0]
[null,null,0,null,0,null,null,0]
[null,null,0,null,0,null,null,0]
[null,null,0,null,0,null,null,0]
[null,null,0,null,0,null,null,0]
[null,null,0,null,0,null,null,0]
[null,null,0,null,0,null,null,0]
[null,null,0,null,0,null,null,0]
[null,null,{"$f":"IF(OR(B24517=\"Transferable securities\",B24517=\"Money-market instruments\",B24517=\"Units in collective investment undertakings\",B24517=\"Options\",B24517=\"Futures\",B24517=\"Swaps\",B24517=\"Forward rate agreements\",B24517=\"Financial Contracts for Differences\"),1,0)","v":0},null,{"$f":"IF(LEN(D24517)=3, 1, IF(LEN(D24517)=12, 1, 0))","v":0},null,null,{"$f":"IF(OR(G24517=\"Complex\",G24517=\"Non-Complex\", G24517=\"Non Complex\"),1,0)","v":0}]
[null,null,0,null,0,null,null,0]
[null,null,0,null,0,null,null,0]
[null,null,0,null,0,null,null,0]
[null,null,0,null,0,null,null,0]
[null,null,0,null,0,null,null,0]
[null,null,0,null,0,null,null,0]
[null,null,0,null,0,null,null,0]
[null,null,0,null,0,null,null,0]
[null,null,0,null,0,null,null,0]
[null,null,0,null,0,null,null,0]
[null,null,0,null,0,null,null,0]
[null,null,0,null,0,null,null,0]
[null,null,0,null,0,null,null,0]
[null,null,0,null,0,null,null,0]
[null,null,0,null,0,null,null,0]
[null,null,0,null,0,null,null,0]
[null,null,0,null,0,null,null,0]
[null,null,0,null,0,null,null,0]
[null,null,0,null,0,null,null,0]
[null,null,0,null,0,null,null,0]
[null,null,0,null,0,null,null,0]
[null,null,0,null,0,null,null,0]
[null,null,0,null,0,null,null,0]
[null,null,0,null,0,null,null,0]
[null,null,0,null,0,null,null,0]
[null,null,0,null,0,null,null,0]
[null,null,0,null,0,null,null,0]
[null,null,0,null,0,null,null,0]
[null,null,0,null,0,null,null,0]
[null,null,0,null,0,null,null,0]
[null,null,0,null,0,null,null,0]
[null,null,0,null,0,null,null,0]
[null,null,0,null,0,null,null,0]
[null,null,0,null,0,null,null,0]
[null,null,0,null,0,null,null,0]
[null,null,0,null,0,null,null,0]
[null,null,0,null,0,null,null,0]
[null,null,0,null,0,null,null,0]
[null,null,0,null,0,null,null,0]
[null,null,0,null,0,null,null,0]
[null,null,0,null,0,null,null,0]
[null,null,0,null,0,null,null,0]
[null,null,0,null,0,null,null,0]
[null,null,0,null,0,null,null,0]
[null,null,0,null,0,null,null,0]
[null,null,0,null,0,null,null,0]
[null,null,0,null,0,null,null,0]
[null,null,0,null,0,null,null,0]
[null,null,0,null,0,null,null,0]
[null,null,0,null,0,null,null,0]
[null,null,0,null,0,null,null,0]
[null,null,0,null,0,null,null,0]
[null,null,0,null,0,null,null,0]
[null,null,0,null,0,null,null,0]
[null,null,0,null,0,null,null,0]
[null,null,0,null,0,null,null,0]
[null,null,0,null,0,null,null,0]
[null,null,0,null,0,null,null,0]
[null,null,0,null,0,null,null,0]
[null,null,0,null,0,null,null,0]
[null,null,0,null,0,null,null,0]
[null,null,0,null,0,null,null,0]
[null,null,0,null,0,null,null,0]
[null,null,0,null,0,null,null,0]
[null,null,0,null,0,null,null,0]
[null,null,0,null,0,null,null,0]
[null,null,0,null,0,null,null,0]
[null,null,0,null,0,null,null,0]
[null,null,0,null,0,null,null,0]
[null,null,0,null,0,null,null,0]
[null,null,0,null,0,null,null,0]
[null,null,0,null,0,null,null,0]
[null,null,0,null,0,null,null,0]
[null,null,0,null,0,null,null,0]
[null,null,0,null,0,null,null,0]
[null,null,0,null,0,null,null,0]
[null,null,0,null,0,null,null,0]
[null,null,0,null,0,null,null,0]
[null,null,0,null,0,null,null,0]
[null,null,0,null,0,null,null,0]
[null,null,0,null,0,null,null,0]
[null,null,0,null,0,null,null,0]
[null,null,0,null,0,null,null,0]
[null,null,0,null,0,null,null,0]
[null,null,0,null,0,null,null,0]
[null,null,0,null,0,null,null,0]
[null,null,0,null,0,null,null,0]
[null,null,0,null,0,null,null,0]
[null,null,0,null,0,null,null,0]
[null,null,0,null,0,null,null,0]
[null,null,0,null,0,null,null,0]
[null,null,0,null,0,null,null,0]
[null,null,0,null,0,null,null,0]
[null,null,0,null,0,null,null,0]
[null,null,0,null,0,null,null,0]
[null,null,0,null,0,null,null,0]
[null,null,0,null,0,null,null,0]
[null,null,0,null,0,null,null,0]
[null,null,0,null,0,null,null,0]
[null,null,0,null,0,null,null,0]
[null,null,0,null,0,null,null,0]
[null,null,0,null,0,null,null,0]
[null,null,0,null,0,null,null,0]
[null,null,0,null,0,null,null,0]
[null,null,0,null,0,null,null,0]
[null,null,0,null,0,null,null,0]
[null,null,0,null,0,null,null,0]
[null,null,0,null,0,null,null,0]
[null,null,0,null,0,null,null,0]
[null,null,0,null,0,null,null,0]
[null,null,0,null,0,null,null,0]
[null,null,0,null,0,null,null,0]
[null,null,0,null,0,null,null,0]
[null,null,0,null,0,null,null,0]
[null,null,0,null,0,null,null,0]
[null,null,0,null,0,null,null,0]
[null,null,0,null,0,null,null,0]
[null,null,0,null,0,null,null,0]
[null,null,0,null,0,null,null,0]
[null,null,0,null,0,null,null,0]
[null,null,0,null,0,null,null,0]
[null,null,0,null,0,null,null,0]
[null,null,0,null,0,null,null,0]
[null,null,0,null,0,null,null,0]
[null,null,0,null,0,null,null,0]
[null,null,0,null,0,null,null,0]
[null,null,0,null,0,null,null,0]
[null,null,0,null,0,null,null,0]
[null,null,0,null,0,null,null,0]
[null,null,{"$f":"IF(OR(B26309=\"Transferable securities\",B26309=\"Money-market instruments\",B26309=\"Units in collective investment undertakings\",B26309=\"Options\",B26309=\"Futures\",B26309=\"Swaps\",B26309=\"Forward rate agreements\",B26309=\"Financial Contracts for Differences\"),1,0)","v":0},null,{"$f":"IF(LEN(D26309)=3, 1, IF(LEN(D26309)=12, 1, 0))","v":0},null,null,{"$f":"IF(OR(G26309=\"Complex\",G26309=\"Non-Complex\", G26309=\"Non Complex\"),1,0)","v":0}]
[null,null,0,null,0,null,null,0]
[null,null,0,null,0,null,null,0]
[null,null,0,null,0,null,null,0]
[null,null,0,null,0,null,null,0]
[null,null,0,null,0,null,null,0]
[null,null,0,null,0,null,null,0]
[null,null,0,null,0,null,null,0]
[null,null,0,null,0,null,null,0]
[null,null,0,null,0,null,null,0]
[null,null,0,null,0,null,null,0]
[null,null,0,null,0,null,null,0]
[null,null,0,null,0,null,null,0]
[null,null,0,null,0,null,null,0]
[null,null,0,null,0,null,null,0]
[null,null,0,null,0,null,null,0]
[null,null,0,null,0,null,null,0]
[null,null,0,null,0,null,null,0]
[null,null,0,null,0,null,null,0]
[null,null,{"$f":"IF(OR(B26565=\"Transferable securities\",B26565=\"Money-market instruments\",B26565=\"Units in collective investment undertakings\",B26565=\"Options\",B26565=\"Futures\",B26565=\"Swaps\",B26565=\"Forward rate agreements\",B26565=\"Financial Contracts for Differences\"),1,0)","v":0},null,{"$f":"IF(LEN(D26565)=3, 1, IF(LEN(D26565)=12, 1, 0))","v":0},null,null,{"$f":"IF(OR(G26565=\"Complex\",G26565=\"Non-Complex\", G26565=\"Non Complex\"),1,0)","v":0}]
[null,null,0,null,0,null,null,0]
[null,null,0,null,0,null,null,0]
[null,null,0,null,0,null,null,0]
[null,null,0,null,0,null,null,0]
[null,null,0,null,0,null,null,0]
[null,null,0,null,0,null,null,0]
[null,null,0,null,0,null,null,0]
[null,null,0,null,0,null,null,0]
[null,null,0,null,0,null,null,0]
[null,null,0,null,0,null,null,0]
[null,null,0,null,0,null,null,0]
[null,null,0,null,0,null,null,0]
[null,null,0,null,0,null,null,0]
[null,null,0,null,0,null,null,0]
[null,null,0,null,0,null,null,0]
[null,null,0,null,0,null,null,0]
[null,null,0,null,0,null,null,0]
[null,null,0,null,0,null,null,0]
[null,null,0,null,0,null,null,0]
[null,null,0,null,0,null,null,0]
[null,null,0,null,0,null,null,0]
[null,null,0,null,0,null,null,0]
[null,null,0,null,0,null,null,0]
[null,null,0,null,0,null,null,0]
[null,null,0,null,0,null,null,0]
[null,null,0,null,0,null,null,0]
[null,null,0,null,0,null,null,0]
[null,null,0,null,0,null,null,0]
[null,null,0,null,0,null,null,0]
[null,null,0,null,0,null,null,0]
[null,null,0,null,0,null,null,0]
[null,null,0,null,0,null,null,0]
[null,null,0,null,0,null,null,0]
[null,null,0,null,0,null,null,0]
[null,null,0,null,0,null,null,0]
[null,null,0,null,0,null,null,0]
[null,null,0,null,0,null,null,0]
[null,null,0,null,0,null,null,0]
[null,null,0,null,0,null,null,0]
[null,null,0,null,0,null,null,0]
[null,null,0,null,0,null,null,0]
[null,null,0,null,0,null,null,0]
[null,null,0,null,0,null,null,0]
[null,null,0,null,0,null,null,0]
[null,null,0,null,0,null,null,0]
[null,null,0,null,0,null,null,0]
[null,null,0,null,0,null,null,0]
[null,null,0,null,0,null,null,0]
[null,null,0,null,0,null,null,0]
[null,null,0,null,0,null,null,0]
[null,null,0,null,0,null,null,0]
[null,null,0,null,0,null,null,0]
[null,null,0,null,0,null,null,0]
[null,null,0,null,0,null,null,0]
[null,null,0,null,0,null,null,0]
[null,null,0,null,0,null,null,0]
[null,null,0,null,0,null,null,0]
[null,null,0,null,0,null,null,0]
[null,null,0,null,0,null,null,0]
[null,null,0,null,0,null,null,0]
[null,null,0,null,0,null,null,0]
[null,null,0,null,0,null,null,0]
[null,null,0,null,0,null,null,0]
[null,null,0,null,0,null,null,0]
[null,null,0,null,0,null,null,0]
[null,null,0,null,0,null,null,0]
[null,null,0,null,0,null,null,0]
[null,null,0,null,0,null,null,0]
[null,null,0,null,0,null,null,0]
[null,null,0,null,0,null,null,0]
[null,null,0,null,0,null,null,0]
[null,null,0,null,0,null,null,0]
[null,null,0,null,0,null,null,0]
[null,null,0,null,0,null,null,0]
[null,null,0,null,0,null,null,0]
[null,null,0,null,0,null,null,0]
[null,null,0,null,0,null,null,0]
[null,null,0,null,0,null,null,0]
[null,null,0,null,0,null,null,0]
[null,null,0,null,0,null,null,0]
[null,null,0,null,0,null,null,0]
[null,null,0,null,0,null,null,0]
[null,null,0,null,0,null,null,0]
[null,null,0,null,0,null,null,0]
[null,null,0,null,0,null,null,0]
[null,null,0,null,0,null,null,0]
[null,null,0,null,0,null,null,0]
[null,null,0,null,0,null,null,0]
[null,null,0,null,0,null,null,0]
[null,null,0,null,0,null,null,0]
[null,null,0,null,0,null,null,0]
[null,null,0,null,0,null,null,0]
[null,null,0,null,0,null,null,0]
[null,null,0,null,0,null,null,0]
[null,null,0,null,0,null,null,0]
[null,null,0,null,0,null,null,0]
[null,null,0,null,0,null,null,0]
[null,null,0,null,0,null,null,0]
[null,null,0,null,0,null,null,0]
[null,null,0,null,0,null,null,0]
[null,null,0,null,0,null,null,0]
[null,null,0,null,0,null,null,0]
[null,null,0,null,0,null,null,0]
[null,null,0,null,0,null,null,0]
[null,null,0,null,0,null,null,0]
[null,null,0,null,0,null,null,0]
[null,null,0,null,0,null,null,0]
[null,null,0,null,0,null,null,0]
[null,null,0,null,0,null,null,0]
[null,null,0,null,0,null,null,0]
[null,null,0,null,0,null,null,0]
[null,null,0,null,0,null,null,0]
[null,null,0,null,0,null,null,0]
[null,null,0,null,0,null,null,0]
[null,null,0,null,0,null,null,0]
[null,null,0,null,0,null,null,0]
[null,null,0,null,0,null,null,0]
[null,null,0,null,0,null,null,0]
[null,null,0,null,0,null,null,0]
[null,null,0,null,0,null,null,0]
[null,null,0,null,0,null,null,0]
[null,null,0,null,0,null,null,0]
[null,null,0,null,0,null,null,0]
[null,null,0,null,0,null,null,0]
[null,null,0,null,0,null,null,0]
[null,null,0,null,0,null,null,0]
[null,null,0,null,0,null,null,0]
[null,null,0,null,0,null,null,0]
[null,null,0,null,0,null,null,0]
[null,null,0,null,0,null,null,0]
[null,null,0,null,0,null,null,0]
[null,null,0,null,0,null,null,0]
[null,null,0,null,0,null,null,0]
[null,null,0,null,0,null,null,0]
[null,null,0,null,0,null,null,0]
[null,null,0,null,0,null,null,0]
[null,null,0,null,0,null,null,0]
[null,null,0,null,0,null,null,0]
[null,null,0,null,0,null,null,0]
[null,null,0,null,0,null,null,0]
[null,null,0,null,0,null,null,0]
[null,null,0,null,0,null,null,0]
[null,null,0,null,0,null,null,0]
[null,null,0,null,0,null,null,0]
[null,null,0,null,0,null,null,0]
[null,null,0,null,0,null,null,0]
[null,null,0,null,0,null,null,0]
[null,null,0,null,0,null,null,0]
[null,null,{"$f":"IF(OR(B28613=\"Transferable securities\",B28613=\"Money-market instruments\",B28613=\"Units in collective investment undertakings\",B28613=\"Options\",B28613=\"Futures\",B28613=\"Swaps\",B28613=\"Forward rate agreements\",B28613=\"Financial Contracts for Differences\"),1,0)","v":0},null,{"$f":"IF(LEN(D28613)=3, 1, IF(LEN(D28613)=12, 1, 0))","v":0},null,null,{"$f":"IF(OR(G28613=\"Complex\",G28613=\"Non-Complex\", G28613=\"Non Complex\"),1,0)","v":0}]
[null,null,0,null,0,null,null,0]
[null,null,0,null,0,null,null,0]
[null,null,0,null,0,null,null,0]
[null,null,0,null,0,null,null,0]
[null,null,0,null,0,null,null,0]
[null,null,0,null,0,null,null,0]
[null,null,0,null,0,null,null,0]
[null,null,0,null,0,null,null,0]
[null,null,{"$f":"IF(OR(B28741=\"Transferable securities\",B28741=\"Money-market instruments\",B28741=\"Units in collective investment undertakings\",B28741=\"Options\",B28741=\"Futures\",B28741=\"Swaps\",B28741=\"Forward rate agreements\",B28741=\"Financial Contracts for Differences\"),1,0)","v":0},null,{"$f":"IF(LEN(D28741)=3, 1, IF(LEN(D28741)=12, 1, 0))","v":0},null,null,{"$f":"IF(OR(G28741=\"Complex\",G28741=\"Non-Complex\", G28741=\"Non Complex\"),1,0)","v":0}]
[null,null,0,null,0,null,null,0]
[null,null,0,null,0,null,null,0]
[null,null,0,null,0,null,null,0]
[null,null,0,null,0,null,null,0]
[null,null,0,null,0,null,null,0]
[null,null,0,null,0,null,null,0]
[null,null,0,null,0,null,null,0]
[null,null,0,null,0,null,null,0]
[null,null,0,null,0,null,null,0]
[null,null,0,null,0,null,null,0]
[null,null,0,null,0,null,null,0]
[null,null,0,null,0,null,null,0]
[null,null,0,null,0,null,null,0]
[null,null,0,null,0,null,null,0]
[null,null,0,null,0,null,null,0]
[null,null,0,null,0,null,null,0]
[null,null,0,null,0,null,null,0]
[null,null,0,null,0,null,null,0]
[null,null,0,null,0,null,null,0]
[null,null,0,null,0,null,null,0]
[null,null,0,null,0,null,null,0]
[null,null,0,null,0,null,null,0]
[null,null,0,null,0,null,null,0]
[null,null,0,null,0,null,null,0]
[null,null,0,null,0,null,null,0]
[null,null,0,null,0,null,null,0]
[null,null,0,null,0,null,null,0]
[null,null,0,null,0,null,null,0]
[null,null,0,null,0,null,null,0]
[null,null,0,null,0,null,null,0]
[null,null,0,null,0,null,null,0]
[null,null,0,null,0,null,null,0]
[null,null,0,null,0,null,null,0]
[null,null,0,null,0,null,null,0]
[null,null,0,null,0,null,null,0]
[null,null,0,null,0,null,null,0]
[null,null,0,null,0,null,null,0]
[null,null,0,null,0,null,null,0]
[null,null,0,null,0,null,null,0]
[null,null,0,null,0,null,null,0]
[null,null,0,null,0,null,null,0]
[null,null,0,null,0,null,null,0]
[null,null,0,null,0,null,null,0]
[null,null,0,null,0,null,null,0]
[null,null,0,null,0,null,null,0]
[null,null,0,null,0,null,null,0]
[null,null,0,null,0,null,null,0]
[null,null,0,null,0,null,null,0]
[null,null,0,null,0,null,null,0]
[null,null,0,null,0,null,null,0]
[null,null,0,null,0,null,null,0]
[null,null,0,null,0,null,null,0]
[null,null,0,null,0,null,null,0]
[null,null,0,null,0,null,null,0]
[null,null,0,null,0,null,null,0]
[null,null,0,null,0,null,null,0]
[null,null,0,null,0,null,null,0]
[null,null,0,null,0,null,null,0]
[null,null,0,null,0,null,null,0]
[null,null,0,null,0,null,null,0]
[null,null,0,null,0,null,null,0]
[null,null,0,null,0,null,null,0]
[null,null,0,null,0,null,null,0]
[null,null,{"$f":"IF(OR(B29509=\"Transferable securities\",B29509=\"Money-market instruments\",B29509=\"Units in collective investment undertakings\",B29509=\"Options\",B29509=\"Futures\",B29509=\"Swaps\",B29509=\"Forward rate agreements\",B29509=\"Financial Contracts for Differences\"),1,0)","v":0},null,{"$f":"IF(LEN(D29509)=3, 1, IF(LEN(D29509)=12, 1, 0))","v":0},null,null,{"$f":"IF(OR(G29509=\"Complex\",G29509=\"Non-Complex\", G29509=\"Non Complex\"),1,0)","v":0}]
[null,null,0,null,0,null,null,0]
[null,null,0,null,0,null,null,0]
[null,null,0,null,0,null,null,0]
[null,null,0,null,0,null,null,0]
[null,null,0,null,0,null,null,0]
[null,null,0,null,0,null,null,0]
[null,null,0,null,0,null,null,0]
[null,null,0,null,0,null,null,0]
[null,null,0,null,0,null,null,0]
[null,null,0,null,0,null,null,0]
[null,null,0,null,0,null,null,0]
[null,null,0,null,0,null,null,0]
[null,null,0,null,0,null,null,0]
[null,null,0,null,0,null,null,0]
[null,null,0,null,0,null,null,0]
[null,null,0,null,0,null,null,0]
[null,null,0,null,0,null,null,0]
[null,null,0,null,0,null,null,0]
[null,null,0,null,0,null,null,0]
[null,null,0,null,0,null,null,0]
[null,null,0,null,0,null,null,0]
[null,null,0,null,0,null,null,0]
[null,null,0,null,0,null,null,0]
[null,null,0,null,0,null,null,0]
[null,null,0,null,0,null,null,0]
[null,null,0,null,0,null,null,0]
[null,null,0,null,0,null,null,0]
[null,null,0,null,0,null,null,0]
[null,null,0,null,0,null,null,0]
[null,null,0,null,0,null,null,0]
[null,null,0,null,0,null,null,0]
[null,null,0,null,0,null,null,0]
[null,null,0,null,0,null,null,0]
[null,null,0,null,0,null,null,0]
[null,null,0,null,0,null,null,0]
[null,null,0,null,0,null,null,0]
[null,null,0,null,0,null,null,0]
[null,null,0,null,0,null,null,0]
[null,null,0,null,0,null,null,0]
[null,null,0,null,0,null,null,0]
[null,null,0,null,0,null,null,0]
[null,null,0,null,0,null,null,0]
[null,null,0,null,0,null,null,0]
[null,null,0,null,0,null,null,0]
[null,null,0,null,0,null,null,0]
[null,null,0,null,0,null,null,0]
[null,null,0,null,0,null,null,0]
[null,null,0,null,0,null,null,0]
[null,null,0,null,0,null,null,0]
[null,null,0,null,0,null,null,0]
[null,null,0,null,0,null,null,0]
[null,null,0,null,0,null,null,0]
[null,null,0,null,0,null,null,0]
[null,null,0,null,0,null,null,0]
[null,null,0,null,0,null,null,0]
[null,null,0,null,0,null,null,0]
[null,null,0,null,0,null,null,0]
[null,null,0,null,0,null,null,0]
[null,null,0,null,0,null,null,0]
[null,null,0,null,0,null,null,0]
[null,null,0,null,0,null,null,0]
[null,null,0,null,0,null,null,0]
[null,null,0,null,0,null,null,0]
[null,null,{"$f":"IF(OR(B29573=\"Transferable securities\",B29573=\"Money-market instruments\",B29573=\"Units in collective investment undertakings\",B29573=\"Options\",B29573=\"Futures\",B29573=\"Swaps\",B29573=\"Forward rate agreements\",B29573=\"Financial Contracts for Differences\"),1,0)","v":0},null,{"$f":"IF(LEN(D29573)=3, 1, IF(LEN(D29573)=12, 1, 0))","v":0},null,null,{"$f":"IF(OR(G29573=\"Complex\",G29573=\"Non-Complex\", G29573=\"Non Complex\"),1,0)","v":0}]
[null,null,0,null,0,null,null,0]
[null,null,0,null,0,null,null,0]
[null,null,0,null,0,null,null,0]
[null,null,0,null,0,null,null,0]
[null,null,0,null,0,null,null,0]
[null,null,0,null,0,null,null,0]
[null,null,0,null,0,null,null,0]
[null,null,0,null,0,null,null,0]
[null,null,0,null,0,null,null,0]
[null,null,0,null,0,null,null,0]
[null,null,0,null,0,null,null,0]
[null,null,0,null,0,null,null,0]
[null,null,0,null,0,null,null,0]
[null,null,0,null,0,null,null,0]
[null,null,0,null,0,null,null,0]
[null,null,0,null,0,null,null,0]
[null,null,0,null,0,null,null,0]
[null,null,0,null,0,null,null,0]
[null,null,0,null,0,null,null,0]
[null,null,0,null,0,null,null,0]
[null,null,0,null,0,null,null,0]
[null,null,0,null,0,null,null,0]
[null,null,0,null,0,null,null,0]
[null,null,0,null,0,null,null,0]
[null,null,0,null,0,null,null,0]
[null,null,0,null,0,null,null,0]
[null,null,0,null,0,null,null,0]
[null,null,0,null,0,null,null,0]
[null,null,0,null,0,null,null,0]
[null,null,0,null,0,null,null,0]
[null,null,0,null,0,null,null,0]
[null,null,0,null,0,null,null,0]
[null,null,0,null,0,null,null,0]
[null,null,0,null,0,null,null,0]
[null,null,0,null,0,null,null,0]
[null,null,0,null,0,null,null,0]
[null,null,0,null,0,null,null,0]
[null,null,0,null,0,null,null,0]
[null,null,0,null,0,null,null,0]
[null,null,0,null,0,null,null,0]
[null,null,0,null,0,null,null,0]
[null,null,0,null,0,null,null,0]
[null,null,0,null,0,null,null,0]
[null,null,0,null,0,null,null,0]
[null,null,0,null,0,null,null,0]
[null,null,0,null,0,null,null,0]
[null,null,0,null,0,null,null,0]
[null,null,0,null,0,null,null,0]
[null,null,0,null,0,null,null,0]
[null,null,0,null,0,null,null,0]
[null,null,0,null,0,null,null,0]
[null,null,0,null,0,null,null,0]
[null,null,0,null,0,null,null,0]
[null,null,0,null,0,null,null,0]
[null,null,0,null,0,null,null,0]
[null,null,0,null,0,null,null,0]
[null,null,0,null,0,null,null,0]
[null,null,0,null,0,null,null,0]
[null,null,0,null,0,null,null,0]
[null,null,0,null,0,null,null,0]
[null,null,0,null,0,null,null,0]
[null,null,0,null,0,null,null,0]
[null,null,0,null,0,null,null,0]
[null,null,{"$f":"IF(OR(B29637=\"Transferable securities\",B29637=\"Money-market instruments\",B29637=\"Units in collective investment undertakings\",B29637=\"Options\",B29637=\"Futures\",B29637=\"Swaps\",B29637=\"Forward rate agreements\",B29637=\"Financial Contracts for Differences\"),1,0)","v":0},null,{"$f":"IF(LEN(D29637)=3, 1, IF(LEN(D29637)=12, 1, 0))","v":0},null,null,{"$f":"IF(OR(G29637=\"Complex\",G29637=\"Non-Complex\", G29637=\"Non Complex\"),1,0)","v":0}]
[null,null,0,null,0,null,null,0]
[null,null,0,null,0,null,null,0]
[null,null,0,null,0,null,null,0]
[null,null,0,null,0,null,null,0]
[null,null,0,null,0,null,null,0]
[null,null,0,null,0,null,null,0]
[null,null,0,null,0,null,null,0]
[null,null,0,null,0,null,null,0]
[null,null,0,null,0,null,null,0]
[null,null,0,null,0,null,null,0]
[null,null,0,null,0,null,null,0]
[null,null,0,null,0,null,null,0]
[null,null,0,null,0,null,null,0]
[null,null,0,null,0,null,null,0]
[null,null,0,null,0,null,null,0]
[null,null,0,null,0,null,null,0]
[null,null,0,null,0,null,null,0]
[null,null,0,null,0,null,null,0]
[null,null,0,null,0,null,null,0]
[null,null,0,null,0,null,null,0]
[null,null,0,null,0,null,null,0]
[null,null,0,null,0,null,null,0]
[null,null,0,null,0,null,null,0]
[null,null,0,null,0,null,null,0]
[null,null,0,null,0,null,null,0]
[null,null,0,null,0,null,null,0]
[null,null,0,null,0,null,null,0]
[null,null,0,null,0,null,null,0]
[null,null,0,null,0,null,null,0]
[null,null,0,null,0,null,null,0]
[null,null,0,null,0,null,null,0]
[null,null,0,null,0,null,null,0]
[null,null,0,null,0,null,null,0]
[null,null,0,null,0,null,null,0]
[null,null,0,null,0,null,null,0]
[null,null,0,null,0,null,null,0]
[null,null,0,null,0,null,null,0]
[null,null,0,null,0,null,null,0]
[null,null,0,null,0,null,null,0]
[null,null,0,null,0,null,null,0]
[null,null,0,null,0,null,null,0]
[null,null,0,null,0,null,null,0]
[null,null,0,null,0,null,null,0]
[null,null,0,null,0,null,null,0]
[null,null,0,null,0,null,null,0]
[null,null,0,null,0,null,null,0]
[null,null,0,null,0,null,null,0]
[null,null,0,null,0,null,null,0]
[null,null,0,null,0,null,null,0]
[null,null,0,null,0,null,null,0]
[null,null,0,null,0,null,null,0]
[null,null,0,null,0,null,null,0]
[null,null,0,null,0,null,null,0]
[null,null,0,null,0,null,null,0]
[null,null,0,null,0,null,null,0]
[null,null,0,null,0,null,null,0]
[null,null,0,null,0,null,null,0]
[null,null,0,null,0,null,null,0]
[null,null,0,null,0,null,null,0]
[null,null,0,null,0,null,null,0]
[null,null,0,null,0,null,null,0]
[null,null,0,null,0,null,null,0]
[null,null,0,null,0,null,null,0]
[null,null,{"$f":"IF(OR(B29701=\"Transferable securities\",B29701=\"Money-market instruments\",B29701=\"Units in collective investment undertakings\",B29701=\"Options\",B29701=\"Futures\",B29701=\"Swaps\",B29701=\"Forward rate agreements\",B29701=\"Financial Contracts for Differences\"),1,0)","v":0},null,{"$f":"IF(LEN(D29701)=3, 1, IF(LEN(D29701)=12, 1, 0))","v":0},null,null,{"$f":"IF(OR(G29701=\"Complex\",G29701=\"Non-Complex\", G29701=\"Non Complex\"),1,0)","v":0}]
[null,null,0,null,0,null,null,0]
[null,null,0,null,0,null,null,0]
[null,null,0,null,0,null,null,0]
[null,null,0,null,0,null,null,0]
[null,null,0,null,0,null,null,0]
[null,null,0,null,0,null,null,0]
[null,null,0,null,0,null,null,0]
[null,null,0,null,0,null,null,0]
[null,null,0,null,0,null,null,0]
[null,null,0,null,0,null,null,0]
[null,null,0,null,0,null,null,0]
[null,null,0,null,0,null,null,0]
[null,null,0,null,0,null,null,0]
[null,null,0,null,0,null,null,0]
[null,null,0,null,0,null,null,0]
[null,null,0,null,0,null,null,0]
[null,null,0,null,0,null,null,0]
[null,null,0,null,0,null,null,0]
[null,null,0,null,0,null,null,0]
[null,null,0,null,0,null,null,0]
[null,null,0,null,0,null,null,0]
[null,null,0,null,0,null,null,0]
[null,null,0,null,0,null,null,0]
[null,null,0,null,0,null,null,0]
[null,null,0,null,0,null,null,0]
[null,null,0,null,0,null,null,0]
[null,null,0,null,0,null,null,0]
[null,null,0,null,0,null,null,0]
[null,null,0,null,0,null,null,0]
[null,null,0,null,0,null,null,0]
[null,null,0,null,0,null,null,0]
[null,null,0,null,0,null,null,0]
[null,null,0,null,0,null,null,0]
[null,null,0,null,0,null,null,0]
[null,null,0,null,0,null,null,0]
[null,null,0,null,0,null,null,0]
[null,null,0,null,0,null,null,0]
[null,null,0,null,0,null,null,0]
[null,null,0,null,0,null,null,0]
[null,null,0,null,0,null,null,0]
[null,null,0,null,0,null,null,0]
[null,null,0,null,0,null,null,0]
[null,null,0,null,0,null,null,0]
[null,null,0,null,0,null,null,0]
[null,null,0,null,0,null,null,0]
[null,null,0,null,0,null,null,0]
[null,null,0,null,0,null,null,0]
[null,null,0,null,0,null,null,0]
[null,null,0,null,0,null,null,0]
[null,null,0,null,0,null,null,0]
[null,null,0,null,0,null,null,0]
[null,null,0,null,0,null,null,0]
[null,null,0,null,0,null,null,0]
[null,null,0,null,0,null,null,0]
[null,null,0,null,0,null,null,0]
[null,null,0,null,0,null,null,0]
[null,null,0,null,0,null,null,0]
[null,null,0,null,0,null,null,0]
[null,null,0,null,0,null,null,0]
[null,null,0,null,0,null,null,0]
[null,null,0,null,0,null,null,0]
[null,null,0,null,0,null,null,0]
[null,null,0,null,0,null,null,0]
[null,null,{"$f":"IF(OR(B29765=\"Transferable securities\",B29765=\"Money-market instruments\",B29765=\"Units in collective investment undertakings\",B29765=\"Options\",B29765=\"Futures\",B29765=\"Swaps\",B29765=\"Forward rate agreements\",B29765=\"Financial Contracts for Differences\"),1,0)","v":0},null,{"$f":"IF(LEN(D29765)=3, 1, IF(LEN(D29765)=12, 1, 0))","v":0},null,null,{"$f":"IF(OR(G29765=\"Complex\",G29765=\"Non-Complex\", G29765=\"Non Complex\"),1,0)","v":0}]
[null,null,0,null,0,null,null,0]
[null,null,0,null,0,null,null,0]
[null,null,0,null,0,null,null,0]
[null,null,0,null,0,null,null,0]
[null,null,0,null,0,null,null,0]
[null,null,0,null,0,null,null,0]
[null,null,0,null,0,null,null,0]
[null,null,0,null,0,null,null,0]
[null,null,0,null,0,null,null,0]
[null,null,0,null,0,null,null,0]
[null,null,0,null,0,null,null,0]
[null,null,0,null,0,null,null,0]
[null,null,0,null,0,null,null,0]
[null,null,0,null,0,null,null,0]
[null,null,0,null,0,null,null,0]
[null,null,0,null,0,null,null,0]
[null,null,0,null,0,null,null,0]
[null,null,0,null,0,null,null,0]
[null,null,0,null,0,null,null,0]
[null,null,0,null,0,null,null,0]
[null,null,0,null,0,null,null,0]
[null,null,0,null,0,null,null,0]
[null,null,0,null,0,null,null,0]
[null,null,0,null,0,null,null,0]
[null,null,0,null,0,null,null,0]
[null,null,0,null,0,null,null,0]
[null,null,0,null,0,null,null,0]
[null,null,0,null,0,null,null,0]
[null,null,0,null,0,null,null,0]
[null,null,0,null,0,null,null,0]
[null,null,0,null,0,null,null,0]
[null,null,0,null,0,null,null,0]
[null,null,0,null,0,null,null,0]
[null,null,0,null,0,null,null,0]
[null,null,0,null,0,null,null,0]
[null,null,0,null,0,null,null,0]
[null,null,0,null,0,null,null,0]
[null,null,0,null,0,null,null,0]
[null,null,0,null,0,null,null,0]
[null,null,0,null,0,null,null,0]
[null,null,0,null,0,null,null,0]
[null,null,0,null,0,null,null,0]
[null,null,0,null,0,null,null,0]
[null,null,0,null,0,null,null,0]
[null,null,0,null,0,null,null,0]
[null,null,0,null,0,null,null,0]
[null,null,0,null,0,null,null,0]
[null,null,0,null,0,null,null,0]
[null,null,0,null,0,null,null,0]
[null,null,0,null,0,null,null,0]
[null,null,0,null,0,null,null,0]
[null,null,0,null,0,null,null,0]
[null,null,0,null,0,null,null,0]
[null,null,0,null,0,null,null,0]
[null,null,0,null,0,null,null,0]
[null,null,0,null,0,null,null,0]
[null,null,0,null,0,null,null,0]
[null,null,0,null,0,null,null,0]
[null,null,0,null,0,null,null,0]
[null,null,0,null,0,null,null,0]
[null,null,0,null,0,null,null,0]
[null,null,0,null,0,null,null,0]
[null,null,0,null,0,null,null,0]
[null,null,{"$f":"IF(OR(B29829=\"Transferable securities\",B29829=\"Money-market instruments\",B29829=\"Units in collective investment undertakings\",B29829=\"Options\",B29829=\"Futures\",B29829=\"Swaps\",B29829=\"Forward rate agreements\",B29829=\"Financial Contracts for Differences\"),1,0)","v":0},null,{"$f":"IF(LEN(D29829)=3, 1, IF(LEN(D29829)=12, 1, 0))","v":0},null,null,{"$f":"IF(OR(G29829=\"Complex\",G29829=\"Non-Complex\", G29829=\"Non Complex\"),1,0)","v":0}]
[null,null,0,null,0,null,null,0]
[null,null,0,null,0,null,null,0]
[null,null,0,null,0,null,null,0]
[null,null,0,null,0,null,null,0]
[null,null,0,null,0,null,null,0]
[null,null,0,null,0,null,null,0]
[null,null,0,null,0,null,null,0]
[null,null,0,null,0,null,null,0]
[null,null,0,null,0,null,null,0]
[null,null,0,null,0,null,null,0]
[null,null,0,null,0,null,null,0]
[null,null,0,null,0,null,null,0]
[null,null,0,null,0,null,null,0]
[null,null,0,null,0,null,null,0]
[null,null,0,null,0,null,null,0]
[null,null,0,null,0,null,null,0]
[null,null,0,null,0,null,null,0]
[null,null,0,null,0,null,null,0]
[null,null,0,null,0,null,null,0]
[null,null,0,null,0,null,null,0]
[null,null,0,null,0,null,null,0]
[null,null,0,null,0,null,null,0]
[null,null,0,null,0,null,null,0]
[null,null,0,null,0,null,null,0]
[null,null,0,null,0,null,null,0]
[null,null,0,null,0,null,null,0]
[null,null,0,null,0,null,null,0]
[null,null,0,null,0,null,null,0]
[null,null,0,null,0,null,null,0]
[null,null,0,null,0,null,null,0]
[null,null,0,null,0,null,null,0]
[null,null,0,null,0,null,null,0]
[null,null,0,null,0,null,null,0]
[null,null,0,null,0,null,null,0]
[null,null,0,null,0,null,null,0]
[null,null,0,null,0,null,null,0]
[null,null,0,null,0,null,null,0]
[null,null,0,null,0,null,null,0]
[null,null,0,null,0,null,null,0]
[null,null,0,null,0,null,null,0]
[null,null,0,null,0,null,null,0]
[null,null,0,null,0,null,null,0]
[null,null,0,null,0,null,null,0]
[null,null,0,null,0,null,null,0]
[null,null,0,null,0,null,null,0]
[null,null,0,null,0,null,null,0]
[null,null,0,null,0,null,null,0]
[null,null,0,null,0,null,null,0]
[null,null,0,null,0,null,null,0]
[null,null,0,null,0,null,null,0]
[null,null,0,null,0,null,null,0]
[null,null,0,null,0,null,null,0]
[null,null,0,null,0,null,null,0]
[null,null,0,null,0,null,null,0]
[null,null,0,null,0,null,null,0]
[null,null,0,null,0,null,null,0]
[null,null,0,null,0,null,null,0]
[null,null,0,null,0,null,null,0]
[null,null,0,null,0,null,null,0]
[null,null,0,null,0,null,null,0]
[null,null,0,null,0,null,null,0]
[null,null,0,null,0,null,null,0]
[null,null,0,null,0,null,null,0]
[null,null,{"$f":"IF(OR(B29893=\"Transferable securities\",B29893=\"Money-market instruments\",B29893=\"Units in collective investment undertakings\",B29893=\"Options\",B29893=\"Futures\",B29893=\"Swaps\",B29893=\"Forward rate agreements\",B29893=\"Financial Contracts for Differences\"),1,0)","v":0},null,{"$f":"IF(LEN(D29893)=3, 1, IF(LEN(D29893)=12, 1, 0))","v":0},null,null,{"$f":"IF(OR(G29893=\"Complex\",G29893=\"Non-Complex\", G29893=\"Non Complex\"),1,0)","v":0}]
[null,null,0,null,0,null,null,0]
[null,null,0,null,0,null,null,0]
[null,null,0,null,0,null,null,0]
[null,null,0,null,0,null,null,0]
[null,null,0,null,0,null,null,0]
[null,null,0,null,0,null,null,0]
[null,null,0,null,0,null,null,0]
[null,null,0,null,0,null,null,0]
[null,null,0,null,0,null,null,0]
[null,null,0,null,0,null,null,0]
[null,null,0,null,0,null,null,0]
[null,null,0,null,0,null,null,0]
[null,null,0,null,0,null,null,0]
[null,null,0,null,0,null,null,0]
[null,null,0,null,0,null,null,0]
[null,null,0,null,0,null,null,0]
[null,null,0,null,0,null,null,0]
[null,null,0,null,0,null,null,0]
[null,null,0,null,0,null,null,0]
[null,null,0,null,0,null,null,0]
[null,null,0,null,0,null,null,0]
[null,null,0,null,0,null,null,0]
[null,null,0,null,0,null,null,0]
[null,null,0,null,0,null,null,0]
[null,null,0,null,0,null,null,0]
[null,null,0,null,0,null,null,0]
[null,null,0,null,0,null,null,0]
[null,null,0,null,0,null,null,0]
[null,null,0,null,0,null,null,0]
[null,null,0,null,0,null,null,0]
[null,null,0,null,0,null,null,0]
[null,null,0,null,0,null,null,0]
[null,null,0,null,0,null,null,0]
[null,null,0,null,0,null,null,0]
[null,null,0,null,0,null,null,0]
[null,null,0,null,0,null,null,0]
[null,null,0,null,0,null,null,0]
[null,null,0,null,0,null,null,0]
[null,null,0,null,0,null,null,0]
[null,null,0,null,0,null,null,0]
[null,null,0,null,0,null,null,0]
[null,null,0,null,0,null,null,0]
[null,null,0,null,0,null,null,0]
[null,null,0,null,0,null,null,0]
[null,null,0,null,0,null,null,0]
[null,null,0,null,0,null,null,0]
[null,null,0,null,0,null,null,0]
[null,null,0,null,0,null,null,0]
[null,null,0,null,0,null,null,0]
[null,null,0,null,0,null,null,0]
[null,null,0,null,0,null,null,0]
[null,null,0,null,0,null,null,0]
[null,null,0,null,0,null,null,0]
[null,null,0,null,0,null,null,0]
[null,null,0,null,0,null,null,0]
[null,null,0,null,0,null,null,0]
[null,null,0,null,0,null,null,0]
[null,null,0,null,0,null,null,0]
[null,null,0,null,0,null,null,0]
[null,null,0,null,0,null,null,0]
[null,null,0,null,0,null,null,0]
[null,null,0,null,0,null,null,0]
[null,null,0,null,0,null,null,0]
[null,null,{"$f":"IF(OR(B29957=\"Transferable securities\",B29957=\"Money-market instruments\",B29957=\"Units in collective investment undertakings\",B29957=\"Options\",B29957=\"Futures\",B29957=\"Swaps\",B29957=\"Forward rate agreements\",B29957=\"Financial Contracts for Differences\"),1,0)","v":0},null,{"$f":"IF(LEN(D29957)=3, 1, IF(LEN(D29957)=12, 1, 0))","v":0},null,null,{"$f":"IF(OR(G29957=\"Complex\",G29957=\"Non-Complex\", G29957=\"Non Complex\"),1,0)","v":0}]
[null,null,0,null,0,null,null,0]
[null,null,0,null,0,null,null,0]
[null,null,0,null,0,null,null,0]
[null,null,0,null,0,null,null,0]
[null,null,0,null,0,null,null,0]
[null,null,0,null,0,null,null,0]
[null,null,0,null,0,null,null,0]
[null,null,0,null,0,null,null,0]
[null,null,0,null,0,null,null,0]
[null,null,0,null,0,null,null,0]
[null,null,0,null,0,null,null,0]
[null,null,0,null,0,null,null,0]
[null,null,0,null,0,null,null,0]
[null,null,0,null,0,null,null,0]
[null,null,0,null,0,null,null,0]
[null,null,0,null,0,null,null,0]
[null,null,0,null,0,null,null,0]
[null,null,0,null,0,null,null,0]
[null,null,0,null,0,null,null,0]
[null,null,0,null,0,null,null,0]
[null,null,0,null,0,null,null,0]
[null,null,0,null,0,null,null,0]
[null,null,0,null,0,null,null,0]
[null,null,0,null,0,null,null,0]
[null,null,0,null,0,null,null,0]
[null,null,0,null,0,null,null,0]
[null,null,0,null,0,null,null,0]
[null,null,0,null,0,null,null,0]
[null,null,0,null,0,null,null,0]
[null,null,0,null,0,null,null,0]
[null,null,0,null,0,null,null,0]
[null,null,0,null,0,null,null,0]
[null,null,0,null,0,null,null,0]
[null,null,0,null,0,null,null,0]
[null,null,0,null,0,null,null,0]
[null,null,0,null,0,null,null,0]
[null,null,0,null,0,null,null,0]
[null,null,0,null,0,null,null,0]
[null,null,0,null,0,null,null,0]
[null,null,0,null,0,null,null,0]
[null,null,0,null,0,null,null,0]
[null,null,0,null,0,null,null,0]
[null,null,0,null,0,null,null,0]

{"sheet":"2 - Complex Products","index":2,"n_rows":33,"n_cols":15,"rows_kept":33,"cut":false,"hidden":false,"merged":[[0,0,0,13],[3,0,3,12],[5,0,5,10],[5,11,5,12],[6,0,6,10],[6,11,6,12],[14,0,14,10],[14,11,14,12],[7,0,7,10],[7,11,7,12],[8,0,8,10],[8,11,8,12],[9,0,9,10],[9,11,9,12],[11,0,11,12],[12,0,12,10],[12,11,12,12],[13,0,13,10],[13,11,13,12],[15,0,15,10],[15,11,15,12],[16,0,16,10],[16,11,16,12],[17,0,17,10],[17,11,17,12],[18,0,18,10],[18,11,18,12],[19,0,19,10],[19,11,19,12],[20,0,20,10],[20,11,20,12],[30,0,30,9],[32,0,35,9],[32,11,35,12],[21,0,21,10],[21,11,21,12],[22,0,22,10],[22,11,22,12],[28,0,28,7],[28,8,28,9]]}
["Complex Products offered to Clients"]
["Section A: Top 10 Complex products"]
[]
["In the first table, the Company is required to include the relevant information irrespective of the clients categorisation. For further guidance on the complexity analysis, one may refer to the ESMA's Guidelines on Complex debt instruments and structured deposit as well as to the applicable section of the Conduct of Business Rulebook. "]
[]
["Number of Complex Products in Licence Holder's product suite",null,null,null,null,null,null,null,null,null,null,null,null,{"$f":"IF(L6=\"\",0,1)","v":0}]
["Number of clients in Licence Holder Records that hold the Licence Holder's top 10 Complex Products at the end of the reporting period",null,null,null,null,null,null,null,null,null,null,null,null,{"$f":"IF(L7=\"\",0,1)","v":0}]
["Number of clients in Licence Holder Records that hold the Licence Holder's Complex Products at the end of the reporting period",null,null,null,null,null,null,null,null,null,null,null,null,0]
["Total Client Holdings (in €) in the top 10 Complex Products at the end of the reporting period",null,null,null,null,null,null,null,null,null,null,null,null,0]
["Percentage of business (sales turnover for the period) of the Licence Holder that is represented by sale of top 10 Complex Products.",null,null,null,null,null,null,null,null,null,null,null,null,0]
[]
["Please list the top 10 Complex Products offered to Retail Clients at the end of the reporting period (Kindly mark as \"N/A\" if the Company did not offer Complex Products to Retail Clients):"]
["Name of the financial instrument",null,null,null,null,null,null,null,null,null,null,"ISIN (if applicable, otherwise kindly indicate N/A)"]
[null,null,null,null,null,null,null,null,null,null,null,null,null,{"$f":"IF(LEN(L14)=3, 1, IF(LEN(L14)=12, 1, 0))","v":0},1]
[null,null,null,null,null,null,null,null,null,null,null,null,null,0,2]
[null,null,null,null,null,null,null,null,null,null,null,null,null,0,3]
[null,null,null,null,null,null,null,null,null,null,null,null,null,0,4]
[null,null,null,null,null,null,null,null,null,null,null,null,null,0,5]
[null,null,null,null,null,null,null,null,null,null,null,null,null,0,6]
[null,null,null,null,null,null,null,null,null,null,null,null,null,0,7]
[null,null,null,null,null,null,null,null,null,null,null,null,null,0,8]
[null,null,null,null,null,null,null,null,null,null,null,null,null,0,9]
[null,null,null,null,null,null,null,null,null,null,null,null,null,0,10]
[]
["Section B: Application of national product intervention measures in EU Member States"]
[]
["National products intervention measures in relation to turbo certificates"]
[]
["1. Do you provide Dutch resident clients with turbo certificates  as defined in  \neither on a cross-border basis or by way of a branch? ",null,null,null,null,null,null,null,"the ESMA opinion"]
[]
["1.2 If yes, are you applying the national product intervention measures as detailed in the above ESMA opinion?"]
[]
["1.3 Please include in the box any additional comment to better explain your answers above. "]

{"sheet":"Dropdowns","index":3,"n_rows":9,"n_cols":5,"rows_kept":9,"cut":false,"hidden":true,"merged":[]}
["Instrument complexity",null,"Basis",null,"Instrument type"]
["Complex",null,"Advisory",null,"Transferable securities"]
["Non-complex",null,"Reception and trasmission of orders",null,"Money-market instruments"]
[null,null,"Execution of orders",null,"Units in collective investment undertakings"]
[null,null,"Portfolio management",null,"Options"]
[null,null,null,null,"Futures"]
[null,null,null,null,"Swaps"]
[null,null,null,null,"Forward rate agreements"]
[null,null,null,null,"Financial Contracts for Differences"]